Workbook

Sheet SolCotizacion
B1: Solicitud de Cotización Software Microsoft OPEN-CSP Gobierno y Educativo
B3: Versión: 22 | C3: 2022-01-12
B4: Información de la Entidad Compradora
B6: Nombre de la Entidad | E6: Secretaría General Alcaldía Mayor de Bogotá | K6: NIT | M6: 899999061
B8: Dirección de la Entidad | E8: Carrera 8 No 10-65 | K8: Correo de contacto | M8: rcaranton@alcaldiabogota.gov.co
B10: Municipio | E10: Bogotá D.C | K10: Teléfono de contacto | M10: 3813000
B12: Nombre funcionario Comprador | E12: Rafael Londoño Carantón
B16: Solicitud de Cotización
B18: Categoría | E18: OPEN VALUE GOBIERNO | I18: Valor TRM | J18: 3800.85 | M18: Fecha de lanzamiento del evento de cotización | N18: 2022-03-24
I19: Escribir hasta dos cifras decimales. Tenga en cuenta que el simulador aproxima al entero más cercano.
B20: Productos
A22: *Libros, revistas, cartillas y/o catálogo Segmento 1. | B22: =E18 -> OPEN VALUE GOBIERNO
B24: Cantidad de filas:
B25: 1
B27: Item | C27: Código Catálogo | E27: Descripción del Producto | I27: Tipo | J27: Unidad | K27: Zona | L27: Asistencia | M27: Perfil | N27: Número de parte | O27: Forma de Pago | P27: cantidad
A28: =E28&L28 -> Microsoft®O365E3Open ShrdSvr MonthlySubscriptions-VolumeLicense OLV 1License LevelD AdditionalProduct 1Month_OV_OVNTON/A | B28: 1 | C28: Q5Y-00005 | E28: =IFERROR(VLOOKUP($C28&$E$18,Consolidado!$B:$U,9,0),VLOOKUP($C28&"Canal",Consolidado!$B:$U,9,0)) -> Microsoft®O365E3Open ShrdSvr MonthlySubscriptions-VolumeLicense OLV 1License LevelD AdditionalProduct 1Month_OV_OVNTO | I28: =IFERROR(VLOOKUP($C28&$E$18,Consolidado!$B:$U,12,0),VLOOKUP($C28&"Canal",Consolidado!$B:$U,12,0)) -> Producto | J28: =IFERROR(VLOOKUP($C28&$E$18,Consolidado!$B:$U,10,0),VLOOKUP($C28&"Canal",Consolidado!$B:$U,10,0)) -> Unidad | K28: =IFERROR(VLOOKUP($C28&$E$18,Consolidado!$B:$U,13,0),VLOOKUP($C28&"Canal",Consolidado!$B:$U,13,0)) -> N/A | L28: =IFERROR(VLOOKUP($C28&$E$18,Consolidado!$B:$U,14,0),VLOOKUP($C28&"Canal",Consolidado!$B:$U,14,0)) -> N/A | M28: =IFERROR(VLOOKUP($C28&$E$18,Consolidado!$B:$U,15,0),VLOOKUP($C28&"Canal",Consolidado!$B:$U,15,0)) -> N/A | N28: =IFERROR(VLOOKUP($C28&$E$18,Consolidado!$B:$U,16,0),VLOOKUP($C28&"Canal",Consolidado!$B:$U,16,0)) -> Q5Y-00005 | O28: =IFERROR(VLOOKUP($C28&$E$18,Consolidado!$B:$U,17,0),VLOOKUP($C28&"Canal",Consolidado!$B:$U,17,0)) -> Suscripción mensual con pago anual | P28: =615*12 -> 7380 | Q28: =IFERROR(VLOOKUP($C28&$E$18,Consolidado!$B:$U,5,0),VLOOKUP($C28&"Canal",Consolidado!$B:$U,5,0)) -> OPEN VALUE GOBIERNO
A29: =E29&L29 -> Microsoft®O365PlanE1Archiving ShrdSvr MonthlySubscriptions-VolumeLicense OLV 1License LevelD AdditionalProduct 1Month_OV_OVNTON/A | B29: 2 | C29: 7JT-00002 | E29: =IFERROR(VLOOKUP($C29&$E$18,Consolidado!$B:$U,9,0),VLOOKUP($C29&"Canal",Consolidado!$B:$U,9,0)) -> Microsoft®O365PlanE1Archiving ShrdSvr MonthlySubscriptions-VolumeLicense OLV 1License LevelD AdditionalProduct 1Month_OV_OVNTO | I29: =IFERROR(VLOOKUP($C29&$E$18,Consolidado!$B:$U,12,0),VLOOKUP($C29&"Canal",Consolidado!$B:$U,12,0)) -> Producto | J29: =IFERROR(VLOOKUP($C29&$E$18,Consolidado!$B:$U,10,0),VLOOKUP($C29&"Canal",Consolidado!$B:$U,10,0)) -> Unidad | K29: =IFERROR(VLOOKUP($C29&$E$18,Consolidado!$B:$U,13,0),VLOOKUP($C29&"Canal",Consolidado!$B:$U,13,0)) -> N/A | L29: =IFERROR(VLOOKUP($C29&$E$18,Consolidado!$B:$U,14,0),VLOOKUP($C29&"Canal",Consolidado!$B:$U,14,0)) -> N/A | M29: =IFERROR(VLOOKUP($C29&$E$18,Consolidado!$B:$U,15,0),VLOOKUP($C29&"Canal",Consolidado!$B:$U,15,0)) -> N/A | N29: =IFERROR(VLOOKUP($C29&$E$18,Consolidado!$B:$U,16,0),VLOOKUP($C29&"Canal",Consolidado!$B:$U,16,0)) -> 7JT-00002 | O29: =IFERROR(VLOOKUP($C29&$E$18,Consolidado!$B:$U,17,0),VLOOKUP($C29&"Canal",Consolidado!$B:$U,17,0)) -> Suscripción mensual con pago anual | P29: =981*12 -> 11772 | Q29: =IFERROR(VLOOKUP($C29&$E$18,Consolidado!$B:$U,5,0),VLOOKUP($C29&"Canal",Consolidado!$B:$U,5,0)) -> OPEN VALUE GOBIERNO
A30: =E30&L30 -> Microsoft® Power BI Pro Open Subscription Open Value Level D 1 Month Additional Product_OV_OVNTON/A | B30: 3 | C30: DW6-00005 | E30: =IFERROR(VLOOKUP($C30&$E$18,Consolidado!$B:$U,9,0),VLOOKUP($C30&"Canal",Consolidado!$B:$U,9,0)) -> Microsoft® Power BI Pro Open Subscription Open Value Level D 1 Month Additional Product_OV_OVNTO | I30: =IFERROR(VLOOKUP($C30&$E$18,Consolidado!$B:$U,12,0),VLOOKUP($C30&"Canal",Consolidado!$B:$U,12,0)) -> Producto | J30: =IFERROR(VLOOKUP($C30&$E$18,Consolidado!$B:$U,10,0),VLOOKUP($C30&"Canal",Consolidado!$B:$U,10,0)) -> Unidad | K30: =IFERROR(VLOOKUP($C30&$E$18,Consolidado!$B:$U,13,0),VLOOKUP($C30&"Canal",Consolidado!$B:$U,13,0)) -> N/A | L30: =IFERROR(VLOOKUP($C30&$E$18,Consolidado!$B:$U,14,0),VLOOKUP($C30&"Canal",Consolidado!$B:$U,14,0)) -> N/A | M30: =IFERROR(VLOOKUP($C30&$E$18,Consolidado!$B:$U,15,0),VLOOKUP($C30&"Canal",Consolidado!$B:$U,15,0)) -> N/A | N30: =IFERROR(VLOOKUP($C30&$E$18,Consolidado!$B:$U,16,0),VLOOKUP($C30&"Canal",Consolidado!$B:$U,16,0)) -> DW6-00005 | O30: =IFERROR(VLOOKUP($C30&$E$18,Consolidado!$B:$U,17,0),VLOOKUP($C30&"Canal",Consolidado!$B:$U,17,0)) -> Suscripción mensual con pago anual | P30: =21*12 -> 252 | Q30: =IFERROR(VLOOKUP($C30&$E$18,Consolidado!$B:$U,5,0),VLOOKUP($C30&"Canal",Consolidado!$B:$U,5,0)) -> OPEN VALUE GOBIERNO
B31: 1. Si requiere agregue o elimine fila
B34: Gravámenes adicionales*
B35: Si los hay, indique los gravámenes adicionales a los que está sujeta la Orden de Compra. Son gravámenes adicionales por ejemplo; estampillas y demás impuestos territoriales. Los impuestos como ICA y retención en la fuente NO son gravámenes adicionales.
B36: Gravámenes adicionales (estampillas)
B37: No | C37: Descripción | H37: Porcentaje
B38: 1 | C38: PROADULTO MAYOR | H38: 0.02
B39: 2 | C39: PROCULTURA | H39: 0.005
B40: 3 | C40: UNIVERSIDAD DISTRITAL FRANCISCO JOSE DE CALDAS | H40: 0.011
F41: Total porcentaje: | H41: =SUM(H38:H40) -> 0.036
D42: Filas a agregar o eliminar Gravámenes:
D43: 1

Sheet Anexo
B1: Con el objetivo de complementar el entendimiento sobre la solicitud de Productos y Servicios Microsoft , por favor diligencie la totalidad de la información que se pide a continuación.
B3: Tenga en cuenta que esta información es de utilidad para que el Proveedor pueda cotizar de la manera más precisa posible los Productos y Servicios Microsoft solicitados, por lo cual la exactitud y completitud es muy importante.
A4: No | B4: Requerimiento adicional | C4: Descripción | D4: INFORMACION SUMINISTRADA POR LA ENTIDAD COMPRADORA
B5: Nombre y Nit de la Entidad Estatal a la cual se le entregará la titularidad de las licencias adquiridas.
A6: 1 | B6: Lugar de entrega de los Productos y Servicios Microsoft. (Especificar dirección y ciudad de entrega).
A7: 2 | B7: Datos Contacto de entrega (Especificar nombre, teléfono y correo electrónico).
A8: 3 | B8: Funciones a realizar el soporte en sitio.
A9: 4 | B9: Área de conocimiento de las personas que prestan el servicio de soporte técnico proactivo.
A10: 5 | B10: Área de conocimiento de las personas que prestan el servicio de soporte técnico reactivo.
A11: 6 | B11: Mecanismo de solicitud del soporte reactivo.
A12: 7 | B12: Especificar que información o que bases de datos se van a migrar. Aplica en el caso que la Entidad Compradora solicite el servicio de migración de información o de bases de datos.
A13: 8 | B13: Actividades del gerente de cuenta.
A14: 9 | B14: Indique número de personas que requieren de capacitación. En caso que la Entidad Compradora solicite el servicio de capacitación usuario final o usuario técnico.
A15: 10 | B15: Especificar características de configuración y descripción de las tareas a realizar. En caso que la Entidad Compradora solicite el servicio de configuración y parametrización.
A16: 12 | B16: Establecer las políticas de respaldo de información.

Sheet ResumenCotizacion
B1: Solicitud de Cotización Software Microsoft OPEN-CSP Gobierno y Educativo
B3: =SolCotizacion!B3 -> Versión: 22 | C3: =+SolCotizacion!C3 -> 2022-01-12
B4: Información de la Entidad Compradora
B6: Nombre de la Entidad | E6: Secretaría General Alcaldía Mayor de Bogotá | K6: NIT | M6: 899999061
B8: Dirección de la Entidad | E8: Carrera 8 No 10-65 | K8: Correo de contacto | M8: rcaranton@alcaldiabogota.gov.co
B10: Municipio | E10: Bogotá D.C | K10: Teléfono de contacto | M10: 3813000
B12: Nombre funcionario Comprador | E12: Rafael Londoño Carantón
B16: Solicitud de Cotización
B18: Categoría | E18: OPEN VALUE GOBIERNO | I18: Valor TRM | J18: =SolCotizacion!J18 -> 3800.85 | M18: Fecha | N18: =SolCotizacion!N18 -> 2022-03-24
B20: Productos
A22: *Libros, revistas, cartillas y/o catálogo Segmento 1. | B22: =SolCotizacion!B22 -> OPEN VALUE GOBIERNO
B24: Cantidad de filas:
B25: 1
B27: Item | C27: Código Catálogo | E27: Descripción del Producto | I27: Tipo | J27: Unidad | K27: Zona | L27: Asistencia | M27: Perfil | N27: Número de parte | O27: Forma de Pago | P27: cantidad | Q27: Precio Unitario | R27: Precio Unitario + Gravamen | S27: Subtotal | T27: IVA | U27: Precio Total
A28: Microsoft®O365E3Open ShrdSvr MonthlySubscriptions-VolumeLicense OLV 1License LevelD AdditionalProduct 1Month_OV_OVNTON/A | B28: 1 | C28: Q5Y-00005 | E28: Microsoft®O365E3Open ShrdSvr MonthlySubscriptions-VolumeLicense OLV 1License LevelD AdditionalProduct 1Month_OV_OVNTO | I28: Producto | J28: Unidad | K28: N/A | L28: N/A | M28: N/A | N28: Q5Y-00005 | O28: Suscripción mensual con pago anual | P28: 7380 | Q28: =IFERROR(VLOOKUP("Soluciones Orión"&$V28&$C28,temp!$A:$Y,19,0)*$J$18,VLOOKUP("Catalogo principal"&$V28&$C28,temp!$A:$Y,19,0)*$J$18) -> 76017 | R28: =ROUND(Q28/(1-(VLOOKUP("Total porcentaje:",$F:$H,3))),2) -> 78855.81 | S28: =ROUND(P28*R28,2) -> 581955877.8 | T28: =IFERROR(ROUND(S28*IF(VLOOKUP("Soluciones Orión"&$V28&$C28,Consolidado!$A:$U,21,0)=1,19%,0),2),ROUND(S28*IF(VLOOKUP("Catalogo principal"&$V28&$C28,Consolidado!$A:$U,21,0)=1,19%,0),2)) -> 110571616.8 | U28: =S28+T28 -> 692527494.6 | V28: =IFERROR(VLOOKUP($C28&$E$18,Consolidado!$B:$U,5,0),VLOOKUP($C28&"Canal",Consolidado!$B:$U,5,0)) -> OPEN VALUE GOBIERNO | W28: =VLOOKUP($C28,Consolidado!$E:$G,3,0) -> Catalogo principal
A29: Microsoft®O365PlanE1Archiving ShrdSvr MonthlySubscriptions-VolumeLicense OLV 1License LevelD AdditionalProduct 1Month_OV_OVNTON/A | B29: 2 | C29: 7JT-00002 | E29: Microsoft®O365PlanE1Archiving ShrdSvr MonthlySubscriptions-VolumeLicense OLV 1License LevelD AdditionalProduct 1Month_OV_OVNTO | I29: Producto | J29: Unidad | K29: N/A | L29: N/A | M29: N/A | N29: 7JT-00002 | O29: Suscripción mensual con pago anual | P29: 11772 | Q29: =IFERROR(VLOOKUP("Soluciones Orión"&$V29&$C29,temp!$A:$Y,19,0)*$J$18,VLOOKUP("Catalogo principal"&$V29&$C29,temp!$A:$Y,19,0)*$J$18) -> 34967.82 | R29: =ROUND(Q29/(1-(VLOOKUP("Total porcentaje:",$F:$H,3))),2) -> 36273.67 | S29: =ROUND(P29*R29,2) -> 427013643.2 | T29: =IFERROR(ROUND(S29*IF(VLOOKUP("Soluciones Orión"&$V29&$C29,Consolidado!$A:$U,21,0)=1,19%,0),2),ROUND(S29*IF(VLOOKUP("Catalogo principal"&$V29&$C29,Consolidado!$A:$U,21,0)=1,19%,0),2)) -> 81132592.22 | U29: =S29+T29 -> 508146235.5 | V29: =IFERROR(VLOOKUP($C29&$E$18,Consolidado!$B:$U,5,0),VLOOKUP($C29&"Canal",Consolidado!$B:$U,5,0)) -> OPEN VALUE GOBIERNO | W29: =VLOOKUP($C29,Consolidado!$E:$G,3,0) -> Catalogo principal
A30: Microsoft® Power BI Pro Open Subscription Open Value Level D 1 Month Additional Product_OV_OVNTON/A | B30: 3 | C30: DW6-00005 | E30: Microsoft® Power BI Pro Open Subscription Open Value Level D 1 Month Additional Product_OV_OVNTO | I30: Producto | J30: Unidad | K30: N/A | L30: N/A | M30: N/A | N30: DW6-00005 | O30: Suscripción mensual con pago anual | P30: 252 | Q30: =IFERROR(VLOOKUP("Soluciones Orión"&$V30&$C30,temp!$A:$Y,19,0)*$J$18,VLOOKUP("Catalogo principal"&$V30&$C30,temp!$A:$Y,19,0)*$J$18) -> 38008.5 | R30: =ROUND(Q30/(1-(VLOOKUP("Total porcentaje:",$F:$H,3))),2) -> 39427.9 | S30: =ROUND(P30*R30,2) -> 9935830.8 | T30: =IFERROR(ROUND(S30*IF(VLOOKUP("Soluciones Orión"&$V30&$C30,Consolidado!$A:$U,21,0)=1,19%,0),2),ROUND(S30*IF(VLOOKUP("Catalogo principal"&$V30&$C30,Consolidado!$A:$U,21,0)=1,19%,0),2)) -> 1887807.85 | U30: =S30+T30 -> 11823638.65 | V30: =IFERROR(VLOOKUP($C30&$E$18,Consolidado!$B:$U,5,0),VLOOKUP($C30&"Canal",Consolidado!$B:$U,5,0)) -> OPEN VALUE GOBIERNO | W30: =VLOOKUP($C30,Consolidado!$E:$G,3,0) -> Catalogo principal
B31: 1. Si requiere agregue o elimine fila | T31: Valor Total | U31: =ROUND(SUM($U$28:$U$30),2) -> 1212497369
B34: Gravámenes adicionales*
B35: Si los hay, indique los gravámenes adicionales a los que está sujeta la Orden de Compra. Son gravámenes adicionales por ejemplo; estampillas y demás impuestos territoriales. Los impuestos como ICA y retención en la fuente NO son gravámenes adicionales.
B36: Gravámenes adicionales (estampillas)
B37: No | C37: Descripción | H37: Porcentaje
B38: 1 | C38: PROADULTO MAYOR | H38: 0.02
B39: 2 | C39: PROCULTURA | H39: 0.005
B40: 3 | C40: UNIVERSIDAD DISTRITAL FRANCISCO JOSE DE CALDAS | H40: 0.011
F41: Total porcentaje: | H41: =SUM(H38:H40) -> 0.036
D42: Filas a agregar o eliminar Gravámenes:
D43: 1
... 1 more rows

Sheet Cotizacion
B1: Solicitud de Cotización Software Microsoft OPEN-CSP Gobierno y Educativo
B3: =SolCotizacion!B3 -> Versión: 22 | C3: =SolCotizacion!C3 -> 2022-01-12
B4: Información de la Entidad Compradora
B6: Nombre de la Entidad | E6: Secretaría General Alcaldía Mayor de Bogotá | K6: NIT | M6: 899999061
B8: Dirección de la Entidad | E8: Carrera 8 No 10-65 | K8: Correo de contacto | M8: rcaranton@alcaldiabogota.gov.co
B10: Municipio | E10: Bogotá D.C | K10: Teléfono de contacto | M10: 3813000
B12: Nombre funcionario Comprador | E12: Rafael Londoño Carantón
B16: Solicitud de Cotización
B18: Categoría | E18: OPEN VALUE GOBIERNO | I18: Valor TRM | J18: =SolCotizacion!J18 -> 3800.85 | M18: Fecha | N18: =SolCotizacion!N18 -> 2022-03-24
B20: Productos
A22: *Libros, revistas, cartillas y/o catálogo Segmento 1. | B22: =SolCotizacion!B22 -> OPEN VALUE GOBIERNO
B24: Cantidad de filas:
B25: 1 | L25: Proveedor
B27: Item | C27: Código Catálogo | E27: Descripción del Producto | I27: Tipo | J27: Unidad | K27: Zona | L27: Asistencia | M27: Perfil | N27: Número de parte | O27: Forma de Pago | P27: cantidad | Q27: Precio Unitario | R27: Precio Unitario + Gravamen | S27: Descuento adicional | T27: Precio con Descuento | U27: Subtotal | V27: IVA | W27: Vr IVA | X27: Precio Total
A28: Microsoft®O365E3Open ShrdSvr MonthlySubscriptions-VolumeLicense OLV 1License LevelD AdditionalProduct 1Month_OV_OVNTON/A | B28: 1 | C28: Q5Y-00005 | E28: Microsoft®O365E3Open ShrdSvr MonthlySubscriptions-VolumeLicense OLV 1License LevelD AdditionalProduct 1Month_OV_OVNTO | I28: Producto | J28: Unidad | K28: N/A | L28: N/A | M28: N/A | N28: Q5Y-00005 | O28: Suscripción mensual con pago anual | P28: 7380 | Q28: =IFERROR(VLOOKUP($N$25&$Y28&$C28,temp!$A:$Y,19,0)*$J$18,VLOOKUP("Catalogo principal"&$Y28&$C28,temp!$A:$Y,19,0)*$J$18) -> 76017 | R28: =ROUND(Q28/(1-(VLOOKUP("Total porcentaje:",$F:$H,3))),2) -> 78855.81 | T28: =ROUND(R28*(1-S28),2) -> 78855.81 | U28: =ROUND(P28*T28,2) -> 581955877.8 | W28: =IF(V28="Si",U28*19%,0) -> 0 | X28: =U28+W28 -> 581955877.8 | Y28: =IFERROR(VLOOKUP($C28&$E$18,Consolidado!$B:$U,5,0),VLOOKUP($C28&"Canal",Consolidado!$B:$U,5,0)) -> OPEN VALUE GOBIERNO | Z28: =VLOOKUP($C28,Consolidado!$E:$G,3,0) -> Catalogo principal
A29: Microsoft®O365PlanE1Archiving ShrdSvr MonthlySubscriptions-VolumeLicense OLV 1License LevelD AdditionalProduct 1Month_OV_OVNTON/A | B29: 2 | C29: 7JT-00002 | E29: Microsoft®O365PlanE1Archiving ShrdSvr MonthlySubscriptions-VolumeLicense OLV 1License LevelD AdditionalProduct 1Month_OV_OVNTO | I29: Producto | J29: Unidad | K29: N/A | L29: N/A | M29: N/A | N29: 7JT-00002 | O29: Suscripción mensual con pago anual | P29: 11772 | Q29: =IFERROR(VLOOKUP($N$25&$Y29&$C29,temp!$A:$Y,19,0)*$J$18,VLOOKUP("Catalogo principal"&$Y29&$C29,temp!$A:$Y,19,0)*$J$18) -> 34967.82 | R29: =ROUND(Q29/(1-(VLOOKUP("Total porcentaje:",$F:$H,3))),2) -> 36273.67 | T29: =ROUND(R29*(1-S29),2) -> 36273.67 | U29: =ROUND(P29*T29,2) -> 427013643.2 | W29: =IF(V29="Si",U29*19%,0) -> 0 | X29: =U29+W29 -> 427013643.2 | Y29: =IFERROR(VLOOKUP($C29&$E$18,Consolidado!$B:$U,5,0),VLOOKUP($C29&"Canal",Consolidado!$B:$U,5,0)) -> OPEN VALUE GOBIERNO | Z29: =VLOOKUP($C29,Consolidado!$E:$G,3,0) -> Catalogo principal
A30: Microsoft® Power BI Pro Open Subscription Open Value Level D 1 Month Additional Product_OV_OVNTON/A | B30: 3 | C30: DW6-00005 | E30: Microsoft® Power BI Pro Open Subscription Open Value Level D 1 Month Additional Product_OV_OVNTO | I30: Producto | J30: Unidad | K30: N/A | L30: N/A | M30: N/A | N30: DW6-00005 | O30: Suscripción mensual con pago anual | P30: 252 | Q30: =IFERROR(VLOOKUP($N$25&$Y30&$C30,temp!$A:$Y,19,0)*$J$18,VLOOKUP("Catalogo principal"&$Y30&$C30,temp!$A:$Y,19,0)*$J$18) -> 38008.5 | R30: =ROUND(Q30/(1-(VLOOKUP("Total porcentaje:",$F:$H,3))),2) -> 39427.9 | T30: =ROUND(R30*(1-S30),2) -> 39427.9 | U30: =ROUND(P30*T30,2) -> 9935830.8 | W30: =IF(V30="Si",U30*19%,0) -> 0 | X30: =U30+W30 -> 9935830.8 | Y30: =IFERROR(VLOOKUP($C30&$E$18,Consolidado!$B:$U,5,0),VLOOKUP($C30&"Canal",Consolidado!$B:$U,5,0)) -> OPEN VALUE GOBIERNO | Z30: =VLOOKUP($C30,Consolidado!$E:$G,3,0) -> Catalogo principal
B31: 1. Si requiere agregue o elimine fila | W31: Valor Total | X31: =ROUND(SUM($X$28:$X$30),2) -> 1018905352
B34: Gravámenes adicionales*
B35: Si los hay, indique los gravámenes adicionales a los que está sujeta la Orden de Compra. Son gravámenes adicionales por ejemplo; estampillas y demás impuestos territoriales. Los impuestos como ICA y retención en la fuente NO son gravámenes adicionales.
B36: Gravámenes adicionales (estampillas)
B37: No | C37: Descripción | H37: Porcentaje
B38: 1 | C38: PROADULTO MAYOR | H38: 0.02
B39: 2 | C39: PROCULTURA | H39: 0.005
B40: 3 | C40: UNIVERSIDAD DISTRITAL FRANCISCO JOSE DE CALDAS | H40: 0.011
F41: Total porcentaje: | H41: =SUM(H38:H40) -> 0.036
D42: Filas a agregar o eliminar Gravámenes:
D43: 1

Sheet CSV (hidden)
A1: Tipo | B1: Cantidad | C1: Código de unidad de medida* | D1: Posición | E1: Precio base | F1: Divisa | G1: Descripción | H1: Mercancía
A2: item | B2: 10 | C2: Und | E2: 482000 | F2: COP | G2: wms01--IT-SW-01-04 Capacitación para usuario final - hasta 10 Personas.
A3: item | B3: 10 | C3: Und | E3: 1855 | F3: COP | G3: wms01--V7U-00166 Microsoft® Mobile Asset Mgmt All Language Subscription Open Value No Level 1 Month Additional Product Distance Matrix Per Asset Manual ROW
A4: item | B4: 1 | C4: Und | E4: 919324,5 | F4: COP | G4: wms01--IVA

Sheet Categorias (hidden)
A1: Categoría 1 | B1: Sistema Operativo, Plataforma, Nube e Infraestructura y Desarrollo Aplicaciones (Open – CSP)
A2: Categoría 2 | B2: Productividad Administración y análisis de datos (Open - CSP)
A3: Categoría 3 | B3: Movilidad (Open - CSP)
A4: Categoría 4 | B4: Aplicaciones empresariales (Open - CSP)
A5: Categoría 5 | B5: Campus (Educativo)
A6: Categoría 6 | B6: OVS (Educativo)
A7: Categoría 7 | B7: Open - CSP (Educativo)

Sheet Consolidado (hidden)
A1: LLAVE | B1: TEMP1 | C1: TEMP2 | D1: PROVEEDOR | E1: Código matriz Colombia Compra Eficiente | F1: categoria | G1: PROVEEDOR2 | H1: Moneda | I1: Parametrización de los Servicios | J1: Nombre Producto | K1: Unidad de Medida | L1: Unidad TVEC | M1: Tipo | N1: Zona | O1: Asistencia | P1: Perfil | Q1: Número de parte | R1: Forma de Pago | S1: Precio | T1: Activo | U1: IVA | V1: Moneda | X1: Familia
A2: =D2&F2&E2 -> Catalogo principalOVS_ES ACADEMICO125-01037 | B2: =E2&F2 -> 125-01037OVS_ES ACADEMICO | D2: Catalogo principal | E2: 125-01037 | F2: OVS_ES ACADEMICO | G2: Catalogo principal | H2: USD | I2: N/A | J2: Microsoft®AzureDevOpsServer AllLng License/SoftwareAssurancePack Academic OLV 1License LevelE AdditionalProduct 1Year | K2: Unidad | L2: Und | M2: Producto | N2: N/A | O2: N/A | P2: N/A | Q2: 125-01037 | R2: Suscripción Anual | S2: 41 | T2: 1 | U2: 1 | V2: USD
A3: Catalogo principalOVS_ES ACADEMICO125-01038 | B3: 125-01038OVS_ES ACADEMICO | D3: Catalogo principal | E3: 125-01038 | F3: OVS_ES ACADEMICO | G3: Catalogo principal | H3: USD | I3: N/A | J3: Microsoft®AzureDevOpsServer AllLng License/SoftwareAssurancePack Academic OLV 1License LevelF AdditionalProduct 1Year | K3: Unidad | L3: Und | M3: Producto | N3: N/A | O3: N/A | P3: N/A | Q3: 125-01038 | R3: Suscripción Anual | S3: 41 | T3: 1 | U3: 1 | V3: USD
A4: Catalogo principalOVS_ES ACADEMICO126-01617 | B4: 126-01617OVS_ES ACADEMICO | D4: Catalogo principal | E4: 126-01617 | F4: OVS_ES ACADEMICO | G4: Catalogo principal | H4: USD | I4: N/A | J4: Microsoft®AzureDevOpsServerCAL AllLng License/SoftwareAssurancePack Academic OLV 1License LevelE AdditionalProduct DvcCAL 1Year | K4: Unidad | L4: Und | M4: Producto | N4: N/A | O4: N/A | P4: N/A | Q4: 126-01617 | R4: Suscripción Anual | S4: 41 | T4: 1 | U4: 1 | V4: USD
A5: Catalogo principalOVS_ES ACADEMICO126-01618 | B5: 126-01618OVS_ES ACADEMICO | D5: Catalogo principal | E5: 126-01618 | F5: OVS_ES ACADEMICO | G5: Catalogo principal | H5: USD | I5: N/A | J5: Microsoft®AzureDevOpsServerCAL AllLng License/SoftwareAssurancePack Academic OLV 1License LevelF AdditionalProduct DvcCAL 1Year | K5: Unidad | L5: Und | M5: Producto | N5: N/A | O5: N/A | P5: N/A | Q5: 126-01618 | R5: Suscripción Anual | S5: 41 | T5: 1 | U5: 1 | V5: USD
A6: Catalogo principalOVS_ES ACADEMICO126-01619 | B6: 126-01619OVS_ES ACADEMICO | D6: Catalogo principal | E6: 126-01619 | F6: OVS_ES ACADEMICO | G6: Catalogo principal | H6: USD | I6: N/A | J6: Microsoft®AzureDevOpsServerCAL AllLng License/SoftwareAssurancePack Academic OLV 1License LevelE AdditionalProduct UsrCAL 1Year | K6: Unidad | L6: Und | M6: Producto | N6: N/A | O6: N/A | P6: N/A | Q6: 126-01619 | R6: Suscripción Anual | S6: 41 | T6: 1 | U6: 1 | V6: USD
A7: Catalogo principalOVS_ES ACADEMICO126-01620 | B7: 126-01620OVS_ES ACADEMICO | D7: Catalogo principal | E7: 126-01620 | F7: OVS_ES ACADEMICO | G7: Catalogo principal | H7: USD | I7: N/A | J7: Microsoft®AzureDevOpsServerCAL AllLng License/SoftwareAssurancePack Academic OLV 1License LevelF AdditionalProduct UsrCAL 1Year | K7: Unidad | L7: Und | M7: Producto | N7: N/A | O7: N/A | P7: N/A | Q7: 126-01620 | R7: Suscripción Anual | S7: 41 | T7: 1 | U7: 1 | V7: USD
A8: Catalogo principalOVS_ES ACADEMICO228-09538 | B8: 228-09538OVS_ES ACADEMICO | D8: Catalogo principal | E8: 228-09538 | F8: OVS_ES ACADEMICO | G8: Catalogo principal | H8: USD | I8: N/A | J8: Microsoft®SQLServerStandardEdition AllLng License/SoftwareAssurancePack Academic OLV 1License LevelE AdditionalProduct 1Year | K8: Unidad | L8: Und | M8: Producto | N8: N/A | O8: N/A | P8: N/A | Q8: 228-09538 | R8: Suscripción Anual | S8: 95 | T8: 1 | U8: 1 | V8: USD
A9: Catalogo principalOVS_ES ACADEMICO228-09539 | B9: 228-09539OVS_ES ACADEMICO | D9: Catalogo principal | E9: 228-09539 | F9: OVS_ES ACADEMICO | G9: Catalogo principal | H9: USD | I9: N/A | J9: Microsoft®SQLServerStandardEdition AllLng License/SoftwareAssurancePack Academic OLV 1License LevelF AdditionalProduct 1Year | K9: Unidad | L9: Und | M9: Producto | N9: N/A | O9: N/A | P9: N/A | Q9: 228-09539 | R9: Suscripción Anual | S9: 95 | T9: 1 | U9: 1 | V9: USD
A10: Catalogo principalOVS_ES ACADEMICO2FJ-00005 | B10: 2FJ-00005OVS_ES ACADEMICO | D10: Catalogo principal | E10: 2FJ-00005 | F10: OVS_ES ACADEMICO | G10: Catalogo principal | H10: USD | I10: N/A | J10: Microsoft®OfficeProPlusEducation AllLng License/SoftwareAssurancePack Academic OLV 1License LevelE Enterprise 1Year | K10: Unidad | L10: Und | M10: Producto | N10: N/A | O10: N/A | P10: N/A | Q10: 2FJ-00005 | R10: Suscripción Anual | S10: 37 | T10: 1 | U10: 1 | V10: USD
A11: Catalogo principalOVS_ES ACADEMICO2FJ-00006 | B11: 2FJ-00006OVS_ES ACADEMICO | D11: Catalogo principal | E11: 2FJ-00006 | F11: OVS_ES ACADEMICO | G11: Catalogo principal | H11: USD | I11: N/A | J11: Microsoft®OfficeProPlusEducation AllLng License/SoftwareAssurancePack Academic OLV 1License LevelF Enterprise 1Year | K11: Unidad | L11: Und | M11: Producto | N11: N/A | O11: N/A | P11: N/A | Q11: 2FJ-00006 | R11: Suscripción Anual | S11: 36 | T11: 1 | U11: 1 | V11: USD
A12: Catalogo principalOVS_ES ACADEMICO2FJ-00007 | B12: 2FJ-00007OVS_ES ACADEMICO | D12: Catalogo principal | E12: 2FJ-00007 | F12: OVS_ES ACADEMICO | G12: Catalogo principal | H12: USD | I12: N/A | J12: Microsoft®OfficeProPlusEducation AllLng License/SoftwareAssurancePack Academic OLV 1License NoLevel Student 1Year | K12: Unidad | L12: Und | M12: Producto | N12: N/A | O12: N/A | P12: N/A | Q12: 2FJ-00007 | R12: Suscripción Anual | S12: 23 | T12: 1 | U12: 1 | V12: USD
A13: Catalogo principalOVS_ES ACADEMICO2FJ-00010 | B13: 2FJ-00010OVS_ES ACADEMICO | D13: Catalogo principal | E13: 2FJ-00010 | F13: OVS_ES ACADEMICO | G13: Catalogo principal | H13: USD | I13: N/A | J13: Microsoft®OfficeProPlusEducation AllLng License/SoftwareAssurancePack Academic OLV 1License NoLevel PlatformStudent 1Year | K13: Unidad | L13: Und | M13: Producto | N13: N/A | O13: N/A | P13: N/A | Q13: 2FJ-00010 | R13: Suscripción Anual | S13: 22 | T13: 1 | U13: 1 | V13: USD
A14: Catalogo principalOVS_ES ACADEMICO2FJ-00025 | B14: 2FJ-00025OVS_ES ACADEMICO | D14: Catalogo principal | E14: 2FJ-00025 | F14: OVS_ES ACADEMICO | G14: Catalogo principal | H14: USD | I14: N/A | J14: Microsoft®OfficeProPlusEducation AllLng License/SoftwareAssurancePack Academic OLV 1License LevelE Platform 1Year | K14: Unidad | L14: Und | M14: Producto | N14: N/A | O14: N/A | P14: N/A | Q14: 2FJ-00025 | R14: Suscripción Anual | S14: 35 | T14: 1 | U14: 1 | V14: USD
A15: Catalogo principalOVS_ES ACADEMICO2FJ-00026 | B15: 2FJ-00026OVS_ES ACADEMICO | D15: Catalogo principal | E15: 2FJ-00026 | F15: OVS_ES ACADEMICO | G15: Catalogo principal | H15: USD | I15: N/A | J15: Microsoft®OfficeProPlusEducation AllLng License/SoftwareAssurancePack Academic OLV 1License LevelF Platform 1Year | K15: Unidad | L15: Und | M15: Producto | N15: N/A | O15: N/A | P15: N/A | Q15: 2FJ-00026 | R15: Suscripción Anual | S15: 34 | T15: 1 | U15: 1 | V15: USD
A16: Catalogo principalOVS_ES ACADEMICO2PM-00008 | B16: 2PM-00008OVS_ES ACADEMICO | D16: Catalogo principal | E16: 2PM-00008 | F16: OVS_ES ACADEMICO | G16: Catalogo principal | H16: USD | I16: N/A | J16: Microsoft® Cloud App Security Open All Languages Subscription Open Value Level E 1 Month Academic AP Faculty | K16: Unidad | L16: Und | M16: Producto | N16: N/A | O16: N/A | P16: N/A | Q16: 2PM-00008 | R16: Suscripción mensual con pago anual | S16: 0.9 | T16: 1 | U16: 1 | V16: USD
A17: Catalogo principalOVS_ES ACADEMICO2PM-00009 | B17: 2PM-00009OVS_ES ACADEMICO | D17: Catalogo principal | E17: 2PM-00009 | F17: OVS_ES ACADEMICO | G17: Catalogo principal | H17: USD | I17: N/A | J17: Microsoft® Cloud App Security Open All Languages Subscription Open Value Level F 1 Month Academic AP Faculty | K17: Unidad | L17: Und | M17: Producto | N17: N/A | O17: N/A | P17: N/A | Q17: 2PM-00009 | R17: Suscripción mensual con pago anual | S17: 0.9 | T17: 1 | U17: 1 | V17: USD
A18: Catalogo principalOVS_ES ACADEMICO2PM-00011 | B18: 2PM-00011OVS_ES ACADEMICO | D18: Catalogo principal | E18: 2PM-00011 | F18: OVS_ES ACADEMICO | G18: Catalogo principal | H18: USD | I18: N/A | J18: Microsoft® Cloud App Security Open All Languages Subscription Open Value No Level 1 Month Academic Student | K18: Unidad | L18: Und | M18: Producto | N18: N/A | O18: N/A | P18: N/A | Q18: 2PM-00011 | R18: Suscripción mensual con pago anual | S18: 0.5 | T18: 1 | U18: 1 | V18: USD
A19: Catalogo principalOVS_ES ACADEMICO2UJ-00007 | B19: 2UJ-00007OVS_ES ACADEMICO | D19: Catalogo principal | E19: 2UJ-00007 | F19: OVS_ES ACADEMICO | G19: Catalogo principal | H19: USD | I19: N/A | J19: Microsoft® Desktop Education All Languages License & Software Assurance Open Value Level E 1 Year Academic Enterprise ECAL | K19: Unidad | L19: Und | M19: Producto | N19: N/A | O19: N/A | P19: N/A | Q19: 2UJ-00007 | R19: Suscripción Anual | S19: 83 | T19: 1 | U19: 1 | V19: USD
A20: Catalogo principalOVS_ES ACADEMICO2UJ-00008 | B20: 2UJ-00008OVS_ES ACADEMICO | D20: Catalogo principal | E20: 2UJ-00008 | F20: OVS_ES ACADEMICO | G20: Catalogo principal | H20: USD | I20: N/A | J20: Microsoft® Desktop Education All Languages License & Software Assurance Open Value Level F 1 Year Academic Enterprise ECAL | K20: Unidad | L20: Und | M20: Producto | N20: N/A | O20: N/A | P20: N/A | Q20: 2UJ-00008 | R20: Suscripción Anual | S20: 80 | T20: 1 | U20: 1 | V20: USD
A21: Catalogo principalOVS_ES ACADEMICO2UJ-00009 | B21: 2UJ-00009OVS_ES ACADEMICO | D21: Catalogo principal | E21: 2UJ-00009 | F21: OVS_ES ACADEMICO | G21: Catalogo principal | H21: USD | I21: N/A | J21: Microsoft® Desktop Education All Languages SA Step-up Open Value Level E 1 Year Academic Enterprise ECAL | K21: Unidad | L21: Und | M21: Producto | N21: N/A | O21: N/A | P21: N/A | Q21: 2UJ-00009 | R21: Suscripción Anual | S21: 13 | T21: 1 | U21: 1 | V21: USD
A22: Catalogo principalOVS_ES ACADEMICO2UJ-00010 | B22: 2UJ-00010OVS_ES ACADEMICO | D22: Catalogo principal | E22: 2UJ-00010 | F22: OVS_ES ACADEMICO | G22: Catalogo principal | H22: USD | I22: N/A | J22: Microsoft® Desktop Education All Languages SA Step-up Open Value Level F 1 Year Academic Enterprise ECAL | K22: Unidad | L22: Und | M22: Producto | N22: N/A | O22: N/A | P22: N/A | Q22: 2UJ-00010 | R22: Suscripción Anual | S22: 13 | T22: 1 | U22: 1 | V22: USD
A23: Catalogo principalOVS_ES ACADEMICO2UJ-00011 | B23: 2UJ-00011OVS_ES ACADEMICO | D23: Catalogo principal | E23: 2UJ-00011 | F23: OVS_ES ACADEMICO | G23: Catalogo principal | H23: USD | I23: N/A | J23: Microsoft® Desktop Education All Languages License & Software Assurance Open Value Level E 1 Year Academic Enterprise | K23: Unidad | L23: Und | M23: Producto | N23: N/A | O23: N/A | P23: N/A | Q23: 2UJ-00011 | R23: Suscripción Anual | S23: 70 | T23: 1 | U23: 1 | V23: USD
A24: Catalogo principalOVS_ES ACADEMICO2UJ-00012 | B24: 2UJ-00012OVS_ES ACADEMICO | D24: Catalogo principal | E24: 2UJ-00012 | F24: OVS_ES ACADEMICO | G24: Catalogo principal | H24: USD | I24: N/A | J24: Microsoft® Desktop Education All Languages License & Software Assurance Open Value Level F 1 Year Academic Enterprise | K24: Unidad | L24: Und | M24: Producto | N24: N/A | O24: N/A | P24: N/A | Q24: 2UJ-00012 | R24: Suscripción Anual | S24: 68 | T24: 1 | U24: 1 | V24: USD
A25: Catalogo principalOVS_ES ACADEMICO2UJ-00015 | B25: 2UJ-00015OVS_ES ACADEMICO | D25: Catalogo principal | E25: 2UJ-00015 | F25: OVS_ES ACADEMICO | G25: Catalogo principal | H25: USD | I25: N/A | J25: Microsoft® Desktop Education All Languages License & Software Assurance Open Value No Level 1 Year Academic Student ECAL | K25: Unidad | L25: Und | M25: Producto | N25: N/A | O25: N/A | P25: N/A | Q25: 2UJ-00015 | R25: Suscripción Anual | S25: 38 | T25: 1 | U25: 1 | V25: USD
A26: Catalogo principalOVS_ES ACADEMICO2UJ-00016 | B26: 2UJ-00016OVS_ES ACADEMICO | D26: Catalogo principal | E26: 2UJ-00016 | F26: OVS_ES ACADEMICO | G26: Catalogo principal | H26: USD | I26: N/A | J26: Microsoft® Desktop Education All Languages SA Step-up Open Value No Level 1 Year Academic Student ECAL | K26: Unidad | L26: Und | M26: Producto | N26: N/A | O26: N/A | P26: N/A | Q26: 2UJ-00016 | R26: Suscripción Anual | S26: 13 | T26: 1 | U26: 1 | V26: USD
A27: Catalogo principalOVS_ES ACADEMICO2UJ-00017 | B27: 2UJ-00017OVS_ES ACADEMICO | D27: Catalogo principal | E27: 2UJ-00017 | F27: OVS_ES ACADEMICO | G27: Catalogo principal | H27: USD | I27: N/A | J27: Microsoft® Desktop Education All Languages License & Software Assurance Open Value No Level 1 Year Academic Student | K27: Unidad | L27: Und | M27: Producto | N27: N/A | O27: N/A | P27: N/A | Q27: 2UJ-00017 | R27: Suscripción Anual | S27: 26 | T27: 1 | U27: 1 | V27: USD
A28: Catalogo principalOVS_ES ACADEMICO2ZW-00001 | B28: 2ZW-00001OVS_ES ACADEMICO | D28: Catalogo principal | E28: 2ZW-00001 | F28: OVS_ES ACADEMICO | G28: Catalogo principal | H28: USD | I28: N/A | J28: Microsoft®O365AdvancedComplianceOpenStu ShrdSvr AllLng MonthlySubscriptions-VolumeLicense Academic OLV 1License NoLevel Student 1Month | K28: Unidad | L28: Und | M28: Producto | N28: N/A | O28: N/A | P28: N/A | Q28: 2ZW-00001 | R28: Suscripción mensual con pago anual | S28: 2.2 | T28: 1 | U28: 1 | V28: USD
A29: Catalogo principalOVS_ES ACADEMICO312-04097 | B29: 312-04097OVS_ES ACADEMICO | D29: Catalogo principal | E29: 312-04097 | F29: OVS_ES ACADEMICO | G29: Catalogo principal | H29: USD | I29: N/A | J29: Microsoft®ExchangeServerStandard AllLng License/SoftwareAssurancePack Academic OLV 1License LevelE AdditionalProduct 1Year | K29: Unidad | L29: Und | M29: Producto | N29: N/A | O29: N/A | P29: N/A | Q29: 312-04097 | R29: Suscripción Anual | S29: 82 | T29: 1 | U29: 1 | V29: USD
A30: Catalogo principalOVS_ES ACADEMICO312-04098 | B30: 312-04098OVS_ES ACADEMICO | D30: Catalogo principal | E30: 312-04098 | F30: OVS_ES ACADEMICO | G30: Catalogo principal | H30: USD | I30: N/A | J30: Microsoft®ExchangeServerStandard AllLng License/SoftwareAssurancePack Academic OLV 1License LevelF AdditionalProduct 1Year | K30: Unidad | L30: Und | M30: Producto | N30: N/A | O30: N/A | P30: N/A | Q30: 312-04098 | R30: Suscripción Anual | S30: 82 | T30: 1 | U30: 1 | V30: USD
A31: Catalogo principalOVS_ES ACADEMICO32L-00001 | B31: 32L-00001OVS_ES ACADEMICO | D31: Catalogo principal | E31: 32L-00001 | F31: OVS_ES ACADEMICO | G31: Catalogo principal | H31: USD | I31: N/A | J31: Microsoft®O365AdvancedComplianceOpenFac ShrdSvr AllLng MonthlySubscriptions-VL Academic OLV 1License LevelE AdditionalProduct 1Month | K31: Unidad | L31: Und | M31: Producto | N31: N/A | O31: N/A | P31: N/A | Q31: 32L-00001 | R31: Suscripción mensual con pago anual | S31: 2.5 | T31: 1 | U31: 1 | V31: USD
A32: Catalogo principalOVS_ES ACADEMICO32L-00002 | B32: 32L-00002OVS_ES ACADEMICO | D32: Catalogo principal | E32: 32L-00002 | F32: OVS_ES ACADEMICO | G32: Catalogo principal | H32: USD | I32: N/A | J32: Microsoft®O365AdvancedComplianceOpenFac ShrdSvr AllLng MonthlySubscriptions-VL Academic OLV 1License LevelF AdditionalProduct 1Month | K32: Unidad | L32: Und | M32: Producto | N32: N/A | O32: N/A | P32: N/A | Q32: 32L-00002 | R32: Suscripción mensual con pago anual | S32: 2.5 | T32: 1 | U32: 1 | V32: USD
A33: Catalogo principalOVS_ES ACADEMICO32N-00001 | B33: 32N-00001OVS_ES ACADEMICO | D33: Catalogo principal | E33: 32N-00001 | F33: OVS_ES ACADEMICO | G33: Catalogo principal | H33: USD | I33: N/A | J33: Microsoft® MyAnalytics Open Student All Languages Subscription Open Value No Level 1 Month Academic | K33: Unidad | L33: Und | M33: Producto | N33: N/A | O33: N/A | P33: N/A | Q33: 32N-00001 | R33: Suscripción mensual con pago anual | S33: 1.2 | T33: 1 | U33: 1 | V33: USD
A34: Catalogo principalOVS_ES ACADEMICO32P-00001 | B34: 32P-00001OVS_ES ACADEMICO | D34: Catalogo principal | E34: 32P-00001 | F34: OVS_ES ACADEMICO | G34: Catalogo principal | H34: USD | I34: N/A | J34: Microsoft® MyAnalytics Open Faculty All Languages Subscription Open Value Level E 1 Month Academic Additional Product | K34: Unidad | L34: Und | M34: Producto | N34: N/A | O34: N/A | P34: N/A | Q34: 32P-00001 | R34: Suscripción mensual con pago anual | S34: 1.5 | T34: 1 | U34: 1 | V34: USD
A35: Catalogo principalOVS_ES ACADEMICO32P-00002 | B35: 32P-00002OVS_ES ACADEMICO | D35: Catalogo principal | E35: 32P-00002 | F35: OVS_ES ACADEMICO | G35: Catalogo principal | H35: USD | I35: N/A | J35: Microsoft® MyAnalytics Open Faculty All Languages Subscription Open Value Level F 1 Month Academic Additional Product | K35: Unidad | L35: Und | M35: Producto | N35: N/A | O35: N/A | P35: N/A | Q35: 32P-00002 | R35: Suscripción mensual con pago anual | S35: 1.5 | T35: 1 | U35: 1 | V35: USD
A36: Catalogo principalOVS_ES ACADEMICO32S-00001 | B36: 32S-00001OVS_ES ACADEMICO | D36: Catalogo principal | E36: 32S-00001 | F36: OVS_ES ACADEMICO | G36: Catalogo principal | H36: USD | I36: N/A | J36: Microsoft® Teams Phone Standard Open Student All Languages Subscription Open Value No Level 1 Month Academic | K36: Unidad | L36: Und | M36: Producto | N36: N/A | O36: N/A | P36: N/A | Q36: 32S-00001 | R36: Suscripción mensual con pago anual | S36: 2.3 | T36: 1 | U36: 1 | V36: USD
A37: Catalogo principalOVS_ES ACADEMICO32V-00001 | B37: 32V-00001OVS_ES ACADEMICO | D37: Catalogo principal | E37: 32V-00001 | F37: OVS_ES ACADEMICO | G37: Catalogo principal | H37: USD | I37: N/A | J37: Microsoft® Teams Phone Standard Open Faculty All Languages Subscription Open Value Level E 1 Month Academic AP | K37: Unidad | L37: Und | M37: Producto | N37: N/A | O37: N/A | P37: N/A | Q37: 32V-00001 | R37: Suscripción mensual con pago anual | S37: 3 | T37: 1 | U37: 1 | V37: USD
A38: Catalogo principalOVS_ES ACADEMICO32V-00002 | B38: 32V-00002OVS_ES ACADEMICO | D38: Catalogo principal | E38: 32V-00002 | F38: OVS_ES ACADEMICO | G38: Catalogo principal | H38: USD | I38: N/A | J38: Microsoft® Teams Phone Standard Open Faculty All Languages Subscription Open Value Level F 1 Month Academic AP | K38: Unidad | L38: Und | M38: Producto | N38: N/A | O38: N/A | P38: N/A | Q38: 32V-00002 | R38: Suscripción mensual con pago anual | S38: 3 | T38: 1 | U38: 1 | V38: USD
A39: Catalogo principalOVS_ES ACADEMICO359-05410 | B39: 359-05410OVS_ES ACADEMICO | D39: Catalogo principal | E39: 359-05410 | F39: OVS_ES ACADEMICO | G39: Catalogo principal | H39: USD | I39: N/A | J39: Microsoft®SQLCAL AllLng License/SoftwareAssurancePack Academic OLV 1License LevelE AdditionalProduct DvcCAL 1Year | K39: Unidad | L39: Und | M39: Producto | N39: N/A | O39: N/A | P39: N/A | Q39: 359-05410 | R39: Suscripción Anual | S39: 22 | T39: 1 | U39: 1 | V39: USD
A40: Catalogo principalOVS_ES ACADEMICO359-05411 | B40: 359-05411OVS_ES ACADEMICO | D40: Catalogo principal | E40: 359-05411 | F40: OVS_ES ACADEMICO | G40: Catalogo principal | H40: USD | I40: N/A | J40: Microsoft®SQLCAL AllLng License/SoftwareAssurancePack Academic OLV 1License LevelF AdditionalProduct DvcCAL 1Year | K40: Unidad | L40: Und | M40: Producto | N40: N/A | O40: N/A | P40: N/A | Q40: 359-05411 | R40: Suscripción Anual | S40: 22 | T40: 1 | U40: 1 | V40: USD
A41: Catalogo principalOVS_ES ACADEMICO359-05412 | B41: 359-05412OVS_ES ACADEMICO | D41: Catalogo principal | E41: 359-05412 | F41: OVS_ES ACADEMICO | G41: Catalogo principal | H41: USD | I41: N/A | J41: Microsoft®SQLCAL AllLng License/SoftwareAssurancePack Academic OLV 1License LevelE AdditionalProduct UsrCAL 1Year | K41: Unidad | L41: Und | M41: Producto | N41: N/A | O41: N/A | P41: N/A | Q41: 359-05412 | R41: Suscripción Anual | S41: 22 | T41: 1 | U41: 1 | V41: USD
A42: Catalogo principalOVS_ES ACADEMICO359-05413 | B42: 359-05413OVS_ES ACADEMICO | D42: Catalogo principal | E42: 359-05413 | F42: OVS_ES ACADEMICO | G42: Catalogo principal | H42: USD | I42: N/A | J42: Microsoft®SQLCAL AllLng License/SoftwareAssurancePack Academic OLV 1License LevelF AdditionalProduct UsrCAL 1Year | K42: Unidad | L42: Und | M42: Producto | N42: N/A | O42: N/A | P42: N/A | Q42: 359-05413 | R42: Suscripción Anual | S42: 22 | T42: 1 | U42: 1 | V42: USD
A43: Catalogo principalOVS_ES ACADEMICO359-05414 | B43: 359-05414OVS_ES ACADEMICO | D43: Catalogo principal | E43: 359-05414 | F43: OVS_ES ACADEMICO | G43: Catalogo principal | H43: USD | I43: N/A | J43: Microsoft®SQLCAL AllLng License/SoftwareAssurancePack Academic OLV 1License LevelE Enterprise DvcCAL 1Year | K43: Unidad | L43: Und | M43: Producto | N43: N/A | O43: N/A | P43: N/A | Q43: 359-05414 | R43: Suscripción Anual | S43: 8 | T43: 1 | U43: 1 | V43: USD
A44: Catalogo principalOVS_ES ACADEMICO359-05415 | B44: 359-05415OVS_ES ACADEMICO | D44: Catalogo principal | E44: 359-05415 | F44: OVS_ES ACADEMICO | G44: Catalogo principal | H44: USD | I44: N/A | J44: Microsoft®SQLCAL AllLng License/SoftwareAssurancePack Academic OLV 1License LevelF Enterprise DvcCAL 1Year | K44: Unidad | L44: Und | M44: Producto | N44: N/A | O44: N/A | P44: N/A | Q44: 359-05415 | R44: Suscripción Anual | S44: 8 | T44: 1 | U44: 1 | V44: USD
A45: Catalogo principalOVS_ES ACADEMICO359-05416 | B45: 359-05416OVS_ES ACADEMICO | D45: Catalogo principal | E45: 359-05416 | F45: OVS_ES ACADEMICO | G45: Catalogo principal | H45: USD | I45: N/A | J45: Microsoft®SQLCAL AllLng License/SoftwareAssurancePack Academic OLV 1License LevelE Enterprise UsrCAL 1Year | K45: Unidad | L45: Und | M45: Producto | N45: N/A | O45: N/A | P45: N/A | Q45: 359-05416 | R45: Suscripción Anual | S45: 8 | T45: 1 | U45: 1 | V45: USD
A46: Catalogo principalOVS_ES ACADEMICO359-05417 | B46: 359-05417OVS_ES ACADEMICO | D46: Catalogo principal | E46: 359-05417 | F46: OVS_ES ACADEMICO | G46: Catalogo principal | H46: USD | I46: N/A | J46: Microsoft®SQLCAL AllLng License/SoftwareAssurancePack Academic OLV 1License LevelF Enterprise UsrCAL 1Year | K46: Unidad | L46: Und | M46: Producto | N46: N/A | O46: N/A | P46: N/A | Q46: 359-05417 | R46: Suscripción Anual | S46: 8 | T46: 1 | U46: 1 | V46: USD
A47: Catalogo principalOVS_ES ACADEMICO359-05418 | B47: 359-05418OVS_ES ACADEMICO | D47: Catalogo principal | E47: 359-05418 | F47: OVS_ES ACADEMICO | G47: Catalogo principal | H47: USD | I47: N/A | J47: Microsoft®SQLCAL AllLng License/SoftwareAssurancePack Academic OLV 1License NoLevel Student DvcCAL 1Year | K47: Unidad | L47: Und | M47: Producto | N47: N/A | O47: N/A | P47: N/A | Q47: 359-05418 | R47: Suscripción Anual | S47: 8 | T47: 1 | U47: 1 | V47: USD
A48: Catalogo principalOVS_ES ACADEMICO359-05419 | B48: 359-05419OVS_ES ACADEMICO | D48: Catalogo principal | E48: 359-05419 | F48: OVS_ES ACADEMICO | G48: Catalogo principal | H48: USD | I48: N/A | J48: Microsoft®SQLCAL AllLng License/SoftwareAssurancePack Academic OLV 1License NoLevel Student UsrCAL 1Year | K48: Unidad | L48: Und | M48: Producto | N48: N/A | O48: N/A | P48: N/A | Q48: 359-05419 | R48: Suscripción Anual | S48: 8 | T48: 1 | U48: 1 | V48: USD
A49: Catalogo principalOVS_ES ACADEMICO381-04234 | B49: 381-04234OVS_ES ACADEMICO | D49: Catalogo principal | E49: 381-04234 | F49: OVS_ES ACADEMICO | G49: Catalogo principal | H49: USD | I49: N/A | J49: Microsoft®ExchangeStandardCAL AllLng License/SoftwareAssurancePack Academic OLV 1License LevelE Enterprise DvcCAL 1Year | K49: Unidad | L49: Und | M49: Producto | N49: N/A | O49: N/A | P49: N/A | Q49: 381-04234 | R49: Suscripción Anual | S49: 3.28 | T49: 1 | U49: 1 | V49: USD
A50: Catalogo principalOVS_ES ACADEMICO381-04235 | B50: 381-04235OVS_ES ACADEMICO | D50: Catalogo principal | E50: 381-04235 | F50: OVS_ES ACADEMICO | G50: Catalogo principal | H50: USD | I50: N/A | J50: Microsoft®ExchangeStandardCAL AllLng License/SoftwareAssurancePack Academic OLV 1License LevelF Enterprise DvcCAL 1Year | K50: Unidad | L50: Und | M50: Producto | N50: N/A | O50: N/A | P50: N/A | Q50: 381-04235 | R50: Suscripción Anual | S50: 3.28 | T50: 1 | U50: 1 | V50: USD
A51: Catalogo principalOVS_ES ACADEMICO381-04236 | B51: 381-04236OVS_ES ACADEMICO | D51: Catalogo principal | E51: 381-04236 | F51: OVS_ES ACADEMICO | G51: Catalogo principal | H51: USD | I51: N/A | J51: Microsoft®ExchangeStandardCAL AllLng License/SoftwareAssurancePack Academic OLV 1License LevelE Enterprise UsrCAL 1Year | K51: Unidad | L51: Und | M51: Producto | N51: N/A | O51: N/A | P51: N/A | Q51: 381-04236 | R51: Suscripción Anual | S51: 3.12 | T51: 1 | U51: 1 | V51: USD
A52: Catalogo principalOVS_ES ACADEMICO381-04237 | B52: 381-04237OVS_ES ACADEMICO | D52: Catalogo principal | E52: 381-04237 | F52: OVS_ES ACADEMICO | G52: Catalogo principal | H52: USD | I52: N/A | J52: Microsoft®ExchangeStandardCAL AllLng License/SoftwareAssurancePack Academic OLV 1License LevelF Enterprise UsrCAL 1Year | K52: Unidad | L52: Und | M52: Producto | N52: N/A | O52: N/A | P52: N/A | Q52: 381-04237 | R52: Suscripción Anual | S52: 3.12 | T52: 1 | U52: 1 | V52: USD
A53: Catalogo principalOVS_ES ACADEMICO381-04238 | B53: 381-04238OVS_ES ACADEMICO | D53: Catalogo principal | E53: 381-04238 | F53: OVS_ES ACADEMICO | G53: Catalogo principal | H53: USD | I53: N/A | J53: Microsoft®ExchangeStandardCAL AllLng License/SoftwareAssurancePack Academic OLV 1License NoLevel Student DvcCAL 1Year | K53: Unidad | L53: Und | M53: Producto | N53: N/A | O53: N/A | P53: N/A | Q53: 381-04238 | R53: Suscripción Anual | S53: 0.78 | T53: 1 | U53: 1 | V53: USD
A54: Catalogo principalOVS_ES ACADEMICO381-04239 | B54: 381-04239OVS_ES ACADEMICO | D54: Catalogo principal | E54: 381-04239 | F54: OVS_ES ACADEMICO | G54: Catalogo principal | H54: USD | I54: N/A | J54: Microsoft®ExchangeStandardCAL AllLng License/SoftwareAssurancePack Academic OLV 1License NoLevel Student UsrCAL 1Year | K54: Unidad | L54: Und | M54: Producto | N54: N/A | O54: N/A | P54: N/A | Q54: 381-04239 | R54: Suscripción Anual | S54: 0.78 | T54: 1 | U54: 1 | V54: USD
A55: Catalogo principalOVS_ES ACADEMICO395-04412 | B55: 395-04412OVS_ES ACADEMICO | D55: Catalogo principal | E55: 395-04412 | F55: OVS_ES ACADEMICO | G55: Catalogo principal | H55: USD | I55: N/A | J55: Microsoft®ExchangeServerEnterprise AllLng License/SoftwareAssurancePack Academic OLV 1License LevelE AdditionalProduct 1Year | K55: Unidad | L55: Und | M55: Producto | N55: N/A | O55: N/A | P55: N/A | Q55: 395-04412 | R55: Suscripción Anual | S55: 469 | T55: 1 | U55: 1 | V55: USD
A56: Catalogo principalOVS_ES ACADEMICO395-04413 | B56: 395-04413OVS_ES ACADEMICO | D56: Catalogo principal | E56: 395-04413 | F56: OVS_ES ACADEMICO | G56: Catalogo principal | H56: USD | I56: N/A | J56: Microsoft®ExchangeServerEnterprise AllLng License/SoftwareAssurancePack Academic OLV 1License LevelF AdditionalProduct 1Year | K56: Unidad | L56: Und | M56: Producto | N56: N/A | O56: N/A | P56: N/A | Q56: 395-04413 | R56: Suscripción Anual | S56: 469 | T56: 1 | U56: 1 | V56: USD
A57: =D57&F57&E57 -> Catalogo principalOVS_ES ACADEMICO395-04414 | B57: =E57&F57 -> 395-04414OVS_ES ACADEMICO | D57: Catalogo principal | E57: 395-04414 | F57: OVS_ES ACADEMICO | G57: Catalogo principal | H57: USD | I57: N/A | J57: Microsoft®ExchangeServerEnterprise AllLng SAStepUp Academic OLV 1License LevelE ExchangeServer-Standard AdditionalProduct 1Year | K57: Unidad | L57: Und | M57: Producto | N57: N/A | O57: N/A | P57: N/A | Q57: 395-04414 | R57: Suscripción Anual | S57: 387 | T57: 1 | U57: 1 | V57: USD
A58: Catalogo principalOVS_ES ACADEMICO395-04415 | B58: 395-04415OVS_ES ACADEMICO | D58: Catalogo principal | E58: 395-04415 | F58: OVS_ES ACADEMICO | G58: Catalogo principal | H58: USD | I58: N/A | J58: Microsoft®ExchangeServerEnterprise AllLng SAStepUp Academic OLV 1License LevelF ExchangeServer-Standard AdditionalProduct 1Year | K58: Unidad | L58: Und | M58: Producto | N58: N/A | O58: N/A | P58: N/A | Q58: 395-04415 | R58: Suscripción Anual | S58: 387 | T58: 1 | U58: 1 | V58: USD
A59: Catalogo principalOVS_ES ACADEMICO3LN-00001 | B59: 3LN-00001OVS_ES ACADEMICO | D59: Catalogo principal | E59: 3LN-00001 | F59: OVS_ES ACADEMICO | G59: Catalogo principal | H59: USD | I59: N/A | J59: Microsoft® Intune Open All Languages Subscription Open Value Level E 1 Month Academic Additional Product Faculty | K59: Unidad | L59: Und | M59: Producto | N59: N/A | O59: N/A | P59: N/A | Q59: 3LN-00001 | R59: Suscripción mensual con pago anual | S59: 0.61 | T59: 1 | U59: 1 | V59: USD
A60: Catalogo principalOVS_ES ACADEMICO3LN-00002 | B60: 3LN-00002OVS_ES ACADEMICO | D60: Catalogo principal | E60: 3LN-00002 | F60: OVS_ES ACADEMICO | G60: Catalogo principal | H60: USD | I60: N/A | J60: Microsoft® Intune Open All Languages Subscription Open Value Level F 1 Month Academic Additional Product Faculty | K60: Unidad | L60: Und | M60: Producto | N60: N/A | O60: N/A | P60: N/A | Q60: 3LN-00002 | R60: Suscripción mensual con pago anual | S60: 0.61 | T60: 1 | U60: 1 | V60: USD
A61: Catalogo principalOVS_ES ACADEMICO3LN-00004 | B61: 3LN-00004OVS_ES ACADEMICO | D61: Catalogo principal | E61: 3LN-00004 | F61: OVS_ES ACADEMICO | G61: Catalogo principal | H61: USD | I61: N/A | J61: Microsoft® Intune Open All Languages Subscription Open Value No Level 1 Month Academic Student | K61: Unidad | L61: Und | M61: Producto | N61: N/A | O61: N/A | P61: N/A | Q61: 3LN-00004 | R61: Suscripción mensual con pago anual | S61: 0.61 | T61: 1 | U61: 1 | V61: USD
A62: Catalogo principalOVS_ES ACADEMICO3LN-00012 | B62: 3LN-00012OVS_ES ACADEMICO | D62: Catalogo principal | E62: 3LN-00012 | F62: OVS_ES ACADEMICO | G62: Catalogo principal | H62: USD | I62: N/A | J62: Microsoft® Intune Open All Languages Subscription Open Value No Level 1 Month Academic OLS Student | K62: Unidad | L62: Und | M62: Producto | N62: N/A | O62: N/A | P62: N/A | Q62: 3LN-00012 | R62: Suscripción mensual con pago anual | S62: 0.61 | T62: 1 | U62: 1 | V62: USD
A63: Catalogo principalOVS_ES ACADEMICO3LN-00013 | B63: 3LN-00013OVS_ES ACADEMICO | D63: Catalogo principal | E63: 3LN-00013 | F63: OVS_ES ACADEMICO | G63: Catalogo principal | H63: USD | I63: N/A | J63: Microsoft® Intune Open All Languages Subscription Open Value Level E 1 Month Academic AP OLS Faculty | K63: Unidad | L63: Und | M63: Producto | N63: N/A | O63: N/A | P63: N/A | Q63: 3LN-00013 | R63: Suscripción mensual con pago anual | S63: 0.61 | T63: 1 | U63: 1 | V63: USD
A64: Catalogo principalOVS_ES ACADEMICO3LN-00014 | B64: 3LN-00014OVS_ES ACADEMICO | D64: Catalogo principal | E64: 3LN-00014 | F64: OVS_ES ACADEMICO | G64: Catalogo principal | H64: USD | I64: N/A | J64: Microsoft® Intune Open All Languages Subscription Open Value Level F 1 Month Academic AP OLS Faculty | K64: Unidad | L64: Und | M64: Producto | N64: N/A | O64: N/A | P64: N/A | Q64: 3LN-00014 | R64: Suscripción mensual con pago anual | S64: 0.61 | T64: 1 | U64: 1 | V64: USD
A65: Catalogo principalOVS_ES ACADEMICO3LN-00016 | B65: 3LN-00016OVS_ES ACADEMICO | D65: Catalogo principal | E65: 3LN-00016 | F65: OVS_ES ACADEMICO | G65: Catalogo principal | H65: USD | I65: N/A | J65: Microsoft® Intune Open All Languages Subscription Open Value Level E 1 Month Academic Additional Product Student Use Benefit Renewal Only | K65: Unidad | L65: Und | M65: Producto | N65: N/A | O65: N/A | P65: N/A | Q65: 3LN-00016 | R65: Suscripción mensual con pago anual | S65: 0 | T65: 1 | U65: 1 | V65: USD
A66: Catalogo principalOVS_ES ACADEMICO3LN-00017 | B66: 3LN-00017OVS_ES ACADEMICO | D66: Catalogo principal | E66: 3LN-00017 | F66: OVS_ES ACADEMICO | G66: Catalogo principal | H66: USD | I66: N/A | J66: Microsoft® Intune Open All Languages Subscription Open Value Level F 1 Month Academic Additional Product Student Use Benefit Renewal Only | K66: Unidad | L66: Und | M66: Producto | N66: N/A | O66: N/A | P66: N/A | Q66: 3LN-00017 | R66: Suscripción mensual con pago anual | S66: 0 | T66: 1 | U66: 1 | V66: USD
A67: Catalogo principalOVS_ES ACADEMICO3LN-00018 | B67: 3LN-00018OVS_ES ACADEMICO | D67: Catalogo principal | E67: 3LN-00018 | F67: OVS_ES ACADEMICO | G67: Catalogo principal | H67: USD | I67: N/A | J67: Microsoft® Intune Open All Languages Subscription Open Value No Level 1 Month Academic Student with Faculty Renewal Only | K67: Unidad | L67: Und | M67: Producto | N67: N/A | O67: N/A | P67: N/A | Q67: 3LN-00018 | R67: Suscripción mensual con pago anual | S67: 0 | T67: 1 | U67: 1 | V67: USD
A68: Catalogo principalOVS_ES ACADEMICO3ND-00739 | B68: 3ND-00739OVS_ES ACADEMICO | D68: Catalogo principal | E68: 3ND-00739 | F68: OVS_ES ACADEMICO | G68: Catalogo principal | H68: USD | I68: N/A | J68: Microsoft®SysCtrServiceMgrCltMgmtLic AllLng License/SoftwareAssurancePack Academic OLV 1License LevelE Enterprise PerOSE 1Year | K68: Unidad | L68: Und | M68: Producto | N68: N/A | O68: N/A | P68: N/A | Q68: 3ND-00739 | R68: Suscripción Anual | S68: 1.25 | T68: 1 | U68: 1 | V68: USD
A69: Catalogo principalOVS_ES ACADEMICO3ND-00740 | B69: 3ND-00740OVS_ES ACADEMICO | D69: Catalogo principal | E69: 3ND-00740 | F69: OVS_ES ACADEMICO | G69: Catalogo principal | H69: USD | I69: N/A | J69: Microsoft®SysCtrServiceMgrCltMgmtLic AllLng License/SoftwareAssurancePack Academic OLV 1License LevelF Enterprise PerOSE 1Year | K69: Unidad | L69: Und | M69: Producto | N69: N/A | O69: N/A | P69: N/A | Q69: 3ND-00740 | R69: Suscripción Anual | S69: 1.25 | T69: 1 | U69: 1 | V69: USD
A70: Catalogo principalOVS_ES ACADEMICO3ND-00741 | B70: 3ND-00741OVS_ES ACADEMICO | D70: Catalogo principal | E70: 3ND-00741 | F70: OVS_ES ACADEMICO | G70: Catalogo principal | H70: USD | I70: N/A | J70: Microsoft®SysCtrServiceMgrCltMgmtLic AllLng License/SoftwareAssurancePack Academic OLV 1License LevelE Enterprise PerUsr 1Year | K70: Unidad | L70: Und | M70: Producto | N70: N/A | O70: N/A | P70: N/A | Q70: 3ND-00741 | R70: Suscripción Anual | S70: 1.25 | T70: 1 | U70: 1 | V70: USD
A71: Catalogo principalOVS_ES ACADEMICO3ND-00742 | B71: 3ND-00742OVS_ES ACADEMICO | D71: Catalogo principal | E71: 3ND-00742 | F71: OVS_ES ACADEMICO | G71: Catalogo principal | H71: USD | I71: N/A | J71: Microsoft®SysCtrServiceMgrCltMgmtLic AllLng License/SoftwareAssurancePack Academic OLV 1License LevelF Enterprise PerUsr 1Year | K71: Unidad | L71: Und | M71: Producto | N71: N/A | O71: N/A | P71: N/A | Q71: 3ND-00742 | R71: Suscripción Anual | S71: 1.25 | T71: 1 | U71: 1 | V71: USD
A72: Catalogo principalOVS_ES ACADEMICO3ND-00743 | B72: 3ND-00743OVS_ES ACADEMICO | D72: Catalogo principal | E72: 3ND-00743 | F72: OVS_ES ACADEMICO | G72: Catalogo principal | H72: USD | I72: N/A | J72: Microsoft®SysCtrServiceMgrCltMgmtLic AllLng License/SoftwareAssurancePack Academic OLV 1License NoLevel Student PerOSE 1Year | K72: Unidad | L72: Und | M72: Producto | N72: N/A | O72: N/A | P72: N/A | Q72: 3ND-00743 | R72: Suscripción Anual | S72: 0.94 | T72: 1 | U72: 1 | V72: USD
A73: Catalogo principalOVS_ES ACADEMICO3ND-00744 | B73: 3ND-00744OVS_ES ACADEMICO | D73: Catalogo principal | E73: 3ND-00744 | F73: OVS_ES ACADEMICO | G73: Catalogo principal | H73: USD | I73: N/A | J73: Microsoft®SysCtrServiceMgrCltMgmtLic AllLng License/SoftwareAssurancePack Academic OLV 1License NoLevel Student PerUsr 1Year | K73: Unidad | L73: Und | M73: Producto | N73: N/A | O73: N/A | P73: N/A | Q73: 3ND-00744 | R73: Suscripción Anual | S73: 0.94 | T73: 1 | U73: 1 | V73: USD
A74: Catalogo principalOVS_ES ACADEMICO3VU-00001 | B74: 3VU-00001OVS_ES ACADEMICO | D74: Catalogo principal | E74: 3VU-00001 | F74: OVS_ES ACADEMICO | G74: Catalogo principal | H74: USD | I74: N/A | J74: Microsoft® MSDN Platforms All Languages License & Software Assurance Open Value Level E 1 Year Academic Additional Product | K74: Unidad | L74: Und | M74: Producto | N74: N/A | O74: N/A | P74: N/A | Q74: 3VU-00001 | R74: Suscripción Anual | S74: 156 | T74: 1 | U74: 1 | V74: USD
A75: Catalogo principalOVS_ES ACADEMICO3VU-00002 | B75: 3VU-00002OVS_ES ACADEMICO | D75: Catalogo principal | E75: 3VU-00002 | F75: OVS_ES ACADEMICO | G75: Catalogo principal | H75: USD | I75: N/A | J75: Microsoft® MSDN Platforms All Languages License & Software Assurance Open Value Level F 1 Year Academic Additional Product | K75: Unidad | L75: Und | M75: Producto | N75: N/A | O75: N/A | P75: N/A | Q75: 3VU-00002 | R75: Suscripción Anual | S75: 156 | T75: 1 | U75: 1 | V75: USD
A76: Catalogo principalOVS_ES ACADEMICO3ZK-00219 | B76: 3ZK-00219OVS_ES ACADEMICO | D76: Catalogo principal | E76: 3ZK-00219 | F76: OVS_ES ACADEMICO | G76: Catalogo principal | H76: USD | I76: N/A | J76: Microsoft®SysCtrOrchestratorSvr AllLng License/SoftwareAssurancePack Academic OLV 1License LevelE Enterprise PerOSE 1Year | K76: Unidad | L76: Und | M76: Producto | N76: N/A | O76: N/A | P76: N/A | Q76: 3ZK-00219 | R76: Suscripción Anual | S76: 1.25 | T76: 1 | U76: 1 | V76: USD
A77: Catalogo principalOVS_ES ACADEMICO3ZK-00220 | B77: 3ZK-00220OVS_ES ACADEMICO | D77: Catalogo principal | E77: 3ZK-00220 | F77: OVS_ES ACADEMICO | G77: Catalogo principal | H77: USD | I77: N/A | J77: Microsoft®SysCtrOrchestratorSvr AllLng License/SoftwareAssurancePack Academic OLV 1License LevelF Enterprise PerOSE 1Year | K77: Unidad | L77: Und | M77: Producto | N77: N/A | O77: N/A | P77: N/A | Q77: 3ZK-00220 | R77: Suscripción Anual | S77: 1.25 | T77: 1 | U77: 1 | V77: USD
A78: Catalogo principalOVS_ES ACADEMICO3ZK-00221 | B78: 3ZK-00221OVS_ES ACADEMICO | D78: Catalogo principal | E78: 3ZK-00221 | F78: OVS_ES ACADEMICO | G78: Catalogo principal | H78: USD | I78: N/A | J78: Microsoft®SysCtrOrchestratorSvr AllLng License/SoftwareAssurancePack Academic OLV 1License LevelE Enterprise PerUsr 1Year | K78: Unidad | L78: Und | M78: Producto | N78: N/A | O78: N/A | P78: N/A | Q78: 3ZK-00221 | R78: Suscripción Anual | S78: 1.25 | T78: 1 | U78: 1 | V78: USD
A79: Catalogo principalOVS_ES ACADEMICO3ZK-00222 | B79: 3ZK-00222OVS_ES ACADEMICO | D79: Catalogo principal | E79: 3ZK-00222 | F79: OVS_ES ACADEMICO | G79: Catalogo principal | H79: USD | I79: N/A | J79: Microsoft®SysCtrOrchestratorSvr AllLng License/SoftwareAssurancePack Academic OLV 1License LevelF Enterprise PerUsr 1Year | K79: Unidad | L79: Und | M79: Producto | N79: N/A | O79: N/A | P79: N/A | Q79: 3ZK-00222 | R79: Suscripción Anual | S79: 1.25 | T79: 1 | U79: 1 | V79: USD
A80: Catalogo principalOVS_ES ACADEMICO3ZK-00378 | B80: 3ZK-00378OVS_ES ACADEMICO | D80: Catalogo principal | E80: 3ZK-00378 | F80: OVS_ES ACADEMICO | G80: Catalogo principal | H80: USD | I80: N/A | J80: Microsoft®SysCtrOrchestratorSvr AllLng License/SoftwareAssurancePack Academic OLV 1License NoLevel Student PerOSE 1Year | K80: Unidad | L80: Und | M80: Producto | N80: N/A | O80: N/A | P80: N/A | Q80: 3ZK-00378 | R80: Suscripción Anual | S80: 0.94 | T80: 1 | U80: 1 | V80: USD
A81: Catalogo principalOVS_ES ACADEMICO3ZK-00379 | B81: 3ZK-00379OVS_ES ACADEMICO | D81: Catalogo principal | E81: 3ZK-00379 | F81: OVS_ES ACADEMICO | G81: Catalogo principal | H81: USD | I81: N/A | J81: Microsoft®SysCtrOrchestratorSvr AllLng License/SoftwareAssurancePack Academic OLV 1License NoLevel Student PerUsr 1Year | K81: Unidad | L81: Und | M81: Producto | N81: N/A | O81: N/A | P81: N/A | Q81: 3ZK-00379 | R81: Suscripción Anual | S81: 0.94 | T81: 1 | U81: 1 | V81: USD
A82: Catalogo principalOVS_ES ACADEMICO4ZF-00177 | B82: 4ZF-00177OVS_ES ACADEMICO | D82: Catalogo principal | E82: 4ZF-00177 | F82: OVS_ES ACADEMICO | G82: Catalogo principal | H82: USD | I82: N/A | J82: Microsoft®WINVDAPerDevice AllLng MonthlySubscriptions-VolumeLicense Academic OLV 1License LevelE AdditionalProduct PerDvc 1Month | K82: Unidad | L82: Und | M82: Producto | N82: N/A | O82: N/A | P82: N/A | Q82: 4ZF-00177 | R82: Suscripción mensual con pago anual | S82: 3.34 | T82: 1 | U82: 1 | V82: USD
A83: Catalogo principalOVS_ES ACADEMICO4ZF-00178 | B83: 4ZF-00178OVS_ES ACADEMICO | D83: Catalogo principal | E83: 4ZF-00178 | F83: OVS_ES ACADEMICO | G83: Catalogo principal | H83: USD | I83: N/A | J83: Microsoft®WINVDAPerDevice AllLng MonthlySubscriptions-VolumeLicense Academic OLV 1License LevelF AdditionalProduct PerDvc 1Month | K83: Unidad | L83: Und | M83: Producto | N83: N/A | O83: N/A | P83: N/A | Q83: 4ZF-00178 | R83: Suscripción mensual con pago anual | S83: 3.34 | T83: 1 | U83: 1 | V83: USD
A84: Catalogo principalOVS_ES ACADEMICO5A4-00001 | B84: 5A4-00001OVS_ES ACADEMICO | D84: Catalogo principal | E84: 5A4-00001 | F84: OVS_ES ACADEMICO | G84: Catalogo principal | H84: USD | I84: N/A | J84: Microsoft®O365ExtraFileStorageOpenFAC ShrdSvr AllLng MonthlySubscriptions-VolumeLicense Academic OLV 1License LevelE AdditionalProduct Addon 1Month | K84: Unidad | L84: Und | M84: Producto | N84: N/A | O84: N/A | P84: N/A | Q84: 5A4-00001 | R84: Suscripción mensual con pago anual | S84: 0.3 | T84: 1 | U84: 1 | V84: USD
A85: Catalogo principalOVS_ES ACADEMICO5A4-00002 | B85: 5A4-00002OVS_ES ACADEMICO | D85: Catalogo principal | E85: 5A4-00002 | F85: OVS_ES ACADEMICO | G85: Catalogo principal | H85: USD | I85: N/A | J85: Microsoft®O365ExtraFileStorageOpenFAC ShrdSvr AllLng MonthlySubscriptions-VolumeLicense Academic OLV 1License LevelF AdditionalProduct Addon 1Month | K85: Unidad | L85: Und | M85: Producto | N85: N/A | O85: N/A | P85: N/A | Q85: 5A4-00002 | R85: Suscripción mensual con pago anual | S85: 0.3 | T85: 1 | U85: 1 | V85: USD
A86: Catalogo principalOVS_ES ACADEMICO5A6-00001 | B86: 5A6-00001OVS_ES ACADEMICO | D86: Catalogo principal | E86: 5A6-00001 | F86: OVS_ES ACADEMICO | G86: Catalogo principal | H86: USD | I86: N/A | J86: Microsoft®EOAforExchangeOnlineOpenSTU ShrdSvr AllLng MonthlySubscriptions-VolumeLicense Academic OLV 1License NoLevel Student Addon 1Month | K86: Unidad | L86: Und | M86: Producto | N86: N/A | O86: N/A | P86: N/A | Q86: 5A6-00001 | R86: Suscripción mensual con pago anual | S86: 1 | T86: 1 | U86: 1 | V86: USD
A87: Catalogo principalOVS_ES ACADEMICO5A7-00001 | B87: 5A7-00001OVS_ES ACADEMICO | D87: Catalogo principal | E87: 5A7-00001 | F87: OVS_ES ACADEMICO | G87: Catalogo principal | H87: USD | I87: N/A | J87: Microsoft®EOAforExchangeOnlineOpenFAC ShrdSvr AllLng MonthlySubscriptions-VolumeLicense Academic OLV 1License LevelE AdditionalProduct Addon 1Month | K87: Unidad | L87: Und | M87: Producto | N87: N/A | O87: N/A | P87: N/A | Q87: 5A7-00001 | R87: Suscripción mensual con pago anual | S87: 1 | T87: 1 | U87: 1 | V87: USD
A88: Catalogo principalOVS_ES ACADEMICO5A7-00002 | B88: 5A7-00002OVS_ES ACADEMICO | D88: Catalogo principal | E88: 5A7-00002 | F88: OVS_ES ACADEMICO | G88: Catalogo principal | H88: USD | I88: N/A | J88: Microsoft®EOAforExchangeOnlineOpenFAC ShrdSvr AllLng MonthlySubscriptions-VolumeLicense Academic OLV 1License LevelF AdditionalProduct Addon 1Month | K88: Unidad | L88: Und | M88: Producto | N88: N/A | O88: N/A | P88: N/A | Q88: 5A7-00002 | R88: Suscripción mensual con pago anual | S88: 1 | T88: 1 | U88: 1 | V88: USD
A89: Catalogo principalOVS_ES ACADEMICO5CN-00001 | B89: 5CN-00001OVS_ES ACADEMICO | D89: Catalogo principal | E89: 5CN-00001 | F89: OVS_ES ACADEMICO | G89: Catalogo principal | H89: USD | I89: N/A | J89: Microsoft®O365ExtraFileStorageOpenSTU ShrdSvr AllLng MonthlySubscriptions-VolumeLicense Academic OLV 1License NoLevel Student Addon 1Month | K89: Unidad | L89: Und | M89: Producto | N89: N/A | O89: N/A | P89: N/A | Q89: 5CN-00001 | R89: Suscripción mensual con pago anual | S89: 0.3 | T89: 1 | U89: 1 | V89: USD
A90: Catalogo principalOVS_ES ACADEMICO5FV-00001 | B90: 5FV-00001OVS_ES ACADEMICO | D90: Catalogo principal | E90: 5FV-00001 | F90: OVS_ES ACADEMICO | G90: Catalogo principal | H90: USD | I90: N/A | J90: Microsoft®Office365EDUE3forFacultyOpen ShrdSvr AllLng MonthlySubscriptions-VolumeLicense Academic OLV 1License LevelE AdditionalProduct 1MonthRenewal | K90: Unidad | L90: Und | M90: Producto | N90: N/A | O90: N/A | P90: N/A | Q90: 5FV-00001 | R90: Suscripción mensual con pago anual | S90: 2.3 | T90: 1 | U90: 1 | V90: USD
A91: Catalogo principalOVS_ES ACADEMICO5FV-00002 | B91: 5FV-00002OVS_ES ACADEMICO | D91: Catalogo principal | E91: 5FV-00002 | F91: OVS_ES ACADEMICO | G91: Catalogo principal | H91: USD | I91: N/A | J91: Microsoft®Office365EDUE3forFacultyOpen ShrdSvr AllLng MonthlySubscriptions-VolumeLicense Academic OLV 1License LevelF AdditionalProduct 1MonthRenewal | K91: Unidad | L91: Und | M91: Producto | N91: N/A | O91: N/A | P91: N/A | Q91: 5FV-00002 | R91: Suscripción mensual con pago anual | S91: 2.3 | T91: 1 | U91: 1 | V91: USD
A92: Catalogo principalOVS_ES ACADEMICO5FV-00004 | B92: 5FV-00004OVS_ES ACADEMICO | D92: Catalogo principal | E92: 5FV-00004 | F92: OVS_ES ACADEMICO | G92: Catalogo principal | H92: USD | I92: N/A | J92: Microsoft®O365EDUE3forFcltyOpn ShrdSvr AllLng MonthlySubscriptions Academic OLV 1License E AdditionalProduct AddOn frmCoreCAL/ECAL/OffProPlus 1MRenewa | K92: Unidad | L92: Und | M92: Producto | N92: N/A | O92: N/A | P92: N/A | Q92: 5FV-00004 | R92: Suscripción mensual con pago anual | S92: 0 | T92: 1 | U92: 1 | V92: USD
A93: Catalogo principalOVS_ES ACADEMICO5FV-00005 | B93: 5FV-00005OVS_ES ACADEMICO | D93: Catalogo principal | E93: 5FV-00005 | F93: OVS_ES ACADEMICO | G93: Catalogo principal | H93: USD | I93: N/A | J93: Microsoft®O365EDUE3forFcltyOpn ShrdSvr AllLng MonthlySubscriptions Academic OLV 1License F AdditionalProduct AddOn frmCoreCAL/ECAL/OffProPlus 1MRenewa | K93: Unidad | L93: Und | M93: Producto | N93: N/A | O93: N/A | P93: N/A | Q93: 5FV-00005 | R93: Suscripción mensual con pago anual | S93: 0 | T93: 1 | U93: 1 | V93: USD
A94: Catalogo principalOVS_ES ACADEMICO5FV-00007 | B94: 5FV-00007OVS_ES ACADEMICO | D94: Catalogo principal | E94: 5FV-00007 | F94: OVS_ES ACADEMICO | G94: Catalogo principal | H94: USD | I94: N/A | J94: Microsoft®O365EDUE3forFcltyOpn ShrdSvr AllLng MonthlySubscriptions Academic OLV 1License LevelE AdditionalProduct AddOn fromCoreCAL/ECAL 1MonthRenewal | K94: Unidad | L94: Und | M94: Producto | N94: N/A | O94: N/A | P94: N/A | Q94: 5FV-00007 | R94: Suscripción mensual con pago anual | S94: 2.3 | T94: 1 | U94: 1 | V94: USD
A95: Catalogo principalOVS_ES ACADEMICO5FV-00008 | B95: 5FV-00008OVS_ES ACADEMICO | D95: Catalogo principal | E95: 5FV-00008 | F95: OVS_ES ACADEMICO | G95: Catalogo principal | H95: USD | I95: N/A | J95: Microsoft®O365EDUE3forFcltyOpn ShrdSvr AllLng MonthlySubscriptions Academic OLV 1License LevelF AdditionalProduct AddOn fromCoreCAL/ECAL 1MonthRenewal | K95: Unidad | L95: Und | M95: Producto | N95: N/A | O95: N/A | P95: N/A | Q95: 5FV-00008 | R95: Suscripción mensual con pago anual | S95: 2.3 | T95: 1 | U95: 1 | V95: USD
A96: Catalogo principalOVS_ES ACADEMICO5FV-00009 | B96: 5FV-00009OVS_ES ACADEMICO | D96: Catalogo principal | E96: 5FV-00009 | F96: OVS_ES ACADEMICO | G96: Catalogo principal | H96: USD | I96: N/A | J96: Microsoft®O365EDUE3forFcltyOpn ShrdSvr AllLng MonthlySubscriptions Academic OLV 1License LevelE AdditionalProduct AddOn fromOfficeProPlus 1MonthRenewa | K96: Unidad | L96: Und | M96: Producto | N96: N/A | O96: N/A | P96: N/A | Q96: 5FV-00009 | R96: Suscripción mensual con pago anual | S96: 0 | T96: 1 | U96: 1 | V96: USD
A97: Catalogo principalOVS_ES ACADEMICO5FV-00010 | B97: 5FV-00010OVS_ES ACADEMICO | D97: Catalogo principal | E97: 5FV-00010 | F97: OVS_ES ACADEMICO | G97: Catalogo principal | H97: USD | I97: N/A | J97: Microsoft®O365EDUE3forFcltyOpn ShrdSvr AllLng MonthlySubscriptions Academic OLV 1License LevelF AdditionalProduct AddOn fromOfficeProPlus 1MonthRenewa | K97: Unidad | L97: Und | M97: Producto | N97: N/A | O97: N/A | P97: N/A | Q97: 5FV-00010 | R97: Suscripción mensual con pago anual | S97: 0 | T97: 1 | U97: 1 | V97: USD
A98: Catalogo principalOVS_ES ACADEMICO5HU-00035 | B98: 5HU-00035OVS_ES ACADEMICO | D98: Catalogo principal | E98: 5HU-00035 | F98: OVS_ES ACADEMICO | G98: Catalogo principal | H98: USD | I98: N/A | J98: Microsoft®SfBServer AllLng License/SoftwareAssurancePack Academic OLV 1License LevelE AdditionalProduct 1Year | K98: Unidad | L98: Und | M98: Producto | N98: N/A | O98: N/A | P98: N/A | Q98: 5HU-00035 | R98: Suscripción Anual | S98: 422 | T98: 1 | U98: 1 | V98: USD
A99: Catalogo principalOVS_ES ACADEMICO5HU-00036 | B99: 5HU-00036OVS_ES ACADEMICO | D99: Catalogo principal | E99: 5HU-00036 | F99: OVS_ES ACADEMICO | G99: Catalogo principal | H99: USD | I99: N/A | J99: Microsoft®SfBServer AllLng License/SoftwareAssurancePack Academic OLV 1License LevelF AdditionalProduct 1Year | K99: Unidad | L99: Und | M99: Producto | N99: N/A | O99: N/A | P99: N/A | Q99: 5HU-00036 | R99: Suscripción Anual | S99: 422 | T99: 1 | U99: 1 | V99: USD
A100: Catalogo principalOVS_ES ACADEMICO6EM-00001 | B100: 6EM-00001OVS_ES ACADEMICO | D100: Catalogo principal | E100: 6EM-00001 | F100: OVS_ES ACADEMICO | G100: Catalogo principal | H100: USD | I100: N/A | J100: Microsoft®AzureActiveDirectoryPremP2Open ShrdSvr AllLng MonthlySubscriptions-VolumeLicense Academic OLV 1License LevelE AdditionalProduct Faculty 1Mth | K100: Unidad | L100: Und | M100: Producto | N100: N/A | O100: N/A | P100: N/A | Q100: 6EM-00001 | R100: Suscripción mensual con pago anual | S100: 1.1 | T100: 1 | U100: 1 | V100: USD
A101: Catalogo principalOVS_ES ACADEMICO6EM-00002 | B101: 6EM-00002OVS_ES ACADEMICO | D101: Catalogo principal | E101: 6EM-00002 | F101: OVS_ES ACADEMICO | G101: Catalogo principal | H101: USD | I101: N/A | J101: Microsoft®AzureActiveDirectoryPremP2Open ShrdSvr AllLng MonthlySubscriptions-VolumeLicense Academic OLV 1License LevelF AdditionalProduct Faculty 1Mth | K101: Unidad | L101: Und | M101: Producto | N101: N/A | O101: N/A | P101: N/A | Q101: 6EM-00002 | R101: Suscripción mensual con pago anual | S101: 1.1 | T101: 1 | U101: 1 | V101: USD
A102: Catalogo principalOVS_ES ACADEMICO6EM-00011 | B102: 6EM-00011OVS_ES ACADEMICO | D102: Catalogo principal | E102: 6EM-00011 | F102: OVS_ES ACADEMICO | G102: Catalogo principal | H102: USD | I102: N/A | J102: Microsoft®AzureActiveDirectoryPremP2Open ShrdSvr AllLng MonthlySubscriptions-VolumeLicense Academic OLV 1License NoLevel Student Student 1Month | K102: Unidad | L102: Und | M102: Producto | N102: N/A | O102: N/A | P102: N/A | Q102: 6EM-00011 | R102: Suscripción mensual con pago anual | S102: 0.9 | T102: 1 | U102: 1 | V102: USD
A103: Catalogo principalOVS_ES ACADEMICO6MV-00001 | B103: 6MV-00001OVS_ES ACADEMICO | D103: Catalogo principal | E103: 6MV-00001 | F103: OVS_ES ACADEMICO | G103: Catalogo principal | H103: USD | I103: N/A | J103: Microsoft®ExchangeEntCALSrvcsforEdu AllLng MonthlySubscriptions-VolumeLicense Academic OLV 1License LevelE AdditionalProduct PerUsr 1Month | K103: Unidad | L103: Und | M103: Producto | N103: N/A | O103: N/A | P103: N/A | Q103: 6MV-00001 | R103: Suscripción mensual con pago anual | S103: 0 | T103: 1 | U103: 1 | V103: USD
A104: Catalogo principalOVS_ES ACADEMICO6MV-00002 | B104: 6MV-00002OVS_ES ACADEMICO | D104: Catalogo principal | E104: 6MV-00002 | F104: OVS_ES ACADEMICO | G104: Catalogo principal | H104: USD | I104: N/A | J104: Microsoft®ExchangeEntCALSrvcsforEdu AllLng MonthlySubscriptions-VolumeLicense Academic OLV 1License LevelF AdditionalProduct PerUsr 1Month | K104: Unidad | L104: Und | M104: Producto | N104: N/A | O104: N/A | P104: N/A | Q104: 6MV-00002 | R104: Suscripción mensual con pago anual | S104: 0 | T104: 1 | U104: 1 | V104: USD
A105: Catalogo principalOVS_ES ACADEMICO6MV-00005 | B105: 6MV-00005OVS_ES ACADEMICO | D105: Catalogo principal | E105: 6MV-00005 | F105: OVS_ES ACADEMICO | G105: Catalogo principal | H105: USD | I105: N/A | J105: Microsoft®ExchangeEntCALSrvcsforEdu AllLng MonthlySubscriptions-VolumeLicense Academic OLV 1License NoLevel Student PerUsr ForStudent 1Month | K105: Unidad | L105: Und | M105: Producto | N105: N/A | O105: N/A | P105: N/A | Q105: 6MV-00005 | R105: Suscripción mensual con pago anual | S105: 0 | T105: 1 | U105: 1 | V105: USD
A106: Catalogo principalOVS_ES ACADEMICO6QV-00001 | B106: 6QV-00001OVS_ES ACADEMICO | D106: Catalogo principal | E106: 6QV-00001 | F106: OVS_ES ACADEMICO | G106: Catalogo principal | H106: USD | I106: N/A | J106: Microsoft® Enterprise CAL Services Edu All Languages Subscription Open Value Level E 1 Month Academic AP Per User | K106: Unidad | L106: Und | M106: Producto | N106: N/A | O106: N/A | P106: N/A | Q106: 6QV-00001 | R106: Suscripción mensual con pago anual | S106: 0 | T106: 1 | U106: 1 | V106: USD
A107: Catalogo principalOVS_ES ACADEMICO6QV-00002 | B107: 6QV-00002OVS_ES ACADEMICO | D107: Catalogo principal | E107: 6QV-00002 | F107: OVS_ES ACADEMICO | G107: Catalogo principal | H107: USD | I107: N/A | J107: Microsoft® Enterprise CAL Services Edu All Languages Subscription Open Value Level F 1 Month Academic AP Per User | K107: Unidad | L107: Und | M107: Producto | N107: N/A | O107: N/A | P107: N/A | Q107: 6QV-00002 | R107: Suscripción mensual con pago anual | S107: 0 | T107: 1 | U107: 1 | V107: USD
A108: Catalogo principalOVS_ES ACADEMICO6QV-00005 | B108: 6QV-00005OVS_ES ACADEMICO | D108: Catalogo principal | E108: 6QV-00005 | F108: OVS_ES ACADEMICO | G108: Catalogo principal | H108: USD | I108: N/A | J108: Microsoft® Enterprise CAL Services Edu All Languages Subscription Open Value No Level 1 Month Academic Student Per User Student | K108: Unidad | L108: Und | M108: Producto | N108: N/A | O108: N/A | P108: N/A | Q108: 6QV-00005 | R108: Suscripción mensual con pago anual | S108: 0 | T108: 1 | U108: 1 | V108: USD
A109: Catalogo principalOVS_ES ACADEMICO6VC-01516 | B109: 6VC-01516OVS_ES ACADEMICO | D109: Catalogo principal | E109: 6VC-01516 | F109: OVS_ES ACADEMICO | G109: Catalogo principal | H109: USD | I109: N/A | J109: Microsoft®WinRmtDsktpSvcsCAL AllLng License/SoftwareAssurancePack Academic OLV 1License LevelE Enterprise DvcCAL 1Year | K109: Unidad | L109: Und | M109: Producto | N109: N/A | O109: N/A | P109: N/A | Q109: 6VC-01516 | R109: Suscripción Anual | S109: 9 | T109: 1 | U109: 1 | V109: USD
A110: Catalogo principalOVS_ES ACADEMICO6VC-01517 | B110: 6VC-01517OVS_ES ACADEMICO | D110: Catalogo principal | E110: 6VC-01517 | F110: OVS_ES ACADEMICO | G110: Catalogo principal | H110: USD | I110: N/A | J110: Microsoft®WinRmtDsktpSvcsCAL AllLng License/SoftwareAssurancePack Academic OLV 1License LevelF Enterprise DvcCAL 1Year | K110: Unidad | L110: Und | M110: Producto | N110: N/A | O110: N/A | P110: N/A | Q110: 6VC-01517 | R110: Suscripción Anual | S110: 9 | T110: 1 | U110: 1 | V110: USD
A111: Catalogo principalOVS_ES ACADEMICO6VC-01518 | B111: 6VC-01518OVS_ES ACADEMICO | D111: Catalogo principal | E111: 6VC-01518 | F111: OVS_ES ACADEMICO | G111: Catalogo principal | H111: USD | I111: N/A | J111: Microsoft®WinRmtDsktpSvcsCAL AllLng License/SoftwareAssurancePack Academic OLV 1License LevelE Enterprise UsrCAL 1Year | K111: Unidad | L111: Und | M111: Producto | N111: N/A | O111: N/A | P111: N/A | Q111: 6VC-01518 | R111: Suscripción Anual | S111: 9 | T111: 1 | U111: 1 | V111: USD
A112: Catalogo principalOVS_ES ACADEMICO6VC-01519 | B112: 6VC-01519OVS_ES ACADEMICO | D112: Catalogo principal | E112: 6VC-01519 | F112: OVS_ES ACADEMICO | G112: Catalogo principal | H112: USD | I112: N/A | J112: Microsoft®WinRmtDsktpSvcsCAL AllLng License/SoftwareAssurancePack Academic OLV 1License LevelF Enterprise UsrCAL 1Year | K112: Unidad | L112: Und | M112: Producto | N112: N/A | O112: N/A | P112: N/A | Q112: 6VC-01519 | R112: Suscripción Anual | S112: 9 | T112: 1 | U112: 1 | V112: USD
A113: Catalogo principalOVS_ES ACADEMICO6VC-01520 | B113: 6VC-01520OVS_ES ACADEMICO | D113: Catalogo principal | E113: 6VC-01520 | F113: OVS_ES ACADEMICO | G113: Catalogo principal | H113: USD | I113: N/A | J113: Microsoft®WinRmtDsktpSvcsCAL AllLng License/SoftwareAssurancePack Academic OLV 1License NoLevel Student DvcCAL 1Year | K113: Unidad | L113: Und | M113: Producto | N113: N/A | O113: N/A | P113: N/A | Q113: 6VC-01520 | R113: Suscripción Anual | S113: 4.99 | T113: 1 | U113: 1 | V113: USD
A114: Catalogo principalOVS_ES ACADEMICO6VC-01521 | B114: 6VC-01521OVS_ES ACADEMICO | D114: Catalogo principal | E114: 6VC-01521 | F114: OVS_ES ACADEMICO | G114: Catalogo principal | H114: USD | I114: N/A | J114: Microsoft®WinRmtDsktpSvcsCAL AllLng License/SoftwareAssurancePack Academic OLV 1License NoLevel Student UsrCAL 1Year | K114: Unidad | L114: Und | M114: Producto | N114: N/A | O114: N/A | P114: N/A | Q114: 6VC-01521 | R114: Suscripción Anual | S114: 4.99 | T114: 1 | U114: 1 | V114: USD
A115: Catalogo principalOVS_ES ACADEMICO6VC-01522 | B115: 6VC-01522OVS_ES ACADEMICO | D115: Catalogo principal | E115: 6VC-01522 | F115: OVS_ES ACADEMICO | G115: Catalogo principal | H115: USD | I115: N/A | J115: Microsoft®WinRmtDsktpSvcsCAL AllLng License/SoftwareAssurancePack Academic OLV 1License LevelE AdditionalProduct DvcCAL 1Year | K115: Unidad | L115: Und | M115: Producto | N115: N/A | O115: N/A | P115: N/A | Q115: 6VC-01522 | R115: Suscripción Anual | S115: 12 | T115: 1 | U115: 1 | V115: USD
A116: Catalogo principalOVS_ES ACADEMICO6VC-01523 | B116: 6VC-01523OVS_ES ACADEMICO | D116: Catalogo principal | E116: 6VC-01523 | F116: OVS_ES ACADEMICO | G116: Catalogo principal | H116: USD | I116: N/A | J116: Microsoft®WinRmtDsktpSvcsCAL AllLng License/SoftwareAssurancePack Academic OLV 1License LevelF AdditionalProduct DvcCAL 1Year | K116: Unidad | L116: Und | M116: Producto | N116: N/A | O116: N/A | P116: N/A | Q116: 6VC-01523 | R116: Suscripción Anual | S116: 12 | T116: 1 | U116: 1 | V116: USD
A117: Catalogo principalOVS_ES ACADEMICO6VC-01524 | B117: 6VC-01524OVS_ES ACADEMICO | D117: Catalogo principal | E117: 6VC-01524 | F117: OVS_ES ACADEMICO | G117: Catalogo principal | H117: USD | I117: N/A | J117: Microsoft®WinRmtDsktpSvcsCAL AllLng License/SoftwareAssurancePack Academic OLV 1License LevelE AdditionalProduct UsrCAL 1Year | K117: Unidad | L117: Und | M117: Producto | N117: N/A | O117: N/A | P117: N/A | Q117: 6VC-01524 | R117: Suscripción Anual | S117: 12 | T117: 1 | U117: 1 | V117: USD
A118: Catalogo principalOVS_ES ACADEMICO6VC-01525 | B118: 6VC-01525OVS_ES ACADEMICO | D118: Catalogo principal | E118: 6VC-01525 | F118: OVS_ES ACADEMICO | G118: Catalogo principal | H118: USD | I118: N/A | J118: Microsoft®WinRmtDsktpSvcsCAL AllLng License/SoftwareAssurancePack Academic OLV 1License LevelF AdditionalProduct UsrCAL 1Year | K118: Unidad | L118: Und | M118: Producto | N118: N/A | O118: N/A | P118: N/A | Q118: 6VC-01525 | R118: Suscripción Anual | S118: 12 | T118: 1 | U118: 1 | V118: USD
A119: Catalogo principalOVS_ES ACADEMICO6XC-00319 | B119: 6XC-00319OVS_ES ACADEMICO | D119: Catalogo principal | E119: 6XC-00319 | F119: OVS_ES ACADEMICO | G119: Catalogo principal | H119: USD | I119: N/A | J119: Microsoft®WinRmtDsktpSvcsExtConn AllLng License/SoftwareAssurancePack Academic OLV 1License LevelE AdditionalProduct 1Year | K119: Unidad | L119: Und | M119: Producto | N119: N/A | O119: N/A | P119: N/A | Q119: 6XC-00319 | R119: Suscripción Anual | S119: 1531 | T119: 1 | U119: 1 | V119: USD
A120: Catalogo principalOVS_ES ACADEMICO6XC-00320 | B120: 6XC-00320OVS_ES ACADEMICO | D120: Catalogo principal | E120: 6XC-00320 | F120: OVS_ES ACADEMICO | G120: Catalogo principal | H120: USD | I120: N/A | J120: Microsoft®WinRmtDsktpSvcsExtConn AllLng License/SoftwareAssurancePack Academic OLV 1License LevelF AdditionalProduct 1Year | K120: Unidad | L120: Und | M120: Producto | N120: N/A | O120: N/A | P120: N/A | Q120: 6XC-00320 | R120: Suscripción Anual | S120: 1531 | T120: 1 | U120: 1 | V120: USD
A121: =D121&F121&E121 -> Catalogo principalOVS_ES ACADEMICO6YH-00603 | B121: =E121&F121 -> 6YH-00603OVS_ES ACADEMICO | D121: Catalogo principal | E121: 6YH-00603 | F121: OVS_ES ACADEMICO | G121: Catalogo principal | H121: USD | I121: N/A | J121: Microsoft®SkypeforBusiness AllLng License/SoftwareAssurancePack Academic OLV 1License LevelE AdditionalProduct 1Year | K121: Unidad | L121: Und | M121: Producto | N121: N/A | O121: N/A | P121: N/A | Q121: 6YH-00603 | R121: Suscripción Anual | S121: 2.81 | T121: 1 | U121: 1 | V121: USD
A122: Catalogo principalOVS_ES ACADEMICO6YH-00604 | B122: 6YH-00604OVS_ES ACADEMICO | D122: Catalogo principal | E122: 6YH-00604 | F122: OVS_ES ACADEMICO | G122: Catalogo principal | H122: USD | I122: N/A | J122: Microsoft®SkypeforBusiness AllLng License/SoftwareAssurancePack Academic OLV 1License LevelF AdditionalProduct 1Year | K122: Unidad | L122: Und | M122: Producto | N122: N/A | O122: N/A | P122: N/A | Q122: 6YH-00604 | R122: Suscripción Anual | S122: 2.81 | T122: 1 | U122: 1 | V122: USD
A123: Catalogo principalOVS_ES ACADEMICO6YH-00605 | B123: 6YH-00605OVS_ES ACADEMICO | D123: Catalogo principal | E123: 6YH-00605 | F123: OVS_ES ACADEMICO | G123: Catalogo principal | H123: USD | I123: N/A | J123: Microsoft®SkypeforBusiness AllLng License/SoftwareAssurancePack Academic OLV 1License NoLevel Student 1Year | K123: Unidad | L123: Und | M123: Producto | N123: N/A | O123: N/A | P123: N/A | Q123: 6YH-00605 | R123: Suscripción Anual | S123: 1.72 | T123: 1 | U123: 1 | V123: USD
A124: Catalogo principalOVS_ES ACADEMICO6ZH-00447 | B124: 6ZH-00447OVS_ES ACADEMICO | D124: Catalogo principal | E124: 6ZH-00447 | F124: OVS_ES ACADEMICO | G124: Catalogo principal | H124: USD | I124: N/A | J124: Microsoft®SfBServerStdCAL AllLng License/SoftwareAssurancePack Academic OLV 1License LevelE Enterprise DvcCAL 1Year | K124: Unidad | L124: Und | M124: Producto | N124: N/A | O124: N/A | P124: N/A | Q124: 6ZH-00447 | R124: Suscripción Anual | S124: 3.74 | T124: 1 | U124: 1 | V124: USD
A125: Catalogo principalOVS_ES ACADEMICO6ZH-00448 | B125: 6ZH-00448OVS_ES ACADEMICO | D125: Catalogo principal | E125: 6ZH-00448 | F125: OVS_ES ACADEMICO | G125: Catalogo principal | H125: USD | I125: N/A | J125: Microsoft®SfBServerStdCAL AllLng License/SoftwareAssurancePack Academic OLV 1License LevelF Enterprise DvcCAL 1Year | K125: Unidad | L125: Und | M125: Producto | N125: N/A | O125: N/A | P125: N/A | Q125: 6ZH-00448 | R125: Suscripción Anual | S125: 3.74 | T125: 1 | U125: 1 | V125: USD
A126: Catalogo principalOVS_ES ACADEMICO6ZH-00449 | B126: 6ZH-00449OVS_ES ACADEMICO | D126: Catalogo principal | E126: 6ZH-00449 | F126: OVS_ES ACADEMICO | G126: Catalogo principal | H126: USD | I126: N/A | J126: Microsoft®SfBServerStdCAL AllLng License/SoftwareAssurancePack Academic OLV 1License LevelE Enterprise UsrCAL 1Year | K126: Unidad | L126: Und | M126: Producto | N126: N/A | O126: N/A | P126: N/A | Q126: 6ZH-00449 | R126: Suscripción Anual | S126: 3.74 | T126: 1 | U126: 1 | V126: USD
A127: Catalogo principalOVS_ES ACADEMICO6ZH-00450 | B127: 6ZH-00450OVS_ES ACADEMICO | D127: Catalogo principal | E127: 6ZH-00450 | F127: OVS_ES ACADEMICO | G127: Catalogo principal | H127: USD | I127: N/A | J127: Microsoft®SfBServerStdCAL AllLng License/SoftwareAssurancePack Academic OLV 1License LevelF Enterprise UsrCAL 1Year | K127: Unidad | L127: Und | M127: Producto | N127: N/A | O127: N/A | P127: N/A | Q127: 6ZH-00450 | R127: Suscripción Anual | S127: 3.74 | T127: 1 | U127: 1 | V127: USD
A128: Catalogo principalOVS_ES ACADEMICO6ZH-00451 | B128: 6ZH-00451OVS_ES ACADEMICO | D128: Catalogo principal | E128: 6ZH-00451 | F128: OVS_ES ACADEMICO | G128: Catalogo principal | H128: USD | I128: N/A | J128: Microsoft®SfBServerStdCAL AllLng License/SoftwareAssurancePack Academic OLV 1License NoLevel Student DvcCAL 1Year | K128: Unidad | L128: Und | M128: Producto | N128: N/A | O128: N/A | P128: N/A | Q128: 6ZH-00451 | R128: Suscripción Anual | S128: 2.34 | T128: 1 | U128: 1 | V128: USD
A129: Catalogo principalOVS_ES ACADEMICO6ZH-00452 | B129: 6ZH-00452OVS_ES ACADEMICO | D129: Catalogo principal | E129: 6ZH-00452 | F129: OVS_ES ACADEMICO | G129: Catalogo principal | H129: USD | I129: N/A | J129: Microsoft®SfBServerStdCAL AllLng License/SoftwareAssurancePack Academic OLV 1License NoLevel Student UsrCAL 1Year | K129: Unidad | L129: Und | M129: Producto | N129: N/A | O129: N/A | P129: N/A | Q129: 6ZH-00452 | R129: Suscripción Anual | S129: 2.34 | T129: 1 | U129: 1 | V129: USD
A130: Catalogo principalOVS_ES ACADEMICO76A-00917 | B130: 76A-00917OVS_ES ACADEMICO | D130: Catalogo principal | E130: 76A-00917 | F130: OVS_ES ACADEMICO | G130: Catalogo principal | H130: USD | I130: N/A | J130: Microsoft®EnterpriseCAL AllLng License/SoftwareAssurancePack Academic OLV 1License LevelE Enterprise DvcCAL w/Services 1Year | K130: Unidad | L130: Und | M130: Producto | N130: N/A | O130: N/A | P130: N/A | Q130: 76A-00917 | R130: Suscripción Anual | S130: 30 | T130: 1 | U130: 1 | V130: USD
A131: Catalogo principalOVS_ES ACADEMICO76A-00918 | B131: 76A-00918OVS_ES ACADEMICO | D131: Catalogo principal | E131: 76A-00918 | F131: OVS_ES ACADEMICO | G131: Catalogo principal | H131: USD | I131: N/A | J131: Microsoft®EnterpriseCAL AllLng License/SoftwareAssurancePack Academic OLV 1License LevelF Enterprise DvcCAL w/Services 1Year | K131: Unidad | L131: Und | M131: Producto | N131: N/A | O131: N/A | P131: N/A | Q131: 76A-00918 | R131: Suscripción Anual | S131: 28 | T131: 1 | U131: 1 | V131: USD
A132: Catalogo principalOVS_ES ACADEMICO76A-00919 | B132: 76A-00919OVS_ES ACADEMICO | D132: Catalogo principal | E132: 76A-00919 | F132: OVS_ES ACADEMICO | G132: Catalogo principal | H132: USD | I132: N/A | J132: Microsoft®EnterpriseCAL AllLng License/SoftwareAssurancePack Academic OLV 1License LevelE Enterprise UsrCAL w/Services 1Year | K132: Unidad | L132: Und | M132: Producto | N132: N/A | O132: N/A | P132: N/A | Q132: 76A-00919 | R132: Suscripción Anual | S132: 30 | T132: 1 | U132: 1 | V132: USD
A133: Catalogo principalOVS_ES ACADEMICO76A-00920 | B133: 76A-00920OVS_ES ACADEMICO | D133: Catalogo principal | E133: 76A-00920 | F133: OVS_ES ACADEMICO | G133: Catalogo principal | H133: USD | I133: N/A | J133: Microsoft®EnterpriseCAL AllLng License/SoftwareAssurancePack Academic OLV 1License LevelF Enterprise UsrCAL w/Services 1Year | K133: Unidad | L133: Und | M133: Producto | N133: N/A | O133: N/A | P133: N/A | Q133: 76A-00920 | R133: Suscripción Anual | S133: 28 | T133: 1 | U133: 1 | V133: USD
A134: Catalogo principalOVS_ES ACADEMICO76A-00921 | B134: 76A-00921OVS_ES ACADEMICO | D134: Catalogo principal | E134: 76A-00921 | F134: OVS_ES ACADEMICO | G134: Catalogo principal | H134: USD | I134: N/A | J134: Microsoft®EnterpriseCAL AllLng SAStepUp Academic OLV 1License LevelE CoreClientAccessLicense Enterprise DvcCAL w/Services 1Year | K134: Unidad | L134: Und | M134: Producto | N134: N/A | O134: N/A | P134: N/A | Q134: 76A-00921 | R134: Suscripción Anual | S134: 14 | T134: 1 | U134: 1 | V134: USD
A135: Catalogo principalOVS_ES ACADEMICO76A-00922 | B135: 76A-00922OVS_ES ACADEMICO | D135: Catalogo principal | E135: 76A-00922 | F135: OVS_ES ACADEMICO | G135: Catalogo principal | H135: USD | I135: N/A | J135: Microsoft®EnterpriseCAL AllLng SAStepUp Academic OLV 1License LevelF CoreClientAccessLicense Enterprise DvcCAL w/Services 1Year | K135: Unidad | L135: Und | M135: Producto | N135: N/A | O135: N/A | P135: N/A | Q135: 76A-00922 | R135: Suscripción Anual | S135: 14 | T135: 1 | U135: 1 | V135: USD
A136: Catalogo principalOVS_ES ACADEMICO76A-00923 | B136: 76A-00923OVS_ES ACADEMICO | D136: Catalogo principal | E136: 76A-00923 | F136: OVS_ES ACADEMICO | G136: Catalogo principal | H136: USD | I136: N/A | J136: Microsoft®EnterpriseCAL AllLng SAStepUp Academic OLV 1License LevelE CoreClientAccessLicense Enterprise UsrCAL w/Services 1Year | K136: Unidad | L136: Und | M136: Producto | N136: N/A | O136: N/A | P136: N/A | Q136: 76A-00923 | R136: Suscripción Anual | S136: 14 | T136: 1 | U136: 1 | V136: USD
A137: Catalogo principalOVS_ES ACADEMICO76A-00924 | B137: 76A-00924OVS_ES ACADEMICO | D137: Catalogo principal | E137: 76A-00924 | F137: OVS_ES ACADEMICO | G137: Catalogo principal | H137: USD | I137: N/A | J137: Microsoft®EnterpriseCAL AllLng SAStepUp Academic OLV 1License LevelF CoreClientAccessLicense Enterprise UsrCAL w/Services 1Year | K137: Unidad | L137: Und | M137: Producto | N137: N/A | O137: N/A | P137: N/A | Q137: 76A-00924 | R137: Suscripción Anual | S137: 14 | T137: 1 | U137: 1 | V137: USD
A138: Catalogo principalOVS_ES ACADEMICO76A-00925 | B138: 76A-00925OVS_ES ACADEMICO | D138: Catalogo principal | E138: 76A-00925 | F138: OVS_ES ACADEMICO | G138: Catalogo principal | H138: USD | I138: N/A | J138: Microsoft®EnterpriseCAL AllLng License/SoftwareAssurancePack Academic OLV 1License NoLevel Student DvcCAL w/Services 1Year | K138: Unidad | L138: Und | M138: Producto | N138: N/A | O138: N/A | P138: N/A | Q138: 76A-00925 | R138: Suscripción Anual | S138: 17 | T138: 1 | U138: 1 | V138: USD
A139: Catalogo principalOVS_ES ACADEMICO76A-00926 | B139: 76A-00926OVS_ES ACADEMICO | D139: Catalogo principal | E139: 76A-00926 | F139: OVS_ES ACADEMICO | G139: Catalogo principal | H139: USD | I139: N/A | J139: Microsoft®EnterpriseCAL AllLng License/SoftwareAssurancePack Academic OLV 1License NoLevel Student UsrCAL w/Services 1Year | K139: Unidad | L139: Und | M139: Producto | N139: N/A | O139: N/A | P139: N/A | Q139: 76A-00926 | R139: Suscripción Anual | S139: 17 | T139: 1 | U139: 1 | V139: USD
A140: Catalogo principalOVS_ES ACADEMICO76A-00927 | B140: 76A-00927OVS_ES ACADEMICO | D140: Catalogo principal | E140: 76A-00927 | F140: OVS_ES ACADEMICO | G140: Catalogo principal | H140: USD | I140: N/A | J140: Microsoft®EnterpriseCAL AllLng SAStepUp Academic OLV 1License NoLevel CoreClientAccessLicense Student DvcCAL w/Services 1Year | K140: Unidad | L140: Und | M140: Producto | N140: N/A | O140: N/A | P140: N/A | Q140: 76A-00927 | R140: Suscripción Anual | S140: 15 | T140: 1 | U140: 1 | V140: USD
A141: Catalogo principalOVS_ES ACADEMICO76A-00928 | B141: 76A-00928OVS_ES ACADEMICO | D141: Catalogo principal | E141: 76A-00928 | F141: OVS_ES ACADEMICO | G141: Catalogo principal | H141: USD | I141: N/A | J141: Microsoft®EnterpriseCAL AllLng SAStepUp Academic OLV 1License NoLevel CoreClientAccessLicense Student UsrCAL w/Services 1Year | K141: Unidad | L141: Und | M141: Producto | N141: N/A | O141: N/A | P141: N/A | Q141: 76A-00928 | R141: Suscripción Anual | S141: 15 | T141: 1 | U141: 1 | V141: USD
A142: Catalogo principalOVS_ES ACADEMICO76A-00937 | B142: 76A-00937OVS_ES ACADEMICO | D142: Catalogo principal | E142: 76A-00937 | F142: OVS_ES ACADEMICO | G142: Catalogo principal | H142: USD | I142: N/A | J142: Microsoft®EnterpriseCAL AllLng SAStepUp Academic OLV 1License LevelF CoreClientAccessLicense Platform DvcCAL w/Services 1Year | K142: Unidad | L142: Und | M142: Producto | N142: N/A | O142: N/A | P142: N/A | Q142: 76A-00937 | R142: Suscripción Anual | S142: 11 | T142: 1 | U142: 1 | V142: USD
A143: Catalogo principalOVS_ES ACADEMICO76A-00938 | B143: 76A-00938OVS_ES ACADEMICO | D143: Catalogo principal | E143: 76A-00938 | F143: OVS_ES ACADEMICO | G143: Catalogo principal | H143: USD | I143: N/A | J143: Microsoft®EnterpriseCAL AllLng SAStepUp Academic OLV 1License LevelE CoreClientAccessLicense Platform UsrCAL w/Services 1Year | K143: Unidad | L143: Und | M143: Producto | N143: N/A | O143: N/A | P143: N/A | Q143: 76A-00938 | R143: Suscripción Anual | S143: 12 | T143: 1 | U143: 1 | V143: USD
A144: Catalogo principalOVS_ES ACADEMICO76A-00939 | B144: 76A-00939OVS_ES ACADEMICO | D144: Catalogo principal | E144: 76A-00939 | F144: OVS_ES ACADEMICO | G144: Catalogo principal | H144: USD | I144: N/A | J144: Microsoft®EnterpriseCAL AllLng SAStepUp Academic OLV 1License LevelF CoreClientAccessLicense Platform UsrCAL w/Services 1Year | K144: Unidad | L144: Und | M144: Producto | N144: N/A | O144: N/A | P144: N/A | Q144: 76A-00939 | R144: Suscripción Anual | S144: 11 | T144: 1 | U144: 1 | V144: USD
A145: Catalogo principalOVS_ES ACADEMICO76A-00946 | B145: 76A-00946OVS_ES ACADEMICO | D145: Catalogo principal | E145: 76A-00946 | F145: OVS_ES ACADEMICO | G145: Catalogo principal | H145: USD | I145: N/A | J145: Microsoft®EnterpriseCAL AllLng License/SoftwareAssurancePack Academic OLV 1License NoLevel PlatformStudent DvcCAL w/Services 1Year | K145: Unidad | L145: Und | M145: Producto | N145: N/A | O145: N/A | P145: N/A | Q145: 76A-00946 | R145: Suscripción Anual | S145: 16 | T145: 1 | U145: 1 | V145: USD
A146: Catalogo principalOVS_ES ACADEMICO76A-00947 | B146: 76A-00947OVS_ES ACADEMICO | D146: Catalogo principal | E146: 76A-00947 | F146: OVS_ES ACADEMICO | G146: Catalogo principal | H146: USD | I146: N/A | J146: Microsoft®EnterpriseCAL AllLng License/SoftwareAssurancePack Academic OLV 1License NoLevel PlatformStudent UsrCAL w/Services 1Year | K146: Unidad | L146: Und | M146: Producto | N146: N/A | O146: N/A | P146: N/A | Q146: 76A-00947 | R146: Suscripción Anual | S146: 16 | T146: 1 | U146: 1 | V146: USD
A147: Catalogo principalOVS_ES ACADEMICO76A-00948 | B147: 76A-00948OVS_ES ACADEMICO | D147: Catalogo principal | E147: 76A-00948 | F147: OVS_ES ACADEMICO | G147: Catalogo principal | H147: USD | I147: N/A | J147: Microsoft®EnterpriseCAL AllLng SAStepUp Academic OLV 1License NoLevel CoreClientAccessLicense PlatformStudent DvcCAL w/Services 1Year | K147: Unidad | L147: Und | M147: Producto | N147: N/A | O147: N/A | P147: N/A | Q147: 76A-00948 | R147: Suscripción Anual | S147: 13 | T147: 1 | U147: 1 | V147: USD
A148: Catalogo principalOVS_ES ACADEMICO76A-00949 | B148: 76A-00949OVS_ES ACADEMICO | D148: Catalogo principal | E148: 76A-00949 | F148: OVS_ES ACADEMICO | G148: Catalogo principal | H148: USD | I148: N/A | J148: Microsoft®EnterpriseCAL AllLng SAStepUp Academic OLV 1License NoLevel CoreClientAccessLicense PlatformStudent UsrCAL w/Services 1Year | K148: Unidad | L148: Und | M148: Producto | N148: N/A | O148: N/A | P148: N/A | Q148: 76A-00949 | R148: Suscripción Anual | S148: 13 | T148: 1 | U148: 1 | V148: USD
A149: Catalogo principalOVS_ES ACADEMICO76A-01004 | B149: 76A-01004OVS_ES ACADEMICO | D149: Catalogo principal | E149: 76A-01004 | F149: OVS_ES ACADEMICO | G149: Catalogo principal | H149: USD | I149: N/A | J149: Microsoft®EnterpriseCAL AllLng License/SoftwareAssurancePack Academic OLV 1License LevelE Platform DvcCAL w/Services 1Year | K149: Unidad | L149: Und | M149: Producto | N149: N/A | O149: N/A | P149: N/A | Q149: 76A-01004 | R149: Suscripción Anual | S149: 27 | T149: 1 | U149: 1 | V149: USD
A150: Catalogo principalOVS_ES ACADEMICO76A-01005 | B150: 76A-01005OVS_ES ACADEMICO | D150: Catalogo principal | E150: 76A-01005 | F150: OVS_ES ACADEMICO | G150: Catalogo principal | H150: USD | I150: N/A | J150: Microsoft®EnterpriseCAL AllLng License/SoftwareAssurancePack Academic OLV 1License LevelF Platform DvcCAL w/Services 1Year | K150: Unidad | L150: Und | M150: Producto | N150: N/A | O150: N/A | P150: N/A | Q150: 76A-01005 | R150: Suscripción Anual | S150: 26 | T150: 1 | U150: 1 | V150: USD
A151: Catalogo principalOVS_ES ACADEMICO76A-01006 | B151: 76A-01006OVS_ES ACADEMICO | D151: Catalogo principal | E151: 76A-01006 | F151: OVS_ES ACADEMICO | G151: Catalogo principal | H151: USD | I151: N/A | J151: Microsoft®EnterpriseCAL AllLng License/SoftwareAssurancePack Academic OLV 1License LevelE Platform UsrCAL w/Services 1Year | K151: Unidad | L151: Und | M151: Producto | N151: N/A | O151: N/A | P151: N/A | Q151: 76A-01006 | R151: Suscripción Anual | S151: 27 | T151: 1 | U151: 1 | V151: USD
A152: Catalogo principalOVS_ES ACADEMICO76A-01007 | B152: 76A-01007OVS_ES ACADEMICO | D152: Catalogo principal | E152: 76A-01007 | F152: OVS_ES ACADEMICO | G152: Catalogo principal | H152: USD | I152: N/A | J152: Microsoft®EnterpriseCAL AllLng License/SoftwareAssurancePack Academic OLV 1License LevelF Platform UsrCAL w/Services 1Year | K152: Unidad | L152: Und | M152: Producto | N152: N/A | O152: N/A | P152: N/A | Q152: 76A-01007 | R152: Suscripción Anual | S152: 26 | T152: 1 | U152: 1 | V152: USD
A153: Catalogo principalOVS_ES ACADEMICO76A-01008 | B153: 76A-01008OVS_ES ACADEMICO | D153: Catalogo principal | E153: 76A-01008 | F153: OVS_ES ACADEMICO | G153: Catalogo principal | H153: USD | I153: N/A | J153: Microsoft®EnterpriseCAL AllLng SAStepUp Academic OLV 1License LevelE CoreClientAccessLicense Platform DvcCAL w/Services 1Year | K153: Unidad | L153: Und | M153: Producto | N153: N/A | O153: N/A | P153: N/A | Q153: 76A-01008 | R153: Suscripción Anual | S153: 12 | T153: 1 | U153: 1 | V153: USD
A154: Catalogo principalOVS_ES ACADEMICO76M-01415 | B154: 76M-01415OVS_ES ACADEMICO | D154: Catalogo principal | E154: 76M-01415 | F154: OVS_ES ACADEMICO | G154: Catalogo principal | H154: USD | I154: N/A | J154: Microsoft® SharePoint Standard CAL All Languages License & Software Assurance Open Value Level E 1 Year Academic Enterprise Device CAL | K154: Unidad | L154: Und | M154: Producto | N154: N/A | O154: N/A | P154: N/A | Q154: 76M-01415 | R154: Suscripción Anual | S154: 8 | T154: 1 | U154: 1 | V154: USD
A155: Catalogo principalOVS_ES ACADEMICO76M-01416 | B155: 76M-01416OVS_ES ACADEMICO | D155: Catalogo principal | E155: 76M-01416 | F155: OVS_ES ACADEMICO | G155: Catalogo principal | H155: USD | I155: N/A | J155: Microsoft® SharePoint Standard CAL All Languages License & Software Assurance Open Value Level F 1 Year Academic Enterprise Device CAL | K155: Unidad | L155: Und | M155: Producto | N155: N/A | O155: N/A | P155: N/A | Q155: 76M-01416 | R155: Suscripción Anual | S155: 8 | T155: 1 | U155: 1 | V155: USD
A156: Catalogo principalOVS_ES ACADEMICO76M-01417 | B156: 76M-01417OVS_ES ACADEMICO | D156: Catalogo principal | E156: 76M-01417 | F156: OVS_ES ACADEMICO | G156: Catalogo principal | H156: USD | I156: N/A | J156: Microsoft® SharePoint Standard CAL All Languages License & Software Assurance Open Value Level E 1 Year Academic Enterprise User CAL | K156: Unidad | L156: Und | M156: Producto | N156: N/A | O156: N/A | P156: N/A | Q156: 76M-01417 | R156: Suscripción Anual | S156: 8 | T156: 1 | U156: 1 | V156: USD
A157: Catalogo principalOVS_ES ACADEMICO76M-01418 | B157: 76M-01418OVS_ES ACADEMICO | D157: Catalogo principal | E157: 76M-01418 | F157: OVS_ES ACADEMICO | G157: Catalogo principal | H157: USD | I157: N/A | J157: Microsoft® SharePoint Standard CAL All Languages License & Software Assurance Open Value Level F 1 Year Academic Enterprise User CAL | K157: Unidad | L157: Und | M157: Producto | N157: N/A | O157: N/A | P157: N/A | Q157: 76M-01418 | R157: Suscripción Anual | S157: 8 | T157: 1 | U157: 1 | V157: USD
A158: Catalogo principalOVS_ES ACADEMICO76M-01419 | B158: 76M-01419OVS_ES ACADEMICO | D158: Catalogo principal | E158: 76M-01419 | F158: OVS_ES ACADEMICO | G158: Catalogo principal | H158: USD | I158: N/A | J158: Microsoft® SharePoint Standard CAL All Languages License & Software Assurance Open Value No Level 1 Year Academic Student Device CAL | K158: Unidad | L158: Und | M158: Producto | N158: N/A | O158: N/A | P158: N/A | Q158: 76M-01419 | R158: Suscripción Anual | S158: 0.94 | T158: 1 | U158: 1 | V158: USD
A159: Catalogo principalOVS_ES ACADEMICO76M-01420 | B159: 76M-01420OVS_ES ACADEMICO | D159: Catalogo principal | E159: 76M-01420 | F159: OVS_ES ACADEMICO | G159: Catalogo principal | H159: USD | I159: N/A | J159: Microsoft® SharePoint Standard CAL All Languages License & Software Assurance Open Value No Level 1 Year Academic Student User CAL | K159: Unidad | L159: Und | M159: Producto | N159: N/A | O159: N/A | P159: N/A | Q159: 76M-01420 | R159: Suscripción Anual | S159: 0.94 | T159: 1 | U159: 1 | V159: USD
A160: Catalogo principalOVS_ES ACADEMICO76N-03594 | B160: 76N-03594OVS_ES ACADEMICO | D160: Catalogo principal | E160: 76N-03594 | F160: OVS_ES ACADEMICO | G160: Catalogo principal | H160: USD | I160: N/A | J160: Microsoft® SharePoint Enterprise CAL All Languages License & Software Assurance Open Value Level E 1 Year Academic Enterprise Device CAL | K160: Unidad | L160: Und | M160: Producto | N160: N/A | O160: N/A | P160: N/A | Q160: 76N-03594 | R160: Suscripción Anual | S160: 10 | T160: 1 | U160: 1 | V160: USD
A161: Catalogo principalOVS_ES ACADEMICO76N-03595 | B161: 76N-03595OVS_ES ACADEMICO | D161: Catalogo principal | E161: 76N-03595 | F161: OVS_ES ACADEMICO | G161: Catalogo principal | H161: USD | I161: N/A | J161: Microsoft® SharePoint Enterprise CAL All Languages License & Software Assurance Open Value Level F 1 Year Academic Enterprise Device CAL | K161: Unidad | L161: Und | M161: Producto | N161: N/A | O161: N/A | P161: N/A | Q161: 76N-03595 | R161: Suscripción Anual | S161: 10 | T161: 1 | U161: 1 | V161: USD
A162: Catalogo principalOVS_ES ACADEMICO76N-03596 | B162: 76N-03596OVS_ES ACADEMICO | D162: Catalogo principal | E162: 76N-03596 | F162: OVS_ES ACADEMICO | G162: Catalogo principal | H162: USD | I162: N/A | J162: Microsoft® SharePoint Enterprise CAL All Languages License & Software Assurance Open Value Level E 1 Year Academic Enterprise User CAL | K162: Unidad | L162: Und | M162: Producto | N162: N/A | O162: N/A | P162: N/A | Q162: 76N-03596 | R162: Suscripción Anual | S162: 10 | T162: 1 | U162: 1 | V162: USD
A163: Catalogo principalOVS_ES ACADEMICO76N-03597 | B163: 76N-03597OVS_ES ACADEMICO | D163: Catalogo principal | E163: 76N-03597 | F163: OVS_ES ACADEMICO | G163: Catalogo principal | H163: USD | I163: N/A | J163: Microsoft® SharePoint Enterprise CAL All Languages License & Software Assurance Open Value Level F 1 Year Academic Enterprise User CAL | K163: Unidad | L163: Und | M163: Producto | N163: N/A | O163: N/A | P163: N/A | Q163: 76N-03597 | R163: Suscripción Anual | S163: 10 | T163: 1 | U163: 1 | V163: USD
A164: Catalogo principalOVS_ES ACADEMICO76N-03598 | B164: 76N-03598OVS_ES ACADEMICO | D164: Catalogo principal | E164: 76N-03598 | F164: OVS_ES ACADEMICO | G164: Catalogo principal | H164: USD | I164: N/A | J164: Microsoft® SharePoint Enterprise CAL All Languages License & Software Assurance Open Value No Level 1 Year Academic Student Device CAL | K164: Unidad | L164: Und | M164: Producto | N164: N/A | O164: N/A | P164: N/A | Q164: 76N-03598 | R164: Suscripción Anual | S164: 7 | T164: 1 | U164: 1 | V164: USD
A165: Catalogo principalOVS_ES ACADEMICO76N-03599 | B165: 76N-03599OVS_ES ACADEMICO | D165: Catalogo principal | E165: 76N-03599 | F165: OVS_ES ACADEMICO | G165: Catalogo principal | H165: USD | I165: N/A | J165: Microsoft® SharePoint Enterprise CAL All Languages License & Software Assurance Open Value No Level 1 Year Academic Student User CAL | K165: Unidad | L165: Und | M165: Producto | N165: N/A | O165: N/A | P165: N/A | Q165: 76N-03599 | R165: Suscripción Anual | S165: 7 | T165: 1 | U165: 1 | V165: USD
A166: Catalogo principalOVS_ES ACADEMICO76P-01359 | B166: 76P-01359OVS_ES ACADEMICO | D166: Catalogo principal | E166: 76P-01359 | F166: OVS_ES ACADEMICO | G166: Catalogo principal | H166: USD | I166: N/A | J166: Microsoft® SharePoint Server All Languages License & Software Assurance Open Value Level E 1 Year Academic Additional Product | K166: Unidad | L166: Und | M166: Producto | N166: N/A | O166: N/A | P166: N/A | Q166: 76P-01359 | R166: Suscripción Anual | S166: 629 | T166: 1 | U166: 1 | V166: USD
A167: Catalogo principalOVS_ES ACADEMICO76P-01360 | B167: 76P-01360OVS_ES ACADEMICO | D167: Catalogo principal | E167: 76P-01360 | F167: OVS_ES ACADEMICO | G167: Catalogo principal | H167: USD | I167: N/A | J167: Microsoft® SharePoint Server All Languages License & Software Assurance Open Value Level F 1 Year Academic Additional Product | K167: Unidad | L167: Und | M167: Producto | N167: N/A | O167: N/A | P167: N/A | Q167: 76P-01360 | R167: Suscripción Anual | S167: 629 | T167: 1 | U167: 1 | V167: USD
A168: Catalogo principalOVS_ES ACADEMICO77D-00161 | B168: 77D-00161OVS_ES ACADEMICO | D168: Catalogo principal | E168: 77D-00161 | F168: OVS_ES ACADEMICO | G168: Catalogo principal | H168: USD | I168: N/A | J168: Microsoft®VisualStudioProSubMSDN AllLng License/SoftwareAssurancePack Academic OLV 1License LevelE AdditionalProduct 1Year | K168: Unidad | L168: Und | M168: Producto | N168: N/A | O168: N/A | P168: N/A | Q168: 77D-00161 | R168: Suscripción Anual | S168: 69 | T168: 1 | U168: 1 | V168: USD
A169: Catalogo principalOVS_ES ACADEMICO77D-00162 | B169: 77D-00162OVS_ES ACADEMICO | D169: Catalogo principal | E169: 77D-00162 | F169: OVS_ES ACADEMICO | G169: Catalogo principal | H169: USD | I169: N/A | J169: Microsoft®VisualStudioProSubMSDN AllLng License/SoftwareAssurancePack Academic OLV 1License LevelF AdditionalProduct 1Year | K169: Unidad | L169: Und | M169: Producto | N169: N/A | O169: N/A | P169: N/A | Q169: 77D-00162 | R169: Suscripción Anual | S169: 69 | T169: 1 | U169: 1 | V169: USD
A170: Catalogo principalOVS_ES ACADEMICO7AH-00437 | B170: 7AH-00437OVS_ES ACADEMICO | D170: Catalogo principal | E170: 7AH-00437 | F170: OVS_ES ACADEMICO | G170: Catalogo principal | H170: USD | I170: N/A | J170: Microsoft®SfBServerEntCAL AllLng License/SoftwareAssurancePack Academic OLV 1License LevelE Enterprise DvcCAL 1Year | K170: Unidad | L170: Und | M170: Producto | N170: N/A | O170: N/A | P170: N/A | Q170: 7AH-00437 | R170: Suscripción Anual | S170: 13 | T170: 1 | U170: 1 | V170: USD
A171: Catalogo principalOVS_ES ACADEMICO7AH-00438 | B171: 7AH-00438OVS_ES ACADEMICO | D171: Catalogo principal | E171: 7AH-00438 | F171: OVS_ES ACADEMICO | G171: Catalogo principal | H171: USD | I171: N/A | J171: Microsoft®SfBServerEntCAL AllLng License/SoftwareAssurancePack Academic OLV 1License LevelF Enterprise DvcCAL 1Year | K171: Unidad | L171: Und | M171: Producto | N171: N/A | O171: N/A | P171: N/A | Q171: 7AH-00438 | R171: Suscripción Anual | S171: 13 | T171: 1 | U171: 1 | V171: USD
A172: Catalogo principalOVS_ES ACADEMICO7AH-00439 | B172: 7AH-00439OVS_ES ACADEMICO | D172: Catalogo principal | E172: 7AH-00439 | F172: OVS_ES ACADEMICO | G172: Catalogo principal | H172: USD | I172: N/A | J172: Microsoft®SfBServerEntCAL AllLng License/SoftwareAssurancePack Academic OLV 1License LevelE Enterprise UsrCAL 1Year | K172: Unidad | L172: Und | M172: Producto | N172: N/A | O172: N/A | P172: N/A | Q172: 7AH-00439 | R172: Suscripción Anual | S172: 13 | T172: 1 | U172: 1 | V172: USD
A173: Catalogo principalOVS_ES ACADEMICO7AH-00440 | B173: 7AH-00440OVS_ES ACADEMICO | D173: Catalogo principal | E173: 7AH-00440 | F173: OVS_ES ACADEMICO | G173: Catalogo principal | H173: USD | I173: N/A | J173: Microsoft®SfBServerEntCAL AllLng License/SoftwareAssurancePack Academic OLV 1License LevelF Enterprise UsrCAL 1Year | K173: Unidad | L173: Und | M173: Producto | N173: N/A | O173: N/A | P173: N/A | Q173: 7AH-00440 | R173: Suscripción Anual | S173: 13 | T173: 1 | U173: 1 | V173: USD
A174: Catalogo principalOVS_ES ACADEMICO7AH-00441 | B174: 7AH-00441OVS_ES ACADEMICO | D174: Catalogo principal | E174: 7AH-00441 | F174: OVS_ES ACADEMICO | G174: Catalogo principal | H174: USD | I174: N/A | J174: Microsoft®SfBServerEntCAL AllLng License/SoftwareAssurancePack Academic OLV 1License NoLevel Student DvcCAL 1Year | K174: Unidad | L174: Und | M174: Producto | N174: N/A | O174: N/A | P174: N/A | Q174: 7AH-00441 | R174: Suscripción Anual | S174: 9 | T174: 1 | U174: 1 | V174: USD
A175: Catalogo principalOVS_ES ACADEMICO7AH-00442 | B175: 7AH-00442OVS_ES ACADEMICO | D175: Catalogo principal | E175: 7AH-00442 | F175: OVS_ES ACADEMICO | G175: Catalogo principal | H175: USD | I175: N/A | J175: Microsoft®SfBServerEntCAL AllLng License/SoftwareAssurancePack Academic OLV 1License NoLevel Student UsrCAL 1Year | K175: Unidad | L175: Und | M175: Producto | N175: N/A | O175: N/A | P175: N/A | Q175: 7AH-00442 | R175: Suscripción Anual | S175: 9 | T175: 1 | U175: 1 | V175: USD
A176: Catalogo principalOVS_ES ACADEMICO7JD-00001 | B176: 7JD-00001OVS_ES ACADEMICO | D176: Catalogo principal | E176: 7JD-00001 | F176: OVS_ES ACADEMICO | G176: Catalogo principal | H176: USD | I176: N/A | J176: Microsoft®ProjOnlineEssentialsOpenFac ShrdSvr AllLng MonthlySubscriptions-VolumeLicense Academic OLV 1License LevelE AdditionalProduct 1Month | K176: Unidad | L176: Und | M176: Producto | N176: N/A | O176: N/A | P176: N/A | Q176: 7JD-00001 | R176: Suscripción mensual con pago anual | S176: 0 | T176: 1 | U176: 1 | V176: USD
A177: Catalogo principalOVS_ES ACADEMICO7JD-00002 | B177: 7JD-00002OVS_ES ACADEMICO | D177: Catalogo principal | E177: 7JD-00002 | F177: OVS_ES ACADEMICO | G177: Catalogo principal | H177: USD | I177: N/A | J177: Microsoft®ProjOnlineEssentialsOpenFac ShrdSvr AllLng MonthlySubscriptions-VolumeLicense Academic OLV 1License LevelF AdditionalProduct 1Month | K177: Unidad | L177: Und | M177: Producto | N177: N/A | O177: N/A | P177: N/A | Q177: 7JD-00002 | R177: Suscripción mensual con pago anual | S177: 0 | T177: 1 | U177: 1 | V177: USD
A178: Catalogo principalOVS_ES ACADEMICO7JQ-00038 | B178: 7JQ-00038OVS_ES ACADEMICO | D178: Catalogo principal | E178: 7JQ-00038 | F178: OVS_ES ACADEMICO | G178: Catalogo principal | H178: USD | I178: N/A | J178: Microsoft®SQLSvrEnterpriseCore AllLng License/SoftwareAssurancePack Academic OLV 2Licenses LevelE AdditionalProduct CoreLic 1Year | K178: Unidad | L178: Und | M178: Producto | N178: N/A | O178: N/A | P178: N/A | Q178: 7JQ-00038 | R178: Suscripción Anual | S178: 1446 | T178: 1 | U178: 1 | V178: USD
A179: Catalogo principalOVS_ES ACADEMICO7JQ-00039 | B179: 7JQ-00039OVS_ES ACADEMICO | D179: Catalogo principal | E179: 7JQ-00039 | F179: OVS_ES ACADEMICO | G179: Catalogo principal | H179: USD | I179: N/A | J179: Microsoft®SQLSvrEnterpriseCore AllLng License/SoftwareAssurancePack Academic OLV 2Licenses LevelF AdditionalProduct CoreLic 1Year | K179: Unidad | L179: Und | M179: Producto | N179: N/A | O179: N/A | P179: N/A | Q179: 7JQ-00039 | R179: Suscripción Anual | S179: 1446 | T179: 1 | U179: 1 | V179: USD
A180: Catalogo principalOVS_ES ACADEMICO7JQ-00383 | B180: 7JQ-00383OVS_ES ACADEMICO | D180: Catalogo principal | E180: 7JQ-00383 | F180: OVS_ES ACADEMICO | G180: Catalogo principal | H180: USD | I180: N/A | J180: Microsoft®SQLSvrEnterpriseCore AllLng SAStepUp Academic OLV 2Licenses LevelE SQLSvrStandardCore AdditionalProduct CoreLic 1Year | K180: Unidad | L180: Und | M180: Producto | N180: N/A | O180: N/A | P180: N/A | Q180: 7JQ-00383 | R180: Suscripción Anual | S180: 1069 | T180: 1 | U180: 1 | V180: USD
A181: Catalogo principalOVS_ES ACADEMICO7JQ-00384 | B181: 7JQ-00384OVS_ES ACADEMICO | D181: Catalogo principal | E181: 7JQ-00384 | F181: OVS_ES ACADEMICO | G181: Catalogo principal | H181: USD | I181: N/A | J181: Microsoft®SQLSvrEnterpriseCore AllLng SAStepUp Academic OLV 2Licenses LevelF SQLSvrStandardCore AdditionalProduct CoreLic 1Year | K181: Unidad | L181: Und | M181: Producto | N181: N/A | O181: N/A | P181: N/A | Q181: 7JQ-00384 | R181: Suscripción Anual | S181: 1069 | T181: 1 | U181: 1 | V181: USD
A182: Catalogo principalOVS_ES ACADEMICO7JS-00001 | B182: 7JS-00001OVS_ES ACADEMICO | D182: Catalogo principal | E182: 7JS-00001 | F182: OVS_ES ACADEMICO | G182: Catalogo principal | H182: USD | I182: N/A | J182: Microsoft®ProjOnlineEssentialsOpenStu ShrdSvr AllLng MonthlySubscriptions-VolumeLicense Academic OLV 1License NoLevel Student 1Month | K182: Unidad | L182: Und | M182: Producto | N182: N/A | O182: N/A | P182: N/A | Q182: 7JS-00001 | R182: Suscripción mensual con pago anual | S182: 0 | T182: 1 | U182: 1 | V182: USD
A183: Catalogo principalOVS_ES ACADEMICO7LA-00001 | B183: 7LA-00001OVS_ES ACADEMICO | D183: Catalogo principal | E183: 7LA-00001 | F183: OVS_ES ACADEMICO | G183: Catalogo principal | H183: USD | I183: N/A | J183: Microsoft®ProjectPlan3OpenFac ShrdSvr AllLng MonthlySubscriptions-VolumeLicense Academic OLV 1License LevelE AdditionalProduct 1Month | K183: Unidad | L183: Und | M183: Producto | N183: N/A | O183: N/A | P183: N/A | Q183: 7LA-00001 | R183: Suscripción mensual con pago anual | S183: 5.7 | T183: 1 | U183: 1 | V183: USD
A184: Catalogo principalOVS_ES ACADEMICO7LA-00002 | B184: 7LA-00002OVS_ES ACADEMICO | D184: Catalogo principal | E184: 7LA-00002 | F184: OVS_ES ACADEMICO | G184: Catalogo principal | H184: USD | I184: N/A | J184: Microsoft®ProjectPlan3OpenFac ShrdSvr AllLng MonthlySubscriptions-VolumeLicense Academic OLV 1License LevelF AdditionalProduct 1Month | K184: Unidad | L184: Und | M184: Producto | N184: N/A | O184: N/A | P184: N/A | Q184: 7LA-00002 | R184: Suscripción mensual con pago anual | S184: 5.7 | T184: 1 | U184: 1 | V184: USD
A185: =D185&F185&E185 -> Catalogo principalOVS_ES ACADEMICO7LG-00001 | B185: =E185&F185 -> 7LG-00001OVS_ES ACADEMICO | D185: Catalogo principal | E185: 7LG-00001 | F185: OVS_ES ACADEMICO | G185: Catalogo principal | H185: USD | I185: N/A | J185: Microsoft®ProjectPlan3OpenStud ShrdSvr AllLng MonthlySubscriptions-VolumeLicense Academic OLV 1License NoLevel Student 1Month | K185: Unidad | L185: Und | M185: Producto | N185: N/A | O185: N/A | P185: N/A | Q185: 7LG-00001 | R185: Suscripción mensual con pago anual | S185: 4.3 | T185: 1 | U185: 1 | V185: USD
A186: Catalogo principalOVS_ES ACADEMICO7NQ-00050 | B186: 7NQ-00050OVS_ES ACADEMICO | D186: Catalogo principal | E186: 7NQ-00050 | F186: OVS_ES ACADEMICO | G186: Catalogo principal | H186: USD | I186: N/A | J186: Microsoft®SQLSvrStandardCore AllLng License/SoftwareAssurancePack Academic OLV 2Licenses LevelE AdditionalProduct CoreLic 1Year | K186: Unidad | L186: Und | M186: Producto | N186: N/A | O186: N/A | P186: N/A | Q186: 7NQ-00050 | R186: Suscripción Anual | S186: 377 | T186: 1 | U186: 1 | V186: USD
A187: Catalogo principalOVS_ES ACADEMICO7NQ-00051 | B187: 7NQ-00051OVS_ES ACADEMICO | D187: Catalogo principal | E187: 7NQ-00051 | F187: OVS_ES ACADEMICO | G187: Catalogo principal | H187: USD | I187: N/A | J187: Microsoft®SQLSvrStandardCore AllLng License/SoftwareAssurancePack Academic OLV 2Licenses LevelF AdditionalProduct CoreLic 1Year | K187: Unidad | L187: Und | M187: Producto | N187: N/A | O187: N/A | P187: N/A | Q187: 7NQ-00051 | R187: Suscripción Anual | S187: 377 | T187: 1 | U187: 1 | V187: USD
A188: Catalogo principalOVS_ES ACADEMICO7RJ-00001 | B188: 7RJ-00001OVS_ES ACADEMICO | D188: Catalogo principal | E188: 7RJ-00001 | F188: OVS_ES ACADEMICO | G188: Catalogo principal | H188: USD | I188: N/A | J188: Microsoft®ProjectPlan5OpenFac ShrdSvr AllLng MonthlySubscriptions-VolumeLicense Academic OLV 1License LevelE AdditionalProduct 1Month | K188: Unidad | L188: Und | M188: Producto | N188: N/A | O188: N/A | P188: N/A | Q188: 7RJ-00001 | R188: Suscripción mensual con pago anual | S188: 10.3 | T188: 1 | U188: 1 | V188: USD
A189: Catalogo principalOVS_ES ACADEMICO7RJ-00002 | B189: 7RJ-00002OVS_ES ACADEMICO | D189: Catalogo principal | E189: 7RJ-00002 | F189: OVS_ES ACADEMICO | G189: Catalogo principal | H189: USD | I189: N/A | J189: Microsoft®ProjectPlan5OpenFac ShrdSvr AllLng MonthlySubscriptions-VolumeLicense Academic OLV 1License LevelF AdditionalProduct 1Month | K189: Unidad | L189: Und | M189: Producto | N189: N/A | O189: N/A | P189: N/A | Q189: 7RJ-00002 | R189: Suscripción mensual con pago anual | S189: 10.3 | T189: 1 | U189: 1 | V189: USD
A190: Catalogo principalOVS_ES ACADEMICO7RS-00001 | B190: 7RS-00001OVS_ES ACADEMICO | D190: Catalogo principal | E190: 7RS-00001 | F190: OVS_ES ACADEMICO | G190: Catalogo principal | H190: USD | I190: N/A | J190: Microsoft®ProjectPlan5OpenStud ShrdSvr AllLng MonthlySubscriptions-VolumeLicense Academic OLV 1License NoLevel Student 1Month | K190: Unidad | L190: Und | M190: Producto | N190: N/A | O190: N/A | P190: N/A | Q190: 7RS-00001 | R190: Suscripción mensual con pago anual | S190: 8 | T190: 1 | U190: 1 | V190: USD
A191: Catalogo principalOVS_ES ACADEMICO7U6-00008 | B191: 7U6-00008OVS_ES ACADEMICO | D191: Catalogo principal | E191: 7U6-00008 | F191: OVS_ES ACADEMICO | G191: Catalogo principal | H191: USD | I191: N/A | J191: Microsoft® Intune Open CAO All Languages Subscription Open Value Level E 1 Month Academic Additional Product Faculty Renewal Only | K191: Unidad | L191: Und | M191: Producto | N191: N/A | O191: N/A | P191: N/A | Q191: 7U6-00008 | R191: Suscripción mensual con pago anual | S191: 0.48 | T191: 1 | U191: 1 | V191: USD
A192: Catalogo principalOVS_ES ACADEMICO7U6-00009 | B192: 7U6-00009OVS_ES ACADEMICO | D192: Catalogo principal | E192: 7U6-00009 | F192: OVS_ES ACADEMICO | G192: Catalogo principal | H192: USD | I192: N/A | J192: Microsoft® Intune Open CAO All Languages Subscription Open Value Level F 1 Month Academic Additional Product Faculty Renewal Only | K192: Unidad | L192: Und | M192: Producto | N192: N/A | O192: N/A | P192: N/A | Q192: 7U6-00009 | R192: Suscripción mensual con pago anual | S192: 0.48 | T192: 1 | U192: 1 | V192: USD
A193: Catalogo principalOVS_ES ACADEMICO7U6-00011 | B193: 7U6-00011OVS_ES ACADEMICO | D193: Catalogo principal | E193: 7U6-00011 | F193: OVS_ES ACADEMICO | G193: Catalogo principal | H193: USD | I193: N/A | J193: Microsoft® Intune Open CAO All Languages Subscription Open Value No Level 1 Month Academic Student Renewal Only | K193: Unidad | L193: Und | M193: Producto | N193: N/A | O193: N/A | P193: N/A | Q193: 7U6-00011 | R193: Suscripción mensual con pago anual | S193: 0.48 | T193: 1 | U193: 1 | V193: USD
A194: Catalogo principalOVS_ES ACADEMICO7VC-00171 | B194: 7VC-00171OVS_ES ACADEMICO | D194: Catalogo principal | E194: 7VC-00171 | F194: OVS_ES ACADEMICO | G194: Catalogo principal | H194: USD | I194: N/A | J194: Microsoft® Forefront Identity Manager All Language License & Software Assurance Open Value Level E 1 Year Academic AP Live Edition | K194: Unidad | L194: Und | M194: Producto | N194: N/A | O194: N/A | P194: N/A | Q194: 7VC-00171 | R194: Suscripción Anual | S194: 212 | T194: 1 | U194: 1 | V194: USD
A195: Catalogo principalOVS_ES ACADEMICO7VC-00172 | B195: 7VC-00172OVS_ES ACADEMICO | D195: Catalogo principal | E195: 7VC-00172 | F195: OVS_ES ACADEMICO | G195: Catalogo principal | H195: USD | I195: N/A | J195: Microsoft® Forefront Identity Manager All Language License & Software Assurance Open Value Level F 1 Year Academic AP Live Edition | K195: Unidad | L195: Und | M195: Producto | N195: N/A | O195: N/A | P195: N/A | Q195: 7VC-00172 | R195: Suscripción Anual | S195: 212 | T195: 1 | U195: 1 | V195: USD
A196: Catalogo principalOVS_ES ACADEMICO9EA-00310 | B196: 9EA-00310OVS_ES ACADEMICO | D196: Catalogo principal | E196: 9EA-00310 | F196: OVS_ES ACADEMICO | G196: Catalogo principal | H196: USD | I196: N/A | J196: Microsoft®WindowsServerDCCore AllLng License/SoftwareAssurancePack Academic OLV 16Licenses LevelE AdditionalProduct CoreLic 1Year | K196: Unidad | L196: Und | M196: Producto | N196: N/A | O196: N/A | P196: N/A | Q196: 9EA-00310 | R196: Suscripción Anual | S196: 389 | T196: 1 | U196: 1 | V196: USD
A197: Catalogo principalOVS_ES ACADEMICO9EA-00311 | B197: 9EA-00311OVS_ES ACADEMICO | D197: Catalogo principal | E197: 9EA-00311 | F197: OVS_ES ACADEMICO | G197: Catalogo principal | H197: USD | I197: N/A | J197: Microsoft®WindowsServerDCCore AllLng License/SoftwareAssurancePack Academic OLV 16Licenses LevelF AdditionalProduct CoreLic 1Year | K197: Unidad | L197: Und | M197: Producto | N197: N/A | O197: N/A | P197: N/A | Q197: 9EA-00311 | R197: Suscripción Anual | S197: 389 | T197: 1 | U197: 1 | V197: USD
A198: Catalogo principalOVS_ES ACADEMICO9EA-00312 | B198: 9EA-00312OVS_ES ACADEMICO | D198: Catalogo principal | E198: 9EA-00312 | F198: OVS_ES ACADEMICO | G198: Catalogo principal | H198: USD | I198: N/A | J198: Microsoft®WindowsServerDCCore AllLng SAStepUp Academic OLV 16Licenses LevelE WindowsServerStandardCore AdditionalProduct CoreLic 1Year | K198: Unidad | L198: Und | M198: Producto | N198: N/A | O198: N/A | P198: N/A | Q198: 9EA-00312 | R198: Suscripción Anual | S198: 321 | T198: 1 | U198: 1 | V198: USD
A199: Catalogo principalOVS_ES ACADEMICO9EA-00313 | B199: 9EA-00313OVS_ES ACADEMICO | D199: Catalogo principal | E199: 9EA-00313 | F199: OVS_ES ACADEMICO | G199: Catalogo principal | H199: USD | I199: N/A | J199: Microsoft®WindowsServerDCCore AllLng SAStepUp Academic OLV 16Licenses LevelF WindowsServerStandardCore AdditionalProduct CoreLic 1Year | K199: Unidad | L199: Und | M199: Producto | N199: N/A | O199: N/A | P199: N/A | Q199: 9EA-00313 | R199: Suscripción Anual | S199: 321 | T199: 1 | U199: 1 | V199: USD
A200: Catalogo principalOVS_ES ACADEMICO9EA-00314 | B200: 9EA-00314OVS_ES ACADEMICO | D200: Catalogo principal | E200: 9EA-00314 | F200: OVS_ES ACADEMICO | G200: Catalogo principal | H200: USD | I200: N/A | J200: Microsoft®WindowsServerDCCore AllLng License/SoftwareAssurancePack Academic OLV 2Licenses LevelE AdditionalProduct CoreLic 1Year | K200: Unidad | L200: Und | M200: Producto | N200: N/A | O200: N/A | P200: N/A | Q200: 9EA-00314 | R200: Suscripción Anual | S200: 49 | T200: 1 | U200: 1 | V200: USD
... 3122 more rows

Sheet ProXCat (hidden)
A3: Etiquetas de fila
A4: 1
A5: Controles Empresariales S.A.S.
A6: The Best Experience in Technology S.A
A7: UT Soft-IG
A8: UT Soluciones Microsoft 2017
A9: Total 1
A10: 2
A11: Controles Empresariales S.A.S.
A12: Dell Colombia INC
A13: The Best Experience in Technology S.A
A14: UT Soft-IG
A15: UT Soluciones Microsoft 2017
A16: Total 2
A17: 3
A18: Controles Empresariales S.A.S.
A19: UT Soft-IG
A20: UT Soluciones Microsoft 2017
A21: Total 3
A22: 4
A23: Controles Empresariales S.A.S.
A24: UT Soft-IG
A25: Total 4
A26: 5
A27: Controles Empresariales S.A.S.
A28: UT Soft-IG
A29: Vision Software S.A.S.
A30: Total 5
A31: 6
A32: Controles Empresariales S.A.S.
A33: The Best Experience in Technology S.A
A34: UT Soft-IG
A35: UT Soluciones Microsoft 2017
A36: Total 6
A37: 7
A38: Controles Empresariales S.A.S.
A39: The Best Experience in Technology S.A
A40: UT Soft-IG
A41: UT Soluciones Microsoft 2017
A42: Vision Software S.A.S.
A43: Total 7
A44: Total general

Sheet Cuadro Totales (hidden)
A1: Precio Unitario | B1: Precio Unitario + Gravamen | C1: Subtotal | D1: IVA | E1: Precio Total
D3: Valor Total | E3: =SUM(E2) -> 0
A8: Precio Unitario | B8: Precio Unitario + Gravamen | C8: Descuento adicional | D8: Precio con Descuento | E8: Subtotal | F8: IVA | G8: Vr IVA | H8: Precio Total
G10: Valor Total | H10: =SUM(H9) -> 0
A13: Servicios Azure
A14: Subtotal | B14: IVA | C14: Precio Total

Sheet Listas (hidden)
A1: Categoria | B1: Zona | C1: Marca | D1: ProductoInicial | E1: Producto | F1: Proveedores
A2: OVS_ES ACADEMICO | D2: 021-08708 | F2: Alfapeople
A3: CSP GOBIERNO | D3: 021-08713 | F3: Colombia Telecomunicaciones S.A. ESP.
A4: CSP ACADEMICO | D4: 076-04349 | F4: Colsof
A5: OPEN VALUE GOBIERNO | D5: 076-04354 | F5: Controles Empresariales
A6: OPEN VALUE ENTIDADES NO CUALIFICADAS | D6: 125-00509 | F6: Soluciones Orión
A7: CSP ENTIDADES NO CUALIFICADAS | D7: 125-00526 | F7: UT DELL EMC
D8: 126-01019 | F8: UT Nimbit
D9: 126-01020 | F9: UT Soft-IG
D10: 126-01021 | F10: UT Softlinebext 20202
D11: 126-01022
D12: 228-07278
D13: 228-07285
D14: 2PM-00005
D15: 312-03709
D16: 312-03716
D17: 359-04608
D18: 359-04613
D19: 359-04620
D20: 359-04625
D21: 381-03621
D22: 381-03626
D23: 381-03633
D24: 381-03638
D25: 395-04132
D26: 395-04138
D27: 395-04144
D28: 3LN-00009
D29: 3ND-00162
D30: 3ND-00163
D31: 3ND-00174
D32: 3ND-00175
D33: 3NN-00023
D34: 3PP-00005
D35: 3VU-00034
D36: 3VU-00035
D37: 3YF-00238
D38: 3YF-00239
D39: 3ZK-00466
D40: 3ZK-00467
D41: 3ZK-00468
D42: 3ZK-00469
D43: 4ZF-00017
D44: 5A5-00005
D45: 5A9-00005
D46: 5HK-00162
D47: 5HK-00163
D48: 5HU-00152
D49: 5HU-00153
D50: 6EM-00008
D51: 6KV-00006
D52: 6PV-00006
D53: 6VC-00998
D54: 6VC-00999
D55: 6VC-01000
D56: 6VC-01001
D57: 6XC-00171
D58: 6XC-00172
D59: 6YH-00263
D60: 6YH-00264
D61: 6ZH-00245
D62: 6ZH-00246
D63: 6ZH-00247
D64: 6ZH-00248
D65: 76A-00412
D66: 76A-00413
D67: 76A-00414
D68: 76A-00415
D69: 76A-00416
D70: 76A-00417
D71: 76A-00580
D72: 76A-00581
D73: 76A-00582
D74: 76A-00583
D75: 76A-00584
D76: 76A-00585
D77: 76A-00794
D78: 76A-00795
D79: 76A-00796
D80: 76A-00797
D81: 76A-00798
D82: 76A-00799
D83: 76M-01045
D84: 76M-01046
D85: 76M-01055
D86: 76M-01056
D87: 76N-03090
D88: 76N-03097
D89: 76N-03103
D90: 76N-03108
D91: 76P-00733
D92: 76P-00738
D93: 77D-00079
D94: 77D-00080
D95: 79P-01696
D96: 79P-01705
D97: 79P-01711
D98: 79P-01712
D99: 79P-01738
D100: 79P-02381
D101: 79P-02383
D102: 7AH-00103
D103: 7AH-00104
D104: 7AH-00105
D105: 7AH-00106
D106: 7JQ-00279
D107: 7JQ-00281
D108: 7JQ-00447
D109: 7JT-00002
D110: 7JT-00006
D111: 7JT-00008
D112: 7JT-00010
D113: 7NQ-00187
D114: 7NQ-00188
D115: 7NS-00005
D116: 7YC-00005
D117: 810-06380
D118: 9A3-00028
D119: 9A6-00024
D120: 9EA-00702
D121: 9EA-00703
D122: 9EA-00704
D123: 9EA-00705
D124: 9EA-00706
D125: 9EA-00707
D126: 9EM-00556
D127: 9EM-00557
D128: 9EM-00558
D129: 9EM-00559
D130: 9EN-00484
D131: 9EN-00485
D132: 9EN-00486
D133: 9EN-00487
D134: 9EP-00632
D135: 9EP-00633
D136: 9EP-00634
D137: 9EP-00635
D138: 9EP-00636
D139: 9EP-00637
D140: 9GA-00184
D141: 9GA-00185
D142: 9GA-00549
D143: 9GA-00550
D144: 9GA-00551
D145: 9GA-00552
D146: 9GA-00664
D147: 9GA-00665
D148: 9GS-00487
D149: 9GS-00488
D150: 9GS-00489
D151: 9GS-00490
D152: 9GS-00491
D153: 9GS-00492
D154: 9GS-00673
D155: 9GS-00674
D156: 9GS-00853
D157: 9GS-00854
D158: 9ST-00122
D159: 9ST-00123
D160: 9TX-00409
D161: 9TX-00415
D162: 9TX-00654
D163: 9TX-00676
D164: CF3-00006
D165: CGJ-00005
D166: D75-01916
D167: D75-01917
D168: D75-01918
D169: D86-03848
D170: D86-03853
D171: D87-03964
D172: D87-03969
D173: D87-03974
D174: DW6-00005
D175: E9R-00008
D176: EMJ-00424
D177: EMJ-00425
D178: EMJ-00426
D179: EMJ-00427
D180: EMT-00424
D181: EMT-00425
D182: EMT-00426
D183: EMT-00427
D184: EMT-00563
D185: EMT-00564
D186: ENJ-00424
D187: ENJ-00425
D188: ENJ-00426
D189: ENJ-00427
D190: ENJ-00699
D191: ENJ-00700
D192: EVY-00005
D193: EWH-00005
D194: F2R-00008
D195: F52-02032
D196: F52-02033
D197: F52-02279
D198: F52-02280
D199: FTH-00005
D200: G3S-00463
... 373 more rows

Sheet minimo (hidden)
C1: categoria | D1: Canal
C3: Etiquetas de fila | D3: Suma de total
C4: Soluciones Orión | D4: 0
C5: UT DELL EMC | D5: 0
C6: Colsof | D6: 0
C7: UT Nimbit | D7: 0
C8: Alfapeople | D8: 0
C9: UT Soft-IG | D9: 0
C10: Controles Empresariales | D10: 0
C11: UT Softlinebext 20202 | D11: 0
C12: Total general | D12: 0

Sheet temp (hidden)
A1: LLAVE | B1: TEMP1 | C1: TEMP2 | D1: PROVEEDOR | E1: Código matriz Colombia Compra Eficiente | F1: categoria | G1: PROVEEDOR2 | H1: Moneda | I1: Parametrización de los Servicios | J1: Nombre Producto | K1: Unidad de Medida | L1: Unidad TVEC | M1: Tipo | N1: Zona | O1: Asistencia | P1: Perfil | Q1: Número de parte | R1: Forma de Pago | S1: Precio | T1: Activo | U1: IVA | V1: cant | W1: valor base | X1: valor con gravamenes | Y1: total
A2: =D2&F2&E2 -> Catalogo principalOVS_ES ACADEMICO125-01037 | B2: =E2&F2 -> 125-01037OVS_ES ACADEMICO | D2: Catalogo principal | E2: 125-01037 | F2: OVS_ES ACADEMICO | G2: Catalogo principal | H2: USD | I2: N/A | J2: Microsoft®AzureDevOpsServer AllLng License/SoftwareAssurancePack Academic OLV 1License LevelE AdditionalProduct 1Year | K2: Unidad | L2: Und | M2: Producto | N2: N/A | O2: N/A | P2: N/A | Q2: 125-01037 | R2: Suscripción Anual | S2: 41 | T2: 1 | U2: 1 | V2: =SUMIF(ResumenCotizacion!$C:$C,E2,ResumenCotizacion!$P:$P) -> 0 | W2: =IF(H2="USD",S2*SolCotizacion!$J$18,S2) -> 155834.85 | X2: =ROUND(W2/(1-VLOOKUP("Total porcentaje:",ResumenCotizacion!$F:$H,3,0)),2) -> 161654.41 | Y2: =V2*X2 -> 0
A3: Catalogo principalOVS_ES ACADEMICO125-01038 | B3: 125-01038OVS_ES ACADEMICO | D3: Catalogo principal | E3: 125-01038 | F3: OVS_ES ACADEMICO | G3: Catalogo principal | H3: USD | I3: N/A | J3: Microsoft®AzureDevOpsServer AllLng License/SoftwareAssurancePack Academic OLV 1License LevelF AdditionalProduct 1Year | K3: Unidad | L3: Und | M3: Producto | N3: N/A | O3: N/A | P3: N/A | Q3: 125-01038 | R3: Suscripción Anual | S3: 41 | T3: 1 | U3: 1 | V3: =SUMIF(ResumenCotizacion!$C:$C,E3,ResumenCotizacion!$P:$P) -> 0 | W3: =IF(H3="USD",S3*SolCotizacion!$J$18,S3) -> 155834.85 | X3: =ROUND(W3/(1-VLOOKUP("Total porcentaje:",ResumenCotizacion!$F:$H,3,0)),2) -> 161654.41 | Y3: =V3*X3 -> 0
A4: Catalogo principalOVS_ES ACADEMICO126-01617 | B4: 126-01617OVS_ES ACADEMICO | D4: Catalogo principal | E4: 126-01617 | F4: OVS_ES ACADEMICO | G4: Catalogo principal | H4: USD | I4: N/A | J4: Microsoft®AzureDevOpsServerCAL AllLng License/SoftwareAssurancePack Academic OLV 1License LevelE AdditionalProduct DvcCAL 1Year | K4: Unidad | L4: Und | M4: Producto | N4: N/A | O4: N/A | P4: N/A | Q4: 126-01617 | R4: Suscripción Anual | S4: 41 | T4: 1 | U4: 1 | V4: =SUMIF(ResumenCotizacion!$C:$C,E4,ResumenCotizacion!$P:$P) -> 0 | W4: =IF(H4="USD",S4*SolCotizacion!$J$18,S4) -> 155834.85 | X4: =ROUND(W4/(1-VLOOKUP("Total porcentaje:",ResumenCotizacion!$F:$H,3,0)),2) -> 161654.41 | Y4: 0
A5: Catalogo principalOVS_ES ACADEMICO126-01618 | B5: 126-01618OVS_ES ACADEMICO | D5: Catalogo principal | E5: 126-01618 | F5: OVS_ES ACADEMICO | G5: Catalogo principal | H5: USD | I5: N/A | J5: Microsoft®AzureDevOpsServerCAL AllLng License/SoftwareAssurancePack Academic OLV 1License LevelF AdditionalProduct DvcCAL 1Year | K5: Unidad | L5: Und | M5: Producto | N5: N/A | O5: N/A | P5: N/A | Q5: 126-01618 | R5: Suscripción Anual | S5: 41 | T5: 1 | U5: 1 | V5: =SUMIF(ResumenCotizacion!$C:$C,E5,ResumenCotizacion!$P:$P) -> 0 | W5: =IF(H5="USD",S5*SolCotizacion!$J$18,S5) -> 155834.85 | X5: =ROUND(W5/(1-VLOOKUP("Total porcentaje:",ResumenCotizacion!$F:$H,3,0)),2) -> 161654.41 | Y5: 0
A6: Catalogo principalOVS_ES ACADEMICO126-01619 | B6: 126-01619OVS_ES ACADEMICO | D6: Catalogo principal | E6: 126-01619 | F6: OVS_ES ACADEMICO | G6: Catalogo principal | H6: USD | I6: N/A | J6: Microsoft®AzureDevOpsServerCAL AllLng License/SoftwareAssurancePack Academic OLV 1License LevelE AdditionalProduct UsrCAL 1Year | K6: Unidad | L6: Und | M6: Producto | N6: N/A | O6: N/A | P6: N/A | Q6: 126-01619 | R6: Suscripción Anual | S6: 41 | T6: 1 | U6: 1 | V6: =SUMIF(ResumenCotizacion!$C:$C,E6,ResumenCotizacion!$P:$P) -> 0 | W6: =IF(H6="USD",S6*SolCotizacion!$J$18,S6) -> 155834.85 | X6: =ROUND(W6/(1-VLOOKUP("Total porcentaje:",ResumenCotizacion!$F:$H,3,0)),2) -> 161654.41 | Y6: 0
A7: Catalogo principalOVS_ES ACADEMICO126-01620 | B7: 126-01620OVS_ES ACADEMICO | D7: Catalogo principal | E7: 126-01620 | F7: OVS_ES ACADEMICO | G7: Catalogo principal | H7: USD | I7: N/A | J7: Microsoft®AzureDevOpsServerCAL AllLng License/SoftwareAssurancePack Academic OLV 1License LevelF AdditionalProduct UsrCAL 1Year | K7: Unidad | L7: Und | M7: Producto | N7: N/A | O7: N/A | P7: N/A | Q7: 126-01620 | R7: Suscripción Anual | S7: 41 | T7: 1 | U7: 1 | V7: =SUMIF(ResumenCotizacion!$C:$C,E7,ResumenCotizacion!$P:$P) -> 0 | W7: =IF(H7="USD",S7*SolCotizacion!$J$18,S7) -> 155834.85 | X7: =ROUND(W7/(1-VLOOKUP("Total porcentaje:",ResumenCotizacion!$F:$H,3,0)),2) -> 161654.41 | Y7: 0
A8: Catalogo principalOVS_ES ACADEMICO228-09538 | B8: 228-09538OVS_ES ACADEMICO | D8: Catalogo principal | E8: 228-09538 | F8: OVS_ES ACADEMICO | G8: Catalogo principal | H8: USD | I8: N/A | J8: Microsoft®SQLServerStandardEdition AllLng License/SoftwareAssurancePack Academic OLV 1License LevelE AdditionalProduct 1Year | K8: Unidad | L8: Und | M8: Producto | N8: N/A | O8: N/A | P8: N/A | Q8: 228-09538 | R8: Suscripción Anual | S8: 95 | T8: 1 | U8: 1 | V8: =SUMIF(ResumenCotizacion!$C:$C,E8,ResumenCotizacion!$P:$P) -> 0 | W8: =IF(H8="USD",S8*SolCotizacion!$J$18,S8) -> 361080.75 | X8: =ROUND(W8/(1-VLOOKUP("Total porcentaje:",ResumenCotizacion!$F:$H,3,0)),2) -> 374565.09 | Y8: 0
A9: Catalogo principalOVS_ES ACADEMICO228-09539 | B9: 228-09539OVS_ES ACADEMICO | D9: Catalogo principal | E9: 228-09539 | F9: OVS_ES ACADEMICO | G9: Catalogo principal | H9: USD | I9: N/A | J9: Microsoft®SQLServerStandardEdition AllLng License/SoftwareAssurancePack Academic OLV 1License LevelF AdditionalProduct 1Year | K9: Unidad | L9: Und | M9: Producto | N9: N/A | O9: N/A | P9: N/A | Q9: 228-09539 | R9: Suscripción Anual | S9: 95 | T9: 1 | U9: 1 | V9: =SUMIF(ResumenCotizacion!$C:$C,E9,ResumenCotizacion!$P:$P) -> 0 | W9: =IF(H9="USD",S9*SolCotizacion!$J$18,S9) -> 361080.75 | X9: =ROUND(W9/(1-VLOOKUP("Total porcentaje:",ResumenCotizacion!$F:$H,3,0)),2) -> 374565.09 | Y9: 0
A10: Catalogo principalOVS_ES ACADEMICO2FJ-00005 | B10: 2FJ-00005OVS_ES ACADEMICO | D10: Catalogo principal | E10: 2FJ-00005 | F10: OVS_ES ACADEMICO | G10: Catalogo principal | H10: USD | I10: N/A | J10: Microsoft®OfficeProPlusEducation AllLng License/SoftwareAssurancePack Academic OLV 1License LevelE Enterprise 1Year | K10: Unidad | L10: Und | M10: Producto | N10: N/A | O10: N/A | P10: N/A | Q10: 2FJ-00005 | R10: Suscripción Anual | S10: 37 | T10: 1 | U10: 1 | V10: =SUMIF(ResumenCotizacion!$C:$C,E10,ResumenCotizacion!$P:$P) -> 0 | W10: =IF(H10="USD",S10*SolCotizacion!$J$18,S10) -> 140631.45 | X10: =ROUND(W10/(1-VLOOKUP("Total porcentaje:",ResumenCotizacion!$F:$H,3,0)),2) -> 145883.25 | Y10: 0
A11: Catalogo principalOVS_ES ACADEMICO2FJ-00006 | B11: 2FJ-00006OVS_ES ACADEMICO | D11: Catalogo principal | E11: 2FJ-00006 | F11: OVS_ES ACADEMICO | G11: Catalogo principal | H11: USD | I11: N/A | J11: Microsoft®OfficeProPlusEducation AllLng License/SoftwareAssurancePack Academic OLV 1License LevelF Enterprise 1Year | K11: Unidad | L11: Und | M11: Producto | N11: N/A | O11: N/A | P11: N/A | Q11: 2FJ-00006 | R11: Suscripción Anual | S11: 36 | T11: 1 | U11: 1 | V11: =SUMIF(ResumenCotizacion!$C:$C,E11,ResumenCotizacion!$P:$P) -> 0 | W11: =IF(H11="USD",S11*SolCotizacion!$J$18,S11) -> 136830.6 | X11: =ROUND(W11/(1-VLOOKUP("Total porcentaje:",ResumenCotizacion!$F:$H,3,0)),2) -> 141940.46 | Y11: 0
A12: Catalogo principalOVS_ES ACADEMICO2FJ-00007 | B12: 2FJ-00007OVS_ES ACADEMICO | D12: Catalogo principal | E12: 2FJ-00007 | F12: OVS_ES ACADEMICO | G12: Catalogo principal | H12: USD | I12: N/A | J12: Microsoft®OfficeProPlusEducation AllLng License/SoftwareAssurancePack Academic OLV 1License NoLevel Student 1Year | K12: Unidad | L12: Und | M12: Producto | N12: N/A | O12: N/A | P12: N/A | Q12: 2FJ-00007 | R12: Suscripción Anual | S12: 23 | T12: 1 | U12: 1 | V12: =SUMIF(ResumenCotizacion!$C:$C,E12,ResumenCotizacion!$P:$P) -> 0 | W12: =IF(H12="USD",S12*SolCotizacion!$J$18,S12) -> 87419.55 | X12: =ROUND(W12/(1-VLOOKUP("Total porcentaje:",ResumenCotizacion!$F:$H,3,0)),2) -> 90684.18 | Y12: 0
A13: Catalogo principalOVS_ES ACADEMICO2FJ-00010 | B13: 2FJ-00010OVS_ES ACADEMICO | D13: Catalogo principal | E13: 2FJ-00010 | F13: OVS_ES ACADEMICO | G13: Catalogo principal | H13: USD | I13: N/A | J13: Microsoft®OfficeProPlusEducation AllLng License/SoftwareAssurancePack Academic OLV 1License NoLevel PlatformStudent 1Year | K13: Unidad | L13: Und | M13: Producto | N13: N/A | O13: N/A | P13: N/A | Q13: 2FJ-00010 | R13: Suscripción Anual | S13: 22 | T13: 1 | U13: 1 | V13: =SUMIF(ResumenCotizacion!$C:$C,E13,ResumenCotizacion!$P:$P) -> 0 | W13: =IF(H13="USD",S13*SolCotizacion!$J$18,S13) -> 83618.7 | X13: =ROUND(W13/(1-VLOOKUP("Total porcentaje:",ResumenCotizacion!$F:$H,3,0)),2) -> 86741.39 | Y13: 0
A14: Catalogo principalOVS_ES ACADEMICO2FJ-00025 | B14: 2FJ-00025OVS_ES ACADEMICO | D14: Catalogo principal | E14: 2FJ-00025 | F14: OVS_ES ACADEMICO | G14: Catalogo principal | H14: USD | I14: N/A | J14: Microsoft®OfficeProPlusEducation AllLng License/SoftwareAssurancePack Academic OLV 1License LevelE Platform 1Year | K14: Unidad | L14: Und | M14: Producto | N14: N/A | O14: N/A | P14: N/A | Q14: 2FJ-00025 | R14: Suscripción Anual | S14: 35 | T14: 1 | U14: 1 | V14: =SUMIF(ResumenCotizacion!$C:$C,E14,ResumenCotizacion!$P:$P) -> 0 | W14: =IF(H14="USD",S14*SolCotizacion!$J$18,S14) -> 133029.75 | X14: =ROUND(W14/(1-VLOOKUP("Total porcentaje:",ResumenCotizacion!$F:$H,3,0)),2) -> 137997.67 | Y14: 0
A15: Catalogo principalOVS_ES ACADEMICO2FJ-00026 | B15: 2FJ-00026OVS_ES ACADEMICO | D15: Catalogo principal | E15: 2FJ-00026 | F15: OVS_ES ACADEMICO | G15: Catalogo principal | H15: USD | I15: N/A | J15: Microsoft®OfficeProPlusEducation AllLng License/SoftwareAssurancePack Academic OLV 1License LevelF Platform 1Year | K15: Unidad | L15: Und | M15: Producto | N15: N/A | O15: N/A | P15: N/A | Q15: 2FJ-00026 | R15: Suscripción Anual | S15: 34 | T15: 1 | U15: 1 | V15: =SUMIF(ResumenCotizacion!$C:$C,E15,ResumenCotizacion!$P:$P) -> 0 | W15: =IF(H15="USD",S15*SolCotizacion!$J$18,S15) -> 129228.9 | X15: =ROUND(W15/(1-VLOOKUP("Total porcentaje:",ResumenCotizacion!$F:$H,3,0)),2) -> 134054.88 | Y15: 0
A16: Catalogo principalOVS_ES ACADEMICO2PM-00008 | B16: 2PM-00008OVS_ES ACADEMICO | D16: Catalogo principal | E16: 2PM-00008 | F16: OVS_ES ACADEMICO | G16: Catalogo principal | H16: USD | I16: N/A | J16: Microsoft® Cloud App Security Open All Languages Subscription Open Value Level E 1 Month Academic AP Faculty | K16: Unidad | L16: Und | M16: Producto | N16: N/A | O16: N/A | P16: N/A | Q16: 2PM-00008 | R16: Suscripción mensual con pago anual | S16: 0.9 | T16: 1 | U16: 1 | V16: =SUMIF(ResumenCotizacion!$C:$C,E16,ResumenCotizacion!$P:$P) -> 0 | W16: =IF(H16="USD",S16*SolCotizacion!$J$18,S16) -> 3420.765 | X16: =ROUND(W16/(1-VLOOKUP("Total porcentaje:",ResumenCotizacion!$F:$H,3,0)),2) -> 3548.51 | Y16: 0
A17: Catalogo principalOVS_ES ACADEMICO2PM-00009 | B17: 2PM-00009OVS_ES ACADEMICO | D17: Catalogo principal | E17: 2PM-00009 | F17: OVS_ES ACADEMICO | G17: Catalogo principal | H17: USD | I17: N/A | J17: Microsoft® Cloud App Security Open All Languages Subscription Open Value Level F 1 Month Academic AP Faculty | K17: Unidad | L17: Und | M17: Producto | N17: N/A | O17: N/A | P17: N/A | Q17: 2PM-00009 | R17: Suscripción mensual con pago anual | S17: 0.9 | T17: 1 | U17: 1 | V17: =SUMIF(ResumenCotizacion!$C:$C,E17,ResumenCotizacion!$P:$P) -> 0 | W17: =IF(H17="USD",S17*SolCotizacion!$J$18,S17) -> 3420.765 | X17: =ROUND(W17/(1-VLOOKUP("Total porcentaje:",ResumenCotizacion!$F:$H,3,0)),2) -> 3548.51 | Y17: 0
A18: Catalogo principalOVS_ES ACADEMICO2PM-00011 | B18: 2PM-00011OVS_ES ACADEMICO | D18: Catalogo principal | E18: 2PM-00011 | F18: OVS_ES ACADEMICO | G18: Catalogo principal | H18: USD | I18: N/A | J18: Microsoft® Cloud App Security Open All Languages Subscription Open Value No Level 1 Month Academic Student | K18: Unidad | L18: Und | M18: Producto | N18: N/A | O18: N/A | P18: N/A | Q18: 2PM-00011 | R18: Suscripción mensual con pago anual | S18: 0.5 | T18: 1 | U18: 1 | V18: =SUMIF(ResumenCotizacion!$C:$C,E18,ResumenCotizacion!$P:$P) -> 0 | W18: =IF(H18="USD",S18*SolCotizacion!$J$18,S18) -> 1900.425 | X18: =ROUND(W18/(1-VLOOKUP("Total porcentaje:",ResumenCotizacion!$F:$H,3,0)),2) -> 1971.4 | Y18: 0
A19: Catalogo principalOVS_ES ACADEMICO2UJ-00007 | B19: 2UJ-00007OVS_ES ACADEMICO | D19: Catalogo principal | E19: 2UJ-00007 | F19: OVS_ES ACADEMICO | G19: Catalogo principal | H19: USD | I19: N/A | J19: Microsoft® Desktop Education All Languages License & Software Assurance Open Value Level E 1 Year Academic Enterprise ECAL | K19: Unidad | L19: Und | M19: Producto | N19: N/A | O19: N/A | P19: N/A | Q19: 2UJ-00007 | R19: Suscripción Anual | S19: 83 | T19: 1 | U19: 1 | V19: =SUMIF(ResumenCotizacion!$C:$C,E19,ResumenCotizacion!$P:$P) -> 0 | W19: =IF(H19="USD",S19*SolCotizacion!$J$18,S19) -> 315470.55 | X19: =ROUND(W19/(1-VLOOKUP("Total porcentaje:",ResumenCotizacion!$F:$H,3,0)),2) -> 327251.61 | Y19: 0
A20: Catalogo principalOVS_ES ACADEMICO2UJ-00008 | B20: 2UJ-00008OVS_ES ACADEMICO | D20: Catalogo principal | E20: 2UJ-00008 | F20: OVS_ES ACADEMICO | G20: Catalogo principal | H20: USD | I20: N/A | J20: Microsoft® Desktop Education All Languages License & Software Assurance Open Value Level F 1 Year Academic Enterprise ECAL | K20: Unidad | L20: Und | M20: Producto | N20: N/A | O20: N/A | P20: N/A | Q20: 2UJ-00008 | R20: Suscripción Anual | S20: 80 | T20: 1 | U20: 1 | V20: =SUMIF(ResumenCotizacion!$C:$C,E20,ResumenCotizacion!$P:$P) -> 0 | W20: =IF(H20="USD",S20*SolCotizacion!$J$18,S20) -> 304068 | X20: =ROUND(W20/(1-VLOOKUP("Total porcentaje:",ResumenCotizacion!$F:$H,3,0)),2) -> 315423.24 | Y20: 0
A21: Catalogo principalOVS_ES ACADEMICO2UJ-00009 | B21: 2UJ-00009OVS_ES ACADEMICO | D21: Catalogo principal | E21: 2UJ-00009 | F21: OVS_ES ACADEMICO | G21: Catalogo principal | H21: USD | I21: N/A | J21: Microsoft® Desktop Education All Languages SA Step-up Open Value Level E 1 Year Academic Enterprise ECAL | K21: Unidad | L21: Und | M21: Producto | N21: N/A | O21: N/A | P21: N/A | Q21: 2UJ-00009 | R21: Suscripción Anual | S21: 13 | T21: 1 | U21: 1 | V21: =SUMIF(ResumenCotizacion!$C:$C,E21,ResumenCotizacion!$P:$P) -> 0 | W21: =IF(H21="USD",S21*SolCotizacion!$J$18,S21) -> 49411.05 | X21: =ROUND(W21/(1-VLOOKUP("Total porcentaje:",ResumenCotizacion!$F:$H,3,0)),2) -> 51256.28 | Y21: 0
A22: Catalogo principalOVS_ES ACADEMICO2UJ-00010 | B22: 2UJ-00010OVS_ES ACADEMICO | D22: Catalogo principal | E22: 2UJ-00010 | F22: OVS_ES ACADEMICO | G22: Catalogo principal | H22: USD | I22: N/A | J22: Microsoft® Desktop Education All Languages SA Step-up Open Value Level F 1 Year Academic Enterprise ECAL | K22: Unidad | L22: Und | M22: Producto | N22: N/A | O22: N/A | P22: N/A | Q22: 2UJ-00010 | R22: Suscripción Anual | S22: 13 | T22: 1 | U22: 1 | V22: =SUMIF(ResumenCotizacion!$C:$C,E22,ResumenCotizacion!$P:$P) -> 0 | W22: =IF(H22="USD",S22*SolCotizacion!$J$18,S22) -> 49411.05 | X22: =ROUND(W22/(1-VLOOKUP("Total porcentaje:",ResumenCotizacion!$F:$H,3,0)),2) -> 51256.28 | Y22: 0
A23: Catalogo principalOVS_ES ACADEMICO2UJ-00011 | B23: 2UJ-00011OVS_ES ACADEMICO | D23: Catalogo principal | E23: 2UJ-00011 | F23: OVS_ES ACADEMICO | G23: Catalogo principal | H23: USD | I23: N/A | J23: Microsoft® Desktop Education All Languages License & Software Assurance Open Value Level E 1 Year Academic Enterprise | K23: Unidad | L23: Und | M23: Producto | N23: N/A | O23: N/A | P23: N/A | Q23: 2UJ-00011 | R23: Suscripción Anual | S23: 70 | T23: 1 | U23: 1 | V23: =SUMIF(ResumenCotizacion!$C:$C,E23,ResumenCotizacion!$P:$P) -> 0 | W23: =IF(H23="USD",S23*SolCotizacion!$J$18,S23) -> 266059.5 | X23: =ROUND(W23/(1-VLOOKUP("Total porcentaje:",ResumenCotizacion!$F:$H,3,0)),2) -> 275995.33 | Y23: 0
A24: Catalogo principalOVS_ES ACADEMICO2UJ-00012 | B24: 2UJ-00012OVS_ES ACADEMICO | D24: Catalogo principal | E24: 2UJ-00012 | F24: OVS_ES ACADEMICO | G24: Catalogo principal | H24: USD | I24: N/A | J24: Microsoft® Desktop Education All Languages License & Software Assurance Open Value Level F 1 Year Academic Enterprise | K24: Unidad | L24: Und | M24: Producto | N24: N/A | O24: N/A | P24: N/A | Q24: 2UJ-00012 | R24: Suscripción Anual | S24: 68 | T24: 1 | U24: 1 | V24: =SUMIF(ResumenCotizacion!$C:$C,E24,ResumenCotizacion!$P:$P) -> 0 | W24: =IF(H24="USD",S24*SolCotizacion!$J$18,S24) -> 258457.8 | X24: =ROUND(W24/(1-VLOOKUP("Total porcentaje:",ResumenCotizacion!$F:$H,3,0)),2) -> 268109.75 | Y24: 0
A25: Catalogo principalOVS_ES ACADEMICO2UJ-00015 | B25: 2UJ-00015OVS_ES ACADEMICO | D25: Catalogo principal | E25: 2UJ-00015 | F25: OVS_ES ACADEMICO | G25: Catalogo principal | H25: USD | I25: N/A | J25: Microsoft® Desktop Education All Languages License & Software Assurance Open Value No Level 1 Year Academic Student ECAL | K25: Unidad | L25: Und | M25: Producto | N25: N/A | O25: N/A | P25: N/A | Q25: 2UJ-00015 | R25: Suscripción Anual | S25: 38 | T25: 1 | U25: 1 | V25: =SUMIF(ResumenCotizacion!$C:$C,E25,ResumenCotizacion!$P:$P) -> 0 | W25: =IF(H25="USD",S25*SolCotizacion!$J$18,S25) -> 144432.3 | X25: =ROUND(W25/(1-VLOOKUP("Total porcentaje:",ResumenCotizacion!$F:$H,3,0)),2) -> 149826.04 | Y25: 0
A26: Catalogo principalOVS_ES ACADEMICO2UJ-00016 | B26: 2UJ-00016OVS_ES ACADEMICO | D26: Catalogo principal | E26: 2UJ-00016 | F26: OVS_ES ACADEMICO | G26: Catalogo principal | H26: USD | I26: N/A | J26: Microsoft® Desktop Education All Languages SA Step-up Open Value No Level 1 Year Academic Student ECAL | K26: Unidad | L26: Und | M26: Producto | N26: N/A | O26: N/A | P26: N/A | Q26: 2UJ-00016 | R26: Suscripción Anual | S26: 13 | T26: 1 | U26: 1 | V26: =SUMIF(ResumenCotizacion!$C:$C,E26,ResumenCotizacion!$P:$P) -> 0 | W26: =IF(H26="USD",S26*SolCotizacion!$J$18,S26) -> 49411.05 | X26: =ROUND(W26/(1-VLOOKUP("Total porcentaje:",ResumenCotizacion!$F:$H,3,0)),2) -> 51256.28 | Y26: 0
A27: Catalogo principalOVS_ES ACADEMICO2UJ-00017 | B27: 2UJ-00017OVS_ES ACADEMICO | D27: Catalogo principal | E27: 2UJ-00017 | F27: OVS_ES ACADEMICO | G27: Catalogo principal | H27: USD | I27: N/A | J27: Microsoft® Desktop Education All Languages License & Software Assurance Open Value No Level 1 Year Academic Student | K27: Unidad | L27: Und | M27: Producto | N27: N/A | O27: N/A | P27: N/A | Q27: 2UJ-00017 | R27: Suscripción Anual | S27: 26 | T27: 1 | U27: 1 | V27: =SUMIF(ResumenCotizacion!$C:$C,E27,ResumenCotizacion!$P:$P) -> 0 | W27: =IF(H27="USD",S27*SolCotizacion!$J$18,S27) -> 98822.1 | X27: =ROUND(W27/(1-VLOOKUP("Total porcentaje:",ResumenCotizacion!$F:$H,3,0)),2) -> 102512.55 | Y27: 0
A28: Catalogo principalOVS_ES ACADEMICO2ZW-00001 | B28: 2ZW-00001OVS_ES ACADEMICO | D28: Catalogo principal | E28: 2ZW-00001 | F28: OVS_ES ACADEMICO | G28: Catalogo principal | H28: USD | I28: N/A | J28: Microsoft®O365AdvancedComplianceOpenStu ShrdSvr AllLng MonthlySubscriptions-VolumeLicense Academic OLV 1License NoLevel Student 1Month | K28: Unidad | L28: Und | M28: Producto | N28: N/A | O28: N/A | P28: N/A | Q28: 2ZW-00001 | R28: Suscripción mensual con pago anual | S28: 2.2 | T28: 1 | U28: 1 | V28: =SUMIF(ResumenCotizacion!$C:$C,E28,ResumenCotizacion!$P:$P) -> 0 | W28: =IF(H28="USD",S28*SolCotizacion!$J$18,S28) -> 8361.87 | X28: =ROUND(W28/(1-VLOOKUP("Total porcentaje:",ResumenCotizacion!$F:$H,3,0)),2) -> 8674.14 | Y28: 0
A29: Catalogo principalOVS_ES ACADEMICO312-04097 | B29: 312-04097OVS_ES ACADEMICO | D29: Catalogo principal | E29: 312-04097 | F29: OVS_ES ACADEMICO | G29: Catalogo principal | H29: USD | I29: N/A | J29: Microsoft®ExchangeServerStandard AllLng License/SoftwareAssurancePack Academic OLV 1License LevelE AdditionalProduct 1Year | K29: Unidad | L29: Und | M29: Producto | N29: N/A | O29: N/A | P29: N/A | Q29: 312-04097 | R29: Suscripción Anual | S29: 82 | T29: 1 | U29: 1 | V29: =SUMIF(ResumenCotizacion!$C:$C,E29,ResumenCotizacion!$P:$P) -> 0 | W29: =IF(H29="USD",S29*SolCotizacion!$J$18,S29) -> 311669.7 | X29: =ROUND(W29/(1-VLOOKUP("Total porcentaje:",ResumenCotizacion!$F:$H,3,0)),2) -> 323308.82 | Y29: 0
A30: Catalogo principalOVS_ES ACADEMICO312-04098 | B30: 312-04098OVS_ES ACADEMICO | D30: Catalogo principal | E30: 312-04098 | F30: OVS_ES ACADEMICO | G30: Catalogo principal | H30: USD | I30: N/A | J30: Microsoft®ExchangeServerStandard AllLng License/SoftwareAssurancePack Academic OLV 1License LevelF AdditionalProduct 1Year | K30: Unidad | L30: Und | M30: Producto | N30: N/A | O30: N/A | P30: N/A | Q30: 312-04098 | R30: Suscripción Anual | S30: 82 | T30: 1 | U30: 1 | V30: =SUMIF(ResumenCotizacion!$C:$C,E30,ResumenCotizacion!$P:$P) -> 0 | W30: =IF(H30="USD",S30*SolCotizacion!$J$18,S30) -> 311669.7 | X30: =ROUND(W30/(1-VLOOKUP("Total porcentaje:",ResumenCotizacion!$F:$H,3,0)),2) -> 323308.82 | Y30: 0
A31: Catalogo principalOVS_ES ACADEMICO32L-00001 | B31: 32L-00001OVS_ES ACADEMICO | D31: Catalogo principal | E31: 32L-00001 | F31: OVS_ES ACADEMICO | G31: Catalogo principal | H31: USD | I31: N/A | J31: Microsoft®O365AdvancedComplianceOpenFac ShrdSvr AllLng MonthlySubscriptions-VL Academic OLV 1License LevelE AdditionalProduct 1Month | K31: Unidad | L31: Und | M31: Producto | N31: N/A | O31: N/A | P31: N/A | Q31: 32L-00001 | R31: Suscripción mensual con pago anual | S31: 2.5 | T31: 1 | U31: 1 | V31: =SUMIF(ResumenCotizacion!$C:$C,E31,ResumenCotizacion!$P:$P) -> 0 | W31: =IF(H31="USD",S31*SolCotizacion!$J$18,S31) -> 9502.125 | X31: =ROUND(W31/(1-VLOOKUP("Total porcentaje:",ResumenCotizacion!$F:$H,3,0)),2) -> 9856.98 | Y31: 0
A32: Catalogo principalOVS_ES ACADEMICO32L-00002 | B32: 32L-00002OVS_ES ACADEMICO | D32: Catalogo principal | E32: 32L-00002 | F32: OVS_ES ACADEMICO | G32: Catalogo principal | H32: USD | I32: N/A | J32: Microsoft®O365AdvancedComplianceOpenFac ShrdSvr AllLng MonthlySubscriptions-VL Academic OLV 1License LevelF AdditionalProduct 1Month | K32: Unidad | L32: Und | M32: Producto | N32: N/A | O32: N/A | P32: N/A | Q32: 32L-00002 | R32: Suscripción mensual con pago anual | S32: 2.5 | T32: 1 | U32: 1 | V32: =SUMIF(ResumenCotizacion!$C:$C,E32,ResumenCotizacion!$P:$P) -> 0 | W32: =IF(H32="USD",S32*SolCotizacion!$J$18,S32) -> 9502.125 | X32: =ROUND(W32/(1-VLOOKUP("Total porcentaje:",ResumenCotizacion!$F:$H,3,0)),2) -> 9856.98 | Y32: 0
A33: Catalogo principalOVS_ES ACADEMICO32N-00001 | B33: 32N-00001OVS_ES ACADEMICO | D33: Catalogo principal | E33: 32N-00001 | F33: OVS_ES ACADEMICO | G33: Catalogo principal | H33: USD | I33: N/A | J33: Microsoft® MyAnalytics Open Student All Languages Subscription Open Value No Level 1 Month Academic | K33: Unidad | L33: Und | M33: Producto | N33: N/A | O33: N/A | P33: N/A | Q33: 32N-00001 | R33: Suscripción mensual con pago anual | S33: 1.2 | T33: 1 | U33: 1 | V33: =SUMIF(ResumenCotizacion!$C:$C,E33,ResumenCotizacion!$P:$P) -> 0 | W33: =IF(H33="USD",S33*SolCotizacion!$J$18,S33) -> 4561.02 | X33: =ROUND(W33/(1-VLOOKUP("Total porcentaje:",ResumenCotizacion!$F:$H,3,0)),2) -> 4731.35 | Y33: 0
A34: Catalogo principalOVS_ES ACADEMICO32P-00001 | B34: 32P-00001OVS_ES ACADEMICO | D34: Catalogo principal | E34: 32P-00001 | F34: OVS_ES ACADEMICO | G34: Catalogo principal | H34: USD | I34: N/A | J34: Microsoft® MyAnalytics Open Faculty All Languages Subscription Open Value Level E 1 Month Academic Additional Product | K34: Unidad | L34: Und | M34: Producto | N34: N/A | O34: N/A | P34: N/A | Q34: 32P-00001 | R34: Suscripción mensual con pago anual | S34: 1.5 | T34: 1 | U34: 1 | V34: =SUMIF(ResumenCotizacion!$C:$C,E34,ResumenCotizacion!$P:$P) -> 0 | W34: =IF(H34="USD",S34*SolCotizacion!$J$18,S34) -> 5701.275 | X34: =ROUND(W34/(1-VLOOKUP("Total porcentaje:",ResumenCotizacion!$F:$H,3,0)),2) -> 5914.19 | Y34: 0
A35: Catalogo principalOVS_ES ACADEMICO32P-00002 | B35: 32P-00002OVS_ES ACADEMICO | D35: Catalogo principal | E35: 32P-00002 | F35: OVS_ES ACADEMICO | G35: Catalogo principal | H35: USD | I35: N/A | J35: Microsoft® MyAnalytics Open Faculty All Languages Subscription Open Value Level F 1 Month Academic Additional Product | K35: Unidad | L35: Und | M35: Producto | N35: N/A | O35: N/A | P35: N/A | Q35: 32P-00002 | R35: Suscripción mensual con pago anual | S35: 1.5 | T35: 1 | U35: 1 | V35: =SUMIF(ResumenCotizacion!$C:$C,E35,ResumenCotizacion!$P:$P) -> 0 | W35: =IF(H35="USD",S35*SolCotizacion!$J$18,S35) -> 5701.275 | X35: =ROUND(W35/(1-VLOOKUP("Total porcentaje:",ResumenCotizacion!$F:$H,3,0)),2) -> 5914.19 | Y35: 0
A36: Catalogo principalOVS_ES ACADEMICO32S-00001 | B36: 32S-00001OVS_ES ACADEMICO | D36: Catalogo principal | E36: 32S-00001 | F36: OVS_ES ACADEMICO | G36: Catalogo principal | H36: USD | I36: N/A | J36: Microsoft® Teams Phone Standard Open Student All Languages Subscription Open Value No Level 1 Month Academic | K36: Unidad | L36: Und | M36: Producto | N36: N/A | O36: N/A | P36: N/A | Q36: 32S-00001 | R36: Suscripción mensual con pago anual | S36: 2.3 | T36: 1 | U36: 1 | V36: =SUMIF(ResumenCotizacion!$C:$C,E36,ResumenCotizacion!$P:$P) -> 0 | W36: =IF(H36="USD",S36*SolCotizacion!$J$18,S36) -> 8741.955 | X36: =ROUND(W36/(1-VLOOKUP("Total porcentaje:",ResumenCotizacion!$F:$H,3,0)),2) -> 9068.42 | Y36: 0
A37: Catalogo principalOVS_ES ACADEMICO32V-00001 | B37: 32V-00001OVS_ES ACADEMICO | D37: Catalogo principal | E37: 32V-00001 | F37: OVS_ES ACADEMICO | G37: Catalogo principal | H37: USD | I37: N/A | J37: Microsoft® Teams Phone Standard Open Faculty All Languages Subscription Open Value Level E 1 Month Academic AP | K37: Unidad | L37: Und | M37: Producto | N37: N/A | O37: N/A | P37: N/A | Q37: 32V-00001 | R37: Suscripción mensual con pago anual | S37: 3 | T37: 1 | U37: 1 | V37: =SUMIF(ResumenCotizacion!$C:$C,E37,ResumenCotizacion!$P:$P) -> 0 | W37: =IF(H37="USD",S37*SolCotizacion!$J$18,S37) -> 11402.55 | X37: =ROUND(W37/(1-VLOOKUP("Total porcentaje:",ResumenCotizacion!$F:$H,3,0)),2) -> 11828.37 | Y37: 0
A38: Catalogo principalOVS_ES ACADEMICO32V-00002 | B38: 32V-00002OVS_ES ACADEMICO | D38: Catalogo principal | E38: 32V-00002 | F38: OVS_ES ACADEMICO | G38: Catalogo principal | H38: USD | I38: N/A | J38: Microsoft® Teams Phone Standard Open Faculty All Languages Subscription Open Value Level F 1 Month Academic AP | K38: Unidad | L38: Und | M38: Producto | N38: N/A | O38: N/A | P38: N/A | Q38: 32V-00002 | R38: Suscripción mensual con pago anual | S38: 3 | T38: 1 | U38: 1 | V38: =SUMIF(ResumenCotizacion!$C:$C,E38,ResumenCotizacion!$P:$P) -> 0 | W38: =IF(H38="USD",S38*SolCotizacion!$J$18,S38) -> 11402.55 | X38: =ROUND(W38/(1-VLOOKUP("Total porcentaje:",ResumenCotizacion!$F:$H,3,0)),2) -> 11828.37 | Y38: 0
A39: Catalogo principalOVS_ES ACADEMICO359-05410 | B39: 359-05410OVS_ES ACADEMICO | D39: Catalogo principal | E39: 359-05410 | F39: OVS_ES ACADEMICO | G39: Catalogo principal | H39: USD | I39: N/A | J39: Microsoft®SQLCAL AllLng License/SoftwareAssurancePack Academic OLV 1License LevelE AdditionalProduct DvcCAL 1Year | K39: Unidad | L39: Und | M39: Producto | N39: N/A | O39: N/A | P39: N/A | Q39: 359-05410 | R39: Suscripción Anual | S39: 22 | T39: 1 | U39: 1 | V39: =SUMIF(ResumenCotizacion!$C:$C,E39,ResumenCotizacion!$P:$P) -> 0 | W39: =IF(H39="USD",S39*SolCotizacion!$J$18,S39) -> 83618.7 | X39: =ROUND(W39/(1-VLOOKUP("Total porcentaje:",ResumenCotizacion!$F:$H,3,0)),2) -> 86741.39 | Y39: 0
A40: Catalogo principalOVS_ES ACADEMICO359-05411 | B40: 359-05411OVS_ES ACADEMICO | D40: Catalogo principal | E40: 359-05411 | F40: OVS_ES ACADEMICO | G40: Catalogo principal | H40: USD | I40: N/A | J40: Microsoft®SQLCAL AllLng License/SoftwareAssurancePack Academic OLV 1License LevelF AdditionalProduct DvcCAL 1Year | K40: Unidad | L40: Und | M40: Producto | N40: N/A | O40: N/A | P40: N/A | Q40: 359-05411 | R40: Suscripción Anual | S40: 22 | T40: 1 | U40: 1 | V40: =SUMIF(ResumenCotizacion!$C:$C,E40,ResumenCotizacion!$P:$P) -> 0 | W40: =IF(H40="USD",S40*SolCotizacion!$J$18,S40) -> 83618.7 | X40: =ROUND(W40/(1-VLOOKUP("Total porcentaje:",ResumenCotizacion!$F:$H,3,0)),2) -> 86741.39 | Y40: 0
A41: Catalogo principalOVS_ES ACADEMICO359-05412 | B41: 359-05412OVS_ES ACADEMICO | D41: Catalogo principal | E41: 359-05412 | F41: OVS_ES ACADEMICO | G41: Catalogo principal | H41: USD | I41: N/A | J41: Microsoft®SQLCAL AllLng License/SoftwareAssurancePack Academic OLV 1License LevelE AdditionalProduct UsrCAL 1Year | K41: Unidad | L41: Und | M41: Producto | N41: N/A | O41: N/A | P41: N/A | Q41: 359-05412 | R41: Suscripción Anual | S41: 22 | T41: 1 | U41: 1 | V41: =SUMIF(ResumenCotizacion!$C:$C,E41,ResumenCotizacion!$P:$P) -> 0 | W41: =IF(H41="USD",S41*SolCotizacion!$J$18,S41) -> 83618.7 | X41: =ROUND(W41/(1-VLOOKUP("Total porcentaje:",ResumenCotizacion!$F:$H,3,0)),2) -> 86741.39 | Y41: 0
A42: Catalogo principalOVS_ES ACADEMICO359-05413 | B42: 359-05413OVS_ES ACADEMICO | D42: Catalogo principal | E42: 359-05413 | F42: OVS_ES ACADEMICO | G42: Catalogo principal | H42: USD | I42: N/A | J42: Microsoft®SQLCAL AllLng License/SoftwareAssurancePack Academic OLV 1License LevelF AdditionalProduct UsrCAL 1Year | K42: Unidad | L42: Und | M42: Producto | N42: N/A | O42: N/A | P42: N/A | Q42: 359-05413 | R42: Suscripción Anual | S42: 22 | T42: 1 | U42: 1 | V42: =SUMIF(ResumenCotizacion!$C:$C,E42,ResumenCotizacion!$P:$P) -> 0 | W42: =IF(H42="USD",S42*SolCotizacion!$J$18,S42) -> 83618.7 | X42: =ROUND(W42/(1-VLOOKUP("Total porcentaje:",ResumenCotizacion!$F:$H,3,0)),2) -> 86741.39 | Y42: 0
A43: Catalogo principalOVS_ES ACADEMICO359-05414 | B43: 359-05414OVS_ES ACADEMICO | D43: Catalogo principal | E43: 359-05414 | F43: OVS_ES ACADEMICO | G43: Catalogo principal | H43: USD | I43: N/A | J43: Microsoft®SQLCAL AllLng License/SoftwareAssurancePack Academic OLV 1License LevelE Enterprise DvcCAL 1Year | K43: Unidad | L43: Und | M43: Producto | N43: N/A | O43: N/A | P43: N/A | Q43: 359-05414 | R43: Suscripción Anual | S43: 8 | T43: 1 | U43: 1 | V43: =SUMIF(ResumenCotizacion!$C:$C,E43,ResumenCotizacion!$P:$P) -> 0 | W43: =IF(H43="USD",S43*SolCotizacion!$J$18,S43) -> 30406.8 | X43: =ROUND(W43/(1-VLOOKUP("Total porcentaje:",ResumenCotizacion!$F:$H,3,0)),2) -> 31542.32 | Y43: 0
A44: Catalogo principalOVS_ES ACADEMICO359-05415 | B44: 359-05415OVS_ES ACADEMICO | D44: Catalogo principal | E44: 359-05415 | F44: OVS_ES ACADEMICO | G44: Catalogo principal | H44: USD | I44: N/A | J44: Microsoft®SQLCAL AllLng License/SoftwareAssurancePack Academic OLV 1License LevelF Enterprise DvcCAL 1Year | K44: Unidad | L44: Und | M44: Producto | N44: N/A | O44: N/A | P44: N/A | Q44: 359-05415 | R44: Suscripción Anual | S44: 8 | T44: 1 | U44: 1 | V44: =SUMIF(ResumenCotizacion!$C:$C,E44,ResumenCotizacion!$P:$P) -> 0 | W44: =IF(H44="USD",S44*SolCotizacion!$J$18,S44) -> 30406.8 | X44: =ROUND(W44/(1-VLOOKUP("Total porcentaje:",ResumenCotizacion!$F:$H,3,0)),2) -> 31542.32 | Y44: 0
A45: Catalogo principalOVS_ES ACADEMICO359-05416 | B45: 359-05416OVS_ES ACADEMICO | D45: Catalogo principal | E45: 359-05416 | F45: OVS_ES ACADEMICO | G45: Catalogo principal | H45: USD | I45: N/A | J45: Microsoft®SQLCAL AllLng License/SoftwareAssurancePack Academic OLV 1License LevelE Enterprise UsrCAL 1Year | K45: Unidad | L45: Und | M45: Producto | N45: N/A | O45: N/A | P45: N/A | Q45: 359-05416 | R45: Suscripción Anual | S45: 8 | T45: 1 | U45: 1 | V45: =SUMIF(ResumenCotizacion!$C:$C,E45,ResumenCotizacion!$P:$P) -> 0 | W45: =IF(H45="USD",S45*SolCotizacion!$J$18,S45) -> 30406.8 | X45: =ROUND(W45/(1-VLOOKUP("Total porcentaje:",ResumenCotizacion!$F:$H,3,0)),2) -> 31542.32 | Y45: 0
A46: Catalogo principalOVS_ES ACADEMICO359-05417 | B46: 359-05417OVS_ES ACADEMICO | D46: Catalogo principal | E46: 359-05417 | F46: OVS_ES ACADEMICO | G46: Catalogo principal | H46: USD | I46: N/A | J46: Microsoft®SQLCAL AllLng License/SoftwareAssurancePack Academic OLV 1License LevelF Enterprise UsrCAL 1Year | K46: Unidad | L46: Und | M46: Producto | N46: N/A | O46: N/A | P46: N/A | Q46: 359-05417 | R46: Suscripción Anual | S46: 8 | T46: 1 | U46: 1 | V46: =SUMIF(ResumenCotizacion!$C:$C,E46,ResumenCotizacion!$P:$P) -> 0 | W46: =IF(H46="USD",S46*SolCotizacion!$J$18,S46) -> 30406.8 | X46: =ROUND(W46/(1-VLOOKUP("Total porcentaje:",ResumenCotizacion!$F:$H,3,0)),2) -> 31542.32 | Y46: 0
A47: Catalogo principalOVS_ES ACADEMICO359-05418 | B47: 359-05418OVS_ES ACADEMICO | D47: Catalogo principal | E47: 359-05418 | F47: OVS_ES ACADEMICO | G47: Catalogo principal | H47: USD | I47: N/A | J47: Microsoft®SQLCAL AllLng License/SoftwareAssurancePack Academic OLV 1License NoLevel Student DvcCAL 1Year | K47: Unidad | L47: Und | M47: Producto | N47: N/A | O47: N/A | P47: N/A | Q47: 359-05418 | R47: Suscripción Anual | S47: 8 | T47: 1 | U47: 1 | V47: =SUMIF(ResumenCotizacion!$C:$C,E47,ResumenCotizacion!$P:$P) -> 0 | W47: =IF(H47="USD",S47*SolCotizacion!$J$18,S47) -> 30406.8 | X47: =ROUND(W47/(1-VLOOKUP("Total porcentaje:",ResumenCotizacion!$F:$H,3,0)),2) -> 31542.32 | Y47: 0
A48: Catalogo principalOVS_ES ACADEMICO359-05419 | B48: 359-05419OVS_ES ACADEMICO | D48: Catalogo principal | E48: 359-05419 | F48: OVS_ES ACADEMICO | G48: Catalogo principal | H48: USD | I48: N/A | J48: Microsoft®SQLCAL AllLng License/SoftwareAssurancePack Academic OLV 1License NoLevel Student UsrCAL 1Year | K48: Unidad | L48: Und | M48: Producto | N48: N/A | O48: N/A | P48: N/A | Q48: 359-05419 | R48: Suscripción Anual | S48: 8 | T48: 1 | U48: 1 | V48: =SUMIF(ResumenCotizacion!$C:$C,E48,ResumenCotizacion!$P:$P) -> 0 | W48: =IF(H48="USD",S48*SolCotizacion!$J$18,S48) -> 30406.8 | X48: =ROUND(W48/(1-VLOOKUP("Total porcentaje:",ResumenCotizacion!$F:$H,3,0)),2) -> 31542.32 | Y48: 0
A49: Catalogo principalOVS_ES ACADEMICO381-04234 | B49: 381-04234OVS_ES ACADEMICO | D49: Catalogo principal | E49: 381-04234 | F49: OVS_ES ACADEMICO | G49: Catalogo principal | H49: USD | I49: N/A | J49: Microsoft®ExchangeStandardCAL AllLng License/SoftwareAssurancePack Academic OLV 1License LevelE Enterprise DvcCAL 1Year | K49: Unidad | L49: Und | M49: Producto | N49: N/A | O49: N/A | P49: N/A | Q49: 381-04234 | R49: Suscripción Anual | S49: 3.28 | T49: 1 | U49: 1 | V49: =SUMIF(ResumenCotizacion!$C:$C,E49,ResumenCotizacion!$P:$P) -> 0 | W49: =IF(H49="USD",S49*SolCotizacion!$J$18,S49) -> 12466.788 | X49: =ROUND(W49/(1-VLOOKUP("Total porcentaje:",ResumenCotizacion!$F:$H,3,0)),2) -> 12932.35 | Y49: 0
A50: Catalogo principalOVS_ES ACADEMICO381-04235 | B50: 381-04235OVS_ES ACADEMICO | D50: Catalogo principal | E50: 381-04235 | F50: OVS_ES ACADEMICO | G50: Catalogo principal | H50: USD | I50: N/A | J50: Microsoft®ExchangeStandardCAL AllLng License/SoftwareAssurancePack Academic OLV 1License LevelF Enterprise DvcCAL 1Year | K50: Unidad | L50: Und | M50: Producto | N50: N/A | O50: N/A | P50: N/A | Q50: 381-04235 | R50: Suscripción Anual | S50: 3.28 | T50: 1 | U50: 1 | V50: =SUMIF(ResumenCotizacion!$C:$C,E50,ResumenCotizacion!$P:$P) -> 0 | W50: =IF(H50="USD",S50*SolCotizacion!$J$18,S50) -> 12466.788 | X50: =ROUND(W50/(1-VLOOKUP("Total porcentaje:",ResumenCotizacion!$F:$H,3,0)),2) -> 12932.35 | Y50: 0
A51: Catalogo principalOVS_ES ACADEMICO381-04236 | B51: 381-04236OVS_ES ACADEMICO | D51: Catalogo principal | E51: 381-04236 | F51: OVS_ES ACADEMICO | G51: Catalogo principal | H51: USD | I51: N/A | J51: Microsoft®ExchangeStandardCAL AllLng License/SoftwareAssurancePack Academic OLV 1License LevelE Enterprise UsrCAL 1Year | K51: Unidad | L51: Und | M51: Producto | N51: N/A | O51: N/A | P51: N/A | Q51: 381-04236 | R51: Suscripción Anual | S51: 3.12 | T51: 1 | U51: 1 | V51: =SUMIF(ResumenCotizacion!$C:$C,E51,ResumenCotizacion!$P:$P) -> 0 | W51: =IF(H51="USD",S51*SolCotizacion!$J$18,S51) -> 11858.652 | X51: =ROUND(W51/(1-VLOOKUP("Total porcentaje:",ResumenCotizacion!$F:$H,3,0)),2) -> 12301.51 | Y51: 0
A52: Catalogo principalOVS_ES ACADEMICO381-04237 | B52: 381-04237OVS_ES ACADEMICO | D52: Catalogo principal | E52: 381-04237 | F52: OVS_ES ACADEMICO | G52: Catalogo principal | H52: USD | I52: N/A | J52: Microsoft®ExchangeStandardCAL AllLng License/SoftwareAssurancePack Academic OLV 1License LevelF Enterprise UsrCAL 1Year | K52: Unidad | L52: Und | M52: Producto | N52: N/A | O52: N/A | P52: N/A | Q52: 381-04237 | R52: Suscripción Anual | S52: 3.12 | T52: 1 | U52: 1 | V52: =SUMIF(ResumenCotizacion!$C:$C,E52,ResumenCotizacion!$P:$P) -> 0 | W52: =IF(H52="USD",S52*SolCotizacion!$J$18,S52) -> 11858.652 | X52: =ROUND(W52/(1-VLOOKUP("Total porcentaje:",ResumenCotizacion!$F:$H,3,0)),2) -> 12301.51 | Y52: 0
A53: Catalogo principalOVS_ES ACADEMICO381-04238 | B53: 381-04238OVS_ES ACADEMICO | D53: Catalogo principal | E53: 381-04238 | F53: OVS_ES ACADEMICO | G53: Catalogo principal | H53: USD | I53: N/A | J53: Microsoft®ExchangeStandardCAL AllLng License/SoftwareAssurancePack Academic OLV 1License NoLevel Student DvcCAL 1Year | K53: Unidad | L53: Und | M53: Producto | N53: N/A | O53: N/A | P53: N/A | Q53: 381-04238 | R53: Suscripción Anual | S53: 0.78 | T53: 1 | U53: 1 | V53: =SUMIF(ResumenCotizacion!$C:$C,E53,ResumenCotizacion!$P:$P) -> 0 | W53: =IF(H53="USD",S53*SolCotizacion!$J$18,S53) -> 2964.663 | X53: =ROUND(W53/(1-VLOOKUP("Total porcentaje:",ResumenCotizacion!$F:$H,3,0)),2) -> 3075.38 | Y53: 0
A54: Catalogo principalOVS_ES ACADEMICO381-04239 | B54: 381-04239OVS_ES ACADEMICO | D54: Catalogo principal | E54: 381-04239 | F54: OVS_ES ACADEMICO | G54: Catalogo principal | H54: USD | I54: N/A | J54: Microsoft®ExchangeStandardCAL AllLng License/SoftwareAssurancePack Academic OLV 1License NoLevel Student UsrCAL 1Year | K54: Unidad | L54: Und | M54: Producto | N54: N/A | O54: N/A | P54: N/A | Q54: 381-04239 | R54: Suscripción Anual | S54: 0.78 | T54: 1 | U54: 1 | V54: =SUMIF(ResumenCotizacion!$C:$C,E54,ResumenCotizacion!$P:$P) -> 0 | W54: =IF(H54="USD",S54*SolCotizacion!$J$18,S54) -> 2964.663 | X54: =ROUND(W54/(1-VLOOKUP("Total porcentaje:",ResumenCotizacion!$F:$H,3,0)),2) -> 3075.38 | Y54: 0
A55: Catalogo principalOVS_ES ACADEMICO395-04412 | B55: 395-04412OVS_ES ACADEMICO | D55: Catalogo principal | E55: 395-04412 | F55: OVS_ES ACADEMICO | G55: Catalogo principal | H55: USD | I55: N/A | J55: Microsoft®ExchangeServerEnterprise AllLng License/SoftwareAssurancePack Academic OLV 1License LevelE AdditionalProduct 1Year | K55: Unidad | L55: Und | M55: Producto | N55: N/A | O55: N/A | P55: N/A | Q55: 395-04412 | R55: Suscripción Anual | S55: 469 | T55: 1 | U55: 1 | V55: =SUMIF(ResumenCotizacion!$C:$C,E55,ResumenCotizacion!$P:$P) -> 0 | W55: =IF(H55="USD",S55*SolCotizacion!$J$18,S55) -> 1782598.65 | X55: =ROUND(W55/(1-VLOOKUP("Total porcentaje:",ResumenCotizacion!$F:$H,3,0)),2) -> 1849168.72 | Y55: 0
A56: Catalogo principalOVS_ES ACADEMICO395-04413 | B56: 395-04413OVS_ES ACADEMICO | D56: Catalogo principal | E56: 395-04413 | F56: OVS_ES ACADEMICO | G56: Catalogo principal | H56: USD | I56: N/A | J56: Microsoft®ExchangeServerEnterprise AllLng License/SoftwareAssurancePack Academic OLV 1License LevelF AdditionalProduct 1Year | K56: Unidad | L56: Und | M56: Producto | N56: N/A | O56: N/A | P56: N/A | Q56: 395-04413 | R56: Suscripción Anual | S56: 469 | T56: 1 | U56: 1 | V56: =SUMIF(ResumenCotizacion!$C:$C,E56,ResumenCotizacion!$P:$P) -> 0 | W56: =IF(H56="USD",S56*SolCotizacion!$J$18,S56) -> 1782598.65 | X56: =ROUND(W56/(1-VLOOKUP("Total porcentaje:",ResumenCotizacion!$F:$H,3,0)),2) -> 1849168.72 | Y56: 0
A57: Catalogo principalOVS_ES ACADEMICO395-04414 | B57: 395-04414OVS_ES ACADEMICO | D57: Catalogo principal | E57: 395-04414 | F57: OVS_ES ACADEMICO | G57: Catalogo principal | H57: USD | I57: N/A | J57: Microsoft®ExchangeServerEnterprise AllLng SAStepUp Academic OLV 1License LevelE ExchangeServer-Standard AdditionalProduct 1Year | K57: Unidad | L57: Und | M57: Producto | N57: N/A | O57: N/A | P57: N/A | Q57: 395-04414 | R57: Suscripción Anual | S57: 387 | T57: 1 | U57: 1 | V57: =SUMIF(ResumenCotizacion!$C:$C,E57,ResumenCotizacion!$P:$P) -> 0 | W57: =IF(H57="USD",S57*SolCotizacion!$J$18,S57) -> 1470928.95 | X57: =ROUND(W57/(1-VLOOKUP("Total porcentaje:",ResumenCotizacion!$F:$H,3,0)),2) -> 1525859.91 | Y57: 0
A58: Catalogo principalOVS_ES ACADEMICO395-04415 | B58: 395-04415OVS_ES ACADEMICO | D58: Catalogo principal | E58: 395-04415 | F58: OVS_ES ACADEMICO | G58: Catalogo principal | H58: USD | I58: N/A | J58: Microsoft®ExchangeServerEnterprise AllLng SAStepUp Academic OLV 1License LevelF ExchangeServer-Standard AdditionalProduct 1Year | K58: Unidad | L58: Und | M58: Producto | N58: N/A | O58: N/A | P58: N/A | Q58: 395-04415 | R58: Suscripción Anual | S58: 387 | T58: 1 | U58: 1 | V58: =SUMIF(ResumenCotizacion!$C:$C,E58,ResumenCotizacion!$P:$P) -> 0 | W58: =IF(H58="USD",S58*SolCotizacion!$J$18,S58) -> 1470928.95 | X58: =ROUND(W58/(1-VLOOKUP("Total porcentaje:",ResumenCotizacion!$F:$H,3,0)),2) -> 1525859.91 | Y58: 0
A59: Catalogo principalOVS_ES ACADEMICO3LN-00001 | B59: 3LN-00001OVS_ES ACADEMICO | D59: Catalogo principal | E59: 3LN-00001 | F59: OVS_ES ACADEMICO | G59: Catalogo principal | H59: USD | I59: N/A | J59: Microsoft® Intune Open All Languages Subscription Open Value Level E 1 Month Academic Additional Product Faculty | K59: Unidad | L59: Und | M59: Producto | N59: N/A | O59: N/A | P59: N/A | Q59: 3LN-00001 | R59: Suscripción mensual con pago anual | S59: 0.61 | T59: 1 | U59: 1 | V59: =SUMIF(ResumenCotizacion!$C:$C,E59,ResumenCotizacion!$P:$P) -> 0 | W59: =IF(H59="USD",S59*SolCotizacion!$J$18,S59) -> 2318.5185 | X59: =ROUND(W59/(1-VLOOKUP("Total porcentaje:",ResumenCotizacion!$F:$H,3,0)),2) -> 2405.1 | Y59: 0
A60: Catalogo principalOVS_ES ACADEMICO3LN-00002 | B60: 3LN-00002OVS_ES ACADEMICO | D60: Catalogo principal | E60: 3LN-00002 | F60: OVS_ES ACADEMICO | G60: Catalogo principal | H60: USD | I60: N/A | J60: Microsoft® Intune Open All Languages Subscription Open Value Level F 1 Month Academic Additional Product Faculty | K60: Unidad | L60: Und | M60: Producto | N60: N/A | O60: N/A | P60: N/A | Q60: 3LN-00002 | R60: Suscripción mensual con pago anual | S60: 0.61 | T60: 1 | U60: 1 | V60: =SUMIF(ResumenCotizacion!$C:$C,E60,ResumenCotizacion!$P:$P) -> 0 | W60: =IF(H60="USD",S60*SolCotizacion!$J$18,S60) -> 2318.5185 | X60: =ROUND(W60/(1-VLOOKUP("Total porcentaje:",ResumenCotizacion!$F:$H,3,0)),2) -> 2405.1 | Y60: 0
A61: Catalogo principalOVS_ES ACADEMICO3LN-00004 | B61: 3LN-00004OVS_ES ACADEMICO | D61: Catalogo principal | E61: 3LN-00004 | F61: OVS_ES ACADEMICO | G61: Catalogo principal | H61: USD | I61: N/A | J61: Microsoft® Intune Open All Languages Subscription Open Value No Level 1 Month Academic Student | K61: Unidad | L61: Und | M61: Producto | N61: N/A | O61: N/A | P61: N/A | Q61: 3LN-00004 | R61: Suscripción mensual con pago anual | S61: 0.61 | T61: 1 | U61: 1 | V61: =SUMIF(ResumenCotizacion!$C:$C,E61,ResumenCotizacion!$P:$P) -> 0 | W61: =IF(H61="USD",S61*SolCotizacion!$J$18,S61) -> 2318.5185 | X61: =ROUND(W61/(1-VLOOKUP("Total porcentaje:",ResumenCotizacion!$F:$H,3,0)),2) -> 2405.1 | Y61: 0
A62: Catalogo principalOVS_ES ACADEMICO3LN-00012 | B62: 3LN-00012OVS_ES ACADEMICO | D62: Catalogo principal | E62: 3LN-00012 | F62: OVS_ES ACADEMICO | G62: Catalogo principal | H62: USD | I62: N/A | J62: Microsoft® Intune Open All Languages Subscription Open Value No Level 1 Month Academic OLS Student | K62: Unidad | L62: Und | M62: Producto | N62: N/A | O62: N/A | P62: N/A | Q62: 3LN-00012 | R62: Suscripción mensual con pago anual | S62: 0.61 | T62: 1 | U62: 1 | V62: =SUMIF(ResumenCotizacion!$C:$C,E62,ResumenCotizacion!$P:$P) -> 0 | W62: =IF(H62="USD",S62*SolCotizacion!$J$18,S62) -> 2318.5185 | X62: =ROUND(W62/(1-VLOOKUP("Total porcentaje:",ResumenCotizacion!$F:$H,3,0)),2) -> 2405.1 | Y62: 0
A63: Catalogo principalOVS_ES ACADEMICO3LN-00013 | B63: 3LN-00013OVS_ES ACADEMICO | D63: Catalogo principal | E63: 3LN-00013 | F63: OVS_ES ACADEMICO | G63: Catalogo principal | H63: USD | I63: N/A | J63: Microsoft® Intune Open All Languages Subscription Open Value Level E 1 Month Academic AP OLS Faculty | K63: Unidad | L63: Und | M63: Producto | N63: N/A | O63: N/A | P63: N/A | Q63: 3LN-00013 | R63: Suscripción mensual con pago anual | S63: 0.61 | T63: 1 | U63: 1 | V63: =SUMIF(ResumenCotizacion!$C:$C,E63,ResumenCotizacion!$P:$P) -> 0 | W63: =IF(H63="USD",S63*SolCotizacion!$J$18,S63) -> 2318.5185 | X63: =ROUND(W63/(1-VLOOKUP("Total porcentaje:",ResumenCotizacion!$F:$H,3,0)),2) -> 2405.1 | Y63: 0
A64: Catalogo principalOVS_ES ACADEMICO3LN-00014 | B64: 3LN-00014OVS_ES ACADEMICO | D64: Catalogo principal | E64: 3LN-00014 | F64: OVS_ES ACADEMICO | G64: Catalogo principal | H64: USD | I64: N/A | J64: Microsoft® Intune Open All Languages Subscription Open Value Level F 1 Month Academic AP OLS Faculty | K64: Unidad | L64: Und | M64: Producto | N64: N/A | O64: N/A | P64: N/A | Q64: 3LN-00014 | R64: Suscripción mensual con pago anual | S64: 0.61 | T64: 1 | U64: 1 | V64: =SUMIF(ResumenCotizacion!$C:$C,E64,ResumenCotizacion!$P:$P) -> 0 | W64: =IF(H64="USD",S64*SolCotizacion!$J$18,S64) -> 2318.5185 | X64: =ROUND(W64/(1-VLOOKUP("Total porcentaje:",ResumenCotizacion!$F:$H,3,0)),2) -> 2405.1 | Y64: 0
A65: Catalogo principalOVS_ES ACADEMICO3LN-00016 | B65: 3LN-00016OVS_ES ACADEMICO | D65: Catalogo principal | E65: 3LN-00016 | F65: OVS_ES ACADEMICO | G65: Catalogo principal | H65: USD | I65: N/A | J65: Microsoft® Intune Open All Languages Subscription Open Value Level E 1 Month Academic Additional Product Student Use Benefit Renewal Only | K65: Unidad | L65: Und | M65: Producto | N65: N/A | O65: N/A | P65: N/A | Q65: 3LN-00016 | R65: Suscripción mensual con pago anual | S65: 0 | T65: 1 | U65: 1 | V65: =SUMIF(ResumenCotizacion!$C:$C,E65,ResumenCotizacion!$P:$P) -> 0 | W65: =IF(H65="USD",S65*SolCotizacion!$J$18,S65) -> 0 | X65: =ROUND(W65/(1-VLOOKUP("Total porcentaje:",ResumenCotizacion!$F:$H,3,0)),2) -> 0 | Y65: 0
A66: =D66&F66&E66 -> Catalogo principalOVS_ES ACADEMICO3LN-00017 | B66: =E66&F66 -> 3LN-00017OVS_ES ACADEMICO | D66: Catalogo principal | E66: 3LN-00017 | F66: OVS_ES ACADEMICO | G66: Catalogo principal | H66: USD | I66: N/A | J66: Microsoft® Intune Open All Languages Subscription Open Value Level F 1 Month Academic Additional Product Student Use Benefit Renewal Only | K66: Unidad | L66: Und | M66: Producto | N66: N/A | O66: N/A | P66: N/A | Q66: 3LN-00017 | R66: Suscripción mensual con pago anual | S66: 0 | T66: 1 | U66: 1 | V66: =SUMIF(ResumenCotizacion!$C:$C,E66,ResumenCotizacion!$P:$P) -> 0 | W66: =IF(H66="USD",S66*SolCotizacion!$J$18,S66) -> 0 | X66: =ROUND(W66/(1-VLOOKUP("Total porcentaje:",ResumenCotizacion!$F:$H,3,0)),2) -> 0 | Y66: 0
A67: Catalogo principalOVS_ES ACADEMICO3LN-00018 | B67: 3LN-00018OVS_ES ACADEMICO | D67: Catalogo principal | E67: 3LN-00018 | F67: OVS_ES ACADEMICO | G67: Catalogo principal | H67: USD | I67: N/A | J67: Microsoft® Intune Open All Languages Subscription Open Value No Level 1 Month Academic Student with Faculty Renewal Only | K67: Unidad | L67: Und | M67: Producto | N67: N/A | O67: N/A | P67: N/A | Q67: 3LN-00018 | R67: Suscripción mensual con pago anual | S67: 0 | T67: 1 | U67: 1 | V67: =SUMIF(ResumenCotizacion!$C:$C,E67,ResumenCotizacion!$P:$P) -> 0 | W67: =IF(H67="USD",S67*SolCotizacion!$J$18,S67) -> 0 | X67: =ROUND(W67/(1-VLOOKUP("Total porcentaje:",ResumenCotizacion!$F:$H,3,0)),2) -> 0 | Y67: =V67*X67 -> 0
A68: Catalogo principalOVS_ES ACADEMICO3ND-00739 | B68: 3ND-00739OVS_ES ACADEMICO | D68: Catalogo principal | E68: 3ND-00739 | F68: OVS_ES ACADEMICO | G68: Catalogo principal | H68: USD | I68: N/A | J68: Microsoft®SysCtrServiceMgrCltMgmtLic AllLng License/SoftwareAssurancePack Academic OLV 1License LevelE Enterprise PerOSE 1Year | K68: Unidad | L68: Und | M68: Producto | N68: N/A | O68: N/A | P68: N/A | Q68: 3ND-00739 | R68: Suscripción Anual | S68: 1.25 | T68: 1 | U68: 1 | V68: =SUMIF(ResumenCotizacion!$C:$C,E68,ResumenCotizacion!$P:$P) -> 0 | W68: =IF(H68="USD",S68*SolCotizacion!$J$18,S68) -> 4751.0625 | X68: =ROUND(W68/(1-VLOOKUP("Total porcentaje:",ResumenCotizacion!$F:$H,3,0)),2) -> 4928.49 | Y68: 0
A69: Catalogo principalOVS_ES ACADEMICO3ND-00740 | B69: 3ND-00740OVS_ES ACADEMICO | D69: Catalogo principal | E69: 3ND-00740 | F69: OVS_ES ACADEMICO | G69: Catalogo principal | H69: USD | I69: N/A | J69: Microsoft®SysCtrServiceMgrCltMgmtLic AllLng License/SoftwareAssurancePack Academic OLV 1License LevelF Enterprise PerOSE 1Year | K69: Unidad | L69: Und | M69: Producto | N69: N/A | O69: N/A | P69: N/A | Q69: 3ND-00740 | R69: Suscripción Anual | S69: 1.25 | T69: 1 | U69: 1 | V69: =SUMIF(ResumenCotizacion!$C:$C,E69,ResumenCotizacion!$P:$P) -> 0 | W69: =IF(H69="USD",S69*SolCotizacion!$J$18,S69) -> 4751.0625 | X69: =ROUND(W69/(1-VLOOKUP("Total porcentaje:",ResumenCotizacion!$F:$H,3,0)),2) -> 4928.49 | Y69: 0
A70: Catalogo principalOVS_ES ACADEMICO3ND-00741 | B70: 3ND-00741OVS_ES ACADEMICO | D70: Catalogo principal | E70: 3ND-00741 | F70: OVS_ES ACADEMICO | G70: Catalogo principal | H70: USD | I70: N/A | J70: Microsoft®SysCtrServiceMgrCltMgmtLic AllLng License/SoftwareAssurancePack Academic OLV 1License LevelE Enterprise PerUsr 1Year | K70: Unidad | L70: Und | M70: Producto | N70: N/A | O70: N/A | P70: N/A | Q70: 3ND-00741 | R70: Suscripción Anual | S70: 1.25 | T70: 1 | U70: 1 | V70: =SUMIF(ResumenCotizacion!$C:$C,E70,ResumenCotizacion!$P:$P) -> 0 | W70: =IF(H70="USD",S70*SolCotizacion!$J$18,S70) -> 4751.0625 | X70: =ROUND(W70/(1-VLOOKUP("Total porcentaje:",ResumenCotizacion!$F:$H,3,0)),2) -> 4928.49 | Y70: 0
A71: Catalogo principalOVS_ES ACADEMICO3ND-00742 | B71: 3ND-00742OVS_ES ACADEMICO | D71: Catalogo principal | E71: 3ND-00742 | F71: OVS_ES ACADEMICO | G71: Catalogo principal | H71: USD | I71: N/A | J71: Microsoft®SysCtrServiceMgrCltMgmtLic AllLng License/SoftwareAssurancePack Academic OLV 1License LevelF Enterprise PerUsr 1Year | K71: Unidad | L71: Und | M71: Producto | N71: N/A | O71: N/A | P71: N/A | Q71: 3ND-00742 | R71: Suscripción Anual | S71: 1.25 | T71: 1 | U71: 1 | V71: =SUMIF(ResumenCotizacion!$C:$C,E71,ResumenCotizacion!$P:$P) -> 0 | W71: =IF(H71="USD",S71*SolCotizacion!$J$18,S71) -> 4751.0625 | X71: =ROUND(W71/(1-VLOOKUP("Total porcentaje:",ResumenCotizacion!$F:$H,3,0)),2) -> 4928.49 | Y71: 0
A72: Catalogo principalOVS_ES ACADEMICO3ND-00743 | B72: 3ND-00743OVS_ES ACADEMICO | D72: Catalogo principal | E72: 3ND-00743 | F72: OVS_ES ACADEMICO | G72: Catalogo principal | H72: USD | I72: N/A | J72: Microsoft®SysCtrServiceMgrCltMgmtLic AllLng License/SoftwareAssurancePack Academic OLV 1License NoLevel Student PerOSE 1Year | K72: Unidad | L72: Und | M72: Producto | N72: N/A | O72: N/A | P72: N/A | Q72: 3ND-00743 | R72: Suscripción Anual | S72: 0.94 | T72: 1 | U72: 1 | V72: =SUMIF(ResumenCotizacion!$C:$C,E72,ResumenCotizacion!$P:$P) -> 0 | W72: =IF(H72="USD",S72*SolCotizacion!$J$18,S72) -> 3572.799 | X72: =ROUND(W72/(1-VLOOKUP("Total porcentaje:",ResumenCotizacion!$F:$H,3,0)),2) -> 3706.22 | Y72: 0
A73: Catalogo principalOVS_ES ACADEMICO3ND-00744 | B73: 3ND-00744OVS_ES ACADEMICO | D73: Catalogo principal | E73: 3ND-00744 | F73: OVS_ES ACADEMICO | G73: Catalogo principal | H73: USD | I73: N/A | J73: Microsoft®SysCtrServiceMgrCltMgmtLic AllLng License/SoftwareAssurancePack Academic OLV 1License NoLevel Student PerUsr 1Year | K73: Unidad | L73: Und | M73: Producto | N73: N/A | O73: N/A | P73: N/A | Q73: 3ND-00744 | R73: Suscripción Anual | S73: 0.94 | T73: 1 | U73: 1 | V73: =SUMIF(ResumenCotizacion!$C:$C,E73,ResumenCotizacion!$P:$P) -> 0 | W73: =IF(H73="USD",S73*SolCotizacion!$J$18,S73) -> 3572.799 | X73: =ROUND(W73/(1-VLOOKUP("Total porcentaje:",ResumenCotizacion!$F:$H,3,0)),2) -> 3706.22 | Y73: 0
A74: Catalogo principalOVS_ES ACADEMICO3VU-00001 | B74: 3VU-00001OVS_ES ACADEMICO | D74: Catalogo principal | E74: 3VU-00001 | F74: OVS_ES ACADEMICO | G74: Catalogo principal | H74: USD | I74: N/A | J74: Microsoft® MSDN Platforms All Languages License & Software Assurance Open Value Level E 1 Year Academic Additional Product | K74: Unidad | L74: Und | M74: Producto | N74: N/A | O74: N/A | P74: N/A | Q74: 3VU-00001 | R74: Suscripción Anual | S74: 156 | T74: 1 | U74: 1 | V74: =SUMIF(ResumenCotizacion!$C:$C,E74,ResumenCotizacion!$P:$P) -> 0 | W74: =IF(H74="USD",S74*SolCotizacion!$J$18,S74) -> 592932.6 | X74: =ROUND(W74/(1-VLOOKUP("Total porcentaje:",ResumenCotizacion!$F:$H,3,0)),2) -> 615075.31 | Y74: 0
A75: Catalogo principalOVS_ES ACADEMICO3VU-00002 | B75: 3VU-00002OVS_ES ACADEMICO | D75: Catalogo principal | E75: 3VU-00002 | F75: OVS_ES ACADEMICO | G75: Catalogo principal | H75: USD | I75: N/A | J75: Microsoft® MSDN Platforms All Languages License & Software Assurance Open Value Level F 1 Year Academic Additional Product | K75: Unidad | L75: Und | M75: Producto | N75: N/A | O75: N/A | P75: N/A | Q75: 3VU-00002 | R75: Suscripción Anual | S75: 156 | T75: 1 | U75: 1 | V75: =SUMIF(ResumenCotizacion!$C:$C,E75,ResumenCotizacion!$P:$P) -> 0 | W75: =IF(H75="USD",S75*SolCotizacion!$J$18,S75) -> 592932.6 | X75: =ROUND(W75/(1-VLOOKUP("Total porcentaje:",ResumenCotizacion!$F:$H,3,0)),2) -> 615075.31 | Y75: 0
A76: Catalogo principalOVS_ES ACADEMICO3ZK-00219 | B76: 3ZK-00219OVS_ES ACADEMICO | D76: Catalogo principal | E76: 3ZK-00219 | F76: OVS_ES ACADEMICO | G76: Catalogo principal | H76: USD | I76: N/A | J76: Microsoft®SysCtrOrchestratorSvr AllLng License/SoftwareAssurancePack Academic OLV 1License LevelE Enterprise PerOSE 1Year | K76: Unidad | L76: Und | M76: Producto | N76: N/A | O76: N/A | P76: N/A | Q76: 3ZK-00219 | R76: Suscripción Anual | S76: 1.25 | T76: 1 | U76: 1 | V76: =SUMIF(ResumenCotizacion!$C:$C,E76,ResumenCotizacion!$P:$P) -> 0 | W76: =IF(H76="USD",S76*SolCotizacion!$J$18,S76) -> 4751.0625 | X76: =ROUND(W76/(1-VLOOKUP("Total porcentaje:",ResumenCotizacion!$F:$H,3,0)),2) -> 4928.49 | Y76: 0
A77: Catalogo principalOVS_ES ACADEMICO3ZK-00220 | B77: 3ZK-00220OVS_ES ACADEMICO | D77: Catalogo principal | E77: 3ZK-00220 | F77: OVS_ES ACADEMICO | G77: Catalogo principal | H77: USD | I77: N/A | J77: Microsoft®SysCtrOrchestratorSvr AllLng License/SoftwareAssurancePack Academic OLV 1License LevelF Enterprise PerOSE 1Year | K77: Unidad | L77: Und | M77: Producto | N77: N/A | O77: N/A | P77: N/A | Q77: 3ZK-00220 | R77: Suscripción Anual | S77: 1.25 | T77: 1 | U77: 1 | V77: =SUMIF(ResumenCotizacion!$C:$C,E77,ResumenCotizacion!$P:$P) -> 0 | W77: =IF(H77="USD",S77*SolCotizacion!$J$18,S77) -> 4751.0625 | X77: =ROUND(W77/(1-VLOOKUP("Total porcentaje:",ResumenCotizacion!$F:$H,3,0)),2) -> 4928.49 | Y77: 0
A78: Catalogo principalOVS_ES ACADEMICO3ZK-00221 | B78: 3ZK-00221OVS_ES ACADEMICO | D78: Catalogo principal | E78: 3ZK-00221 | F78: OVS_ES ACADEMICO | G78: Catalogo principal | H78: USD | I78: N/A | J78: Microsoft®SysCtrOrchestratorSvr AllLng License/SoftwareAssurancePack Academic OLV 1License LevelE Enterprise PerUsr 1Year | K78: Unidad | L78: Und | M78: Producto | N78: N/A | O78: N/A | P78: N/A | Q78: 3ZK-00221 | R78: Suscripción Anual | S78: 1.25 | T78: 1 | U78: 1 | V78: =SUMIF(ResumenCotizacion!$C:$C,E78,ResumenCotizacion!$P:$P) -> 0 | W78: =IF(H78="USD",S78*SolCotizacion!$J$18,S78) -> 4751.0625 | X78: =ROUND(W78/(1-VLOOKUP("Total porcentaje:",ResumenCotizacion!$F:$H,3,0)),2) -> 4928.49 | Y78: 0
A79: Catalogo principalOVS_ES ACADEMICO3ZK-00222 | B79: 3ZK-00222OVS_ES ACADEMICO | D79: Catalogo principal | E79: 3ZK-00222 | F79: OVS_ES ACADEMICO | G79: Catalogo principal | H79: USD | I79: N/A | J79: Microsoft®SysCtrOrchestratorSvr AllLng License/SoftwareAssurancePack Academic OLV 1License LevelF Enterprise PerUsr 1Year | K79: Unidad | L79: Und | M79: Producto | N79: N/A | O79: N/A | P79: N/A | Q79: 3ZK-00222 | R79: Suscripción Anual | S79: 1.25 | T79: 1 | U79: 1 | V79: =SUMIF(ResumenCotizacion!$C:$C,E79,ResumenCotizacion!$P:$P) -> 0 | W79: =IF(H79="USD",S79*SolCotizacion!$J$18,S79) -> 4751.0625 | X79: =ROUND(W79/(1-VLOOKUP("Total porcentaje:",ResumenCotizacion!$F:$H,3,0)),2) -> 4928.49 | Y79: 0
A80: Catalogo principalOVS_ES ACADEMICO3ZK-00378 | B80: 3ZK-00378OVS_ES ACADEMICO | D80: Catalogo principal | E80: 3ZK-00378 | F80: OVS_ES ACADEMICO | G80: Catalogo principal | H80: USD | I80: N/A | J80: Microsoft®SysCtrOrchestratorSvr AllLng License/SoftwareAssurancePack Academic OLV 1License NoLevel Student PerOSE 1Year | K80: Unidad | L80: Und | M80: Producto | N80: N/A | O80: N/A | P80: N/A | Q80: 3ZK-00378 | R80: Suscripción Anual | S80: 0.94 | T80: 1 | U80: 1 | V80: =SUMIF(ResumenCotizacion!$C:$C,E80,ResumenCotizacion!$P:$P) -> 0 | W80: =IF(H80="USD",S80*SolCotizacion!$J$18,S80) -> 3572.799 | X80: =ROUND(W80/(1-VLOOKUP("Total porcentaje:",ResumenCotizacion!$F:$H,3,0)),2) -> 3706.22 | Y80: 0
A81: Catalogo principalOVS_ES ACADEMICO3ZK-00379 | B81: 3ZK-00379OVS_ES ACADEMICO | D81: Catalogo principal | E81: 3ZK-00379 | F81: OVS_ES ACADEMICO | G81: Catalogo principal | H81: USD | I81: N/A | J81: Microsoft®SysCtrOrchestratorSvr AllLng License/SoftwareAssurancePack Academic OLV 1License NoLevel Student PerUsr 1Year | K81: Unidad | L81: Und | M81: Producto | N81: N/A | O81: N/A | P81: N/A | Q81: 3ZK-00379 | R81: Suscripción Anual | S81: 0.94 | T81: 1 | U81: 1 | V81: =SUMIF(ResumenCotizacion!$C:$C,E81,ResumenCotizacion!$P:$P) -> 0 | W81: =IF(H81="USD",S81*SolCotizacion!$J$18,S81) -> 3572.799 | X81: =ROUND(W81/(1-VLOOKUP("Total porcentaje:",ResumenCotizacion!$F:$H,3,0)),2) -> 3706.22 | Y81: 0
A82: Catalogo principalOVS_ES ACADEMICO4ZF-00177 | B82: 4ZF-00177OVS_ES ACADEMICO | D82: Catalogo principal | E82: 4ZF-00177 | F82: OVS_ES ACADEMICO | G82: Catalogo principal | H82: USD | I82: N/A | J82: Microsoft®WINVDAPerDevice AllLng MonthlySubscriptions-VolumeLicense Academic OLV 1License LevelE AdditionalProduct PerDvc 1Month | K82: Unidad | L82: Und | M82: Producto | N82: N/A | O82: N/A | P82: N/A | Q82: 4ZF-00177 | R82: Suscripción mensual con pago anual | S82: 3.34 | T82: 1 | U82: 1 | V82: =SUMIF(ResumenCotizacion!$C:$C,E82,ResumenCotizacion!$P:$P) -> 0 | W82: =IF(H82="USD",S82*SolCotizacion!$J$18,S82) -> 12694.839 | X82: =ROUND(W82/(1-VLOOKUP("Total porcentaje:",ResumenCotizacion!$F:$H,3,0)),2) -> 13168.92 | Y82: 0
A83: Catalogo principalOVS_ES ACADEMICO4ZF-00178 | B83: 4ZF-00178OVS_ES ACADEMICO | D83: Catalogo principal | E83: 4ZF-00178 | F83: OVS_ES ACADEMICO | G83: Catalogo principal | H83: USD | I83: N/A | J83: Microsoft®WINVDAPerDevice AllLng MonthlySubscriptions-VolumeLicense Academic OLV 1License LevelF AdditionalProduct PerDvc 1Month | K83: Unidad | L83: Und | M83: Producto | N83: N/A | O83: N/A | P83: N/A | Q83: 4ZF-00178 | R83: Suscripción mensual con pago anual | S83: 3.34 | T83: 1 | U83: 1 | V83: =SUMIF(ResumenCotizacion!$C:$C,E83,ResumenCotizacion!$P:$P) -> 0 | W83: =IF(H83="USD",S83*SolCotizacion!$J$18,S83) -> 12694.839 | X83: =ROUND(W83/(1-VLOOKUP("Total porcentaje:",ResumenCotizacion!$F:$H,3,0)),2) -> 13168.92 | Y83: 0
A84: Catalogo principalOVS_ES ACADEMICO5A4-00001 | B84: 5A4-00001OVS_ES ACADEMICO | D84: Catalogo principal | E84: 5A4-00001 | F84: OVS_ES ACADEMICO | G84: Catalogo principal | H84: USD | I84: N/A | J84: Microsoft®O365ExtraFileStorageOpenFAC ShrdSvr AllLng MonthlySubscriptions-VolumeLicense Academic OLV 1License LevelE AdditionalProduct Addon 1Month | K84: Unidad | L84: Und | M84: Producto | N84: N/A | O84: N/A | P84: N/A | Q84: 5A4-00001 | R84: Suscripción mensual con pago anual | S84: 0.3 | T84: 1 | U84: 1 | V84: =SUMIF(ResumenCotizacion!$C:$C,E84,ResumenCotizacion!$P:$P) -> 0 | W84: =IF(H84="USD",S84*SolCotizacion!$J$18,S84) -> 1140.255 | X84: =ROUND(W84/(1-VLOOKUP("Total porcentaje:",ResumenCotizacion!$F:$H,3,0)),2) -> 1182.84 | Y84: 0
A85: Catalogo principalOVS_ES ACADEMICO5A4-00002 | B85: 5A4-00002OVS_ES ACADEMICO | D85: Catalogo principal | E85: 5A4-00002 | F85: OVS_ES ACADEMICO | G85: Catalogo principal | H85: USD | I85: N/A | J85: Microsoft®O365ExtraFileStorageOpenFAC ShrdSvr AllLng MonthlySubscriptions-VolumeLicense Academic OLV 1License LevelF AdditionalProduct Addon 1Month | K85: Unidad | L85: Und | M85: Producto | N85: N/A | O85: N/A | P85: N/A | Q85: 5A4-00002 | R85: Suscripción mensual con pago anual | S85: 0.3 | T85: 1 | U85: 1 | V85: =SUMIF(ResumenCotizacion!$C:$C,E85,ResumenCotizacion!$P:$P) -> 0 | W85: =IF(H85="USD",S85*SolCotizacion!$J$18,S85) -> 1140.255 | X85: =ROUND(W85/(1-VLOOKUP("Total porcentaje:",ResumenCotizacion!$F:$H,3,0)),2) -> 1182.84 | Y85: 0
A86: Catalogo principalOVS_ES ACADEMICO5A6-00001 | B86: 5A6-00001OVS_ES ACADEMICO | D86: Catalogo principal | E86: 5A6-00001 | F86: OVS_ES ACADEMICO | G86: Catalogo principal | H86: USD | I86: N/A | J86: Microsoft®EOAforExchangeOnlineOpenSTU ShrdSvr AllLng MonthlySubscriptions-VolumeLicense Academic OLV 1License NoLevel Student Addon 1Month | K86: Unidad | L86: Und | M86: Producto | N86: N/A | O86: N/A | P86: N/A | Q86: 5A6-00001 | R86: Suscripción mensual con pago anual | S86: 1 | T86: 1 | U86: 1 | V86: =SUMIF(ResumenCotizacion!$C:$C,E86,ResumenCotizacion!$P:$P) -> 0 | W86: =IF(H86="USD",S86*SolCotizacion!$J$18,S86) -> 3800.85 | X86: =ROUND(W86/(1-VLOOKUP("Total porcentaje:",ResumenCotizacion!$F:$H,3,0)),2) -> 3942.79 | Y86: 0
A87: Catalogo principalOVS_ES ACADEMICO5A7-00001 | B87: 5A7-00001OVS_ES ACADEMICO | D87: Catalogo principal | E87: 5A7-00001 | F87: OVS_ES ACADEMICO | G87: Catalogo principal | H87: USD | I87: N/A | J87: Microsoft®EOAforExchangeOnlineOpenFAC ShrdSvr AllLng MonthlySubscriptions-VolumeLicense Academic OLV 1License LevelE AdditionalProduct Addon 1Month | K87: Unidad | L87: Und | M87: Producto | N87: N/A | O87: N/A | P87: N/A | Q87: 5A7-00001 | R87: Suscripción mensual con pago anual | S87: 1 | T87: 1 | U87: 1 | V87: =SUMIF(ResumenCotizacion!$C:$C,E87,ResumenCotizacion!$P:$P) -> 0 | W87: =IF(H87="USD",S87*SolCotizacion!$J$18,S87) -> 3800.85 | X87: =ROUND(W87/(1-VLOOKUP("Total porcentaje:",ResumenCotizacion!$F:$H,3,0)),2) -> 3942.79 | Y87: 0
A88: Catalogo principalOVS_ES ACADEMICO5A7-00002 | B88: 5A7-00002OVS_ES ACADEMICO | D88: Catalogo principal | E88: 5A7-00002 | F88: OVS_ES ACADEMICO | G88: Catalogo principal | H88: USD | I88: N/A | J88: Microsoft®EOAforExchangeOnlineOpenFAC ShrdSvr AllLng MonthlySubscriptions-VolumeLicense Academic OLV 1License LevelF AdditionalProduct Addon 1Month | K88: Unidad | L88: Und | M88: Producto | N88: N/A | O88: N/A | P88: N/A | Q88: 5A7-00002 | R88: Suscripción mensual con pago anual | S88: 1 | T88: 1 | U88: 1 | V88: =SUMIF(ResumenCotizacion!$C:$C,E88,ResumenCotizacion!$P:$P) -> 0 | W88: =IF(H88="USD",S88*SolCotizacion!$J$18,S88) -> 3800.85 | X88: =ROUND(W88/(1-VLOOKUP("Total porcentaje:",ResumenCotizacion!$F:$H,3,0)),2) -> 3942.79 | Y88: 0
A89: Catalogo principalOVS_ES ACADEMICO5CN-00001 | B89: 5CN-00001OVS_ES ACADEMICO | D89: Catalogo principal | E89: 5CN-00001 | F89: OVS_ES ACADEMICO | G89: Catalogo principal | H89: USD | I89: N/A | J89: Microsoft®O365ExtraFileStorageOpenSTU ShrdSvr AllLng MonthlySubscriptions-VolumeLicense Academic OLV 1License NoLevel Student Addon 1Month | K89: Unidad | L89: Und | M89: Producto | N89: N/A | O89: N/A | P89: N/A | Q89: 5CN-00001 | R89: Suscripción mensual con pago anual | S89: 0.3 | T89: 1 | U89: 1 | V89: =SUMIF(ResumenCotizacion!$C:$C,E89,ResumenCotizacion!$P:$P) -> 0 | W89: =IF(H89="USD",S89*SolCotizacion!$J$18,S89) -> 1140.255 | X89: =ROUND(W89/(1-VLOOKUP("Total porcentaje:",ResumenCotizacion!$F:$H,3,0)),2) -> 1182.84 | Y89: 0
A90: Catalogo principalOVS_ES ACADEMICO5FV-00001 | B90: 5FV-00001OVS_ES ACADEMICO | D90: Catalogo principal | E90: 5FV-00001 | F90: OVS_ES ACADEMICO | G90: Catalogo principal | H90: USD | I90: N/A | J90: Microsoft®Office365EDUE3forFacultyOpen ShrdSvr AllLng MonthlySubscriptions-VolumeLicense Academic OLV 1License LevelE AdditionalProduct 1MonthRenewal | K90: Unidad | L90: Und | M90: Producto | N90: N/A | O90: N/A | P90: N/A | Q90: 5FV-00001 | R90: Suscripción mensual con pago anual | S90: 2.3 | T90: 1 | U90: 1 | V90: =SUMIF(ResumenCotizacion!$C:$C,E90,ResumenCotizacion!$P:$P) -> 0 | W90: =IF(H90="USD",S90*SolCotizacion!$J$18,S90) -> 8741.955 | X90: =ROUND(W90/(1-VLOOKUP("Total porcentaje:",ResumenCotizacion!$F:$H,3,0)),2) -> 9068.42 | Y90: 0
A91: Catalogo principalOVS_ES ACADEMICO5FV-00002 | B91: 5FV-00002OVS_ES ACADEMICO | D91: Catalogo principal | E91: 5FV-00002 | F91: OVS_ES ACADEMICO | G91: Catalogo principal | H91: USD | I91: N/A | J91: Microsoft®Office365EDUE3forFacultyOpen ShrdSvr AllLng MonthlySubscriptions-VolumeLicense Academic OLV 1License LevelF AdditionalProduct 1MonthRenewal | K91: Unidad | L91: Und | M91: Producto | N91: N/A | O91: N/A | P91: N/A | Q91: 5FV-00002 | R91: Suscripción mensual con pago anual | S91: 2.3 | T91: 1 | U91: 1 | V91: =SUMIF(ResumenCotizacion!$C:$C,E91,ResumenCotizacion!$P:$P) -> 0 | W91: =IF(H91="USD",S91*SolCotizacion!$J$18,S91) -> 8741.955 | X91: =ROUND(W91/(1-VLOOKUP("Total porcentaje:",ResumenCotizacion!$F:$H,3,0)),2) -> 9068.42 | Y91: 0
A92: Catalogo principalOVS_ES ACADEMICO5FV-00004 | B92: 5FV-00004OVS_ES ACADEMICO | D92: Catalogo principal | E92: 5FV-00004 | F92: OVS_ES ACADEMICO | G92: Catalogo principal | H92: USD | I92: N/A | J92: Microsoft®O365EDUE3forFcltyOpn ShrdSvr AllLng MonthlySubscriptions Academic OLV 1License E AdditionalProduct AddOn frmCoreCAL/ECAL/OffProPlus 1MRenewa | K92: Unidad | L92: Und | M92: Producto | N92: N/A | O92: N/A | P92: N/A | Q92: 5FV-00004 | R92: Suscripción mensual con pago anual | S92: 0 | T92: 1 | U92: 1 | V92: =SUMIF(ResumenCotizacion!$C:$C,E92,ResumenCotizacion!$P:$P) -> 0 | W92: =IF(H92="USD",S92*SolCotizacion!$J$18,S92) -> 0 | X92: =ROUND(W92/(1-VLOOKUP("Total porcentaje:",ResumenCotizacion!$F:$H,3,0)),2) -> 0 | Y92: 0
A93: Catalogo principalOVS_ES ACADEMICO5FV-00005 | B93: 5FV-00005OVS_ES ACADEMICO | D93: Catalogo principal | E93: 5FV-00005 | F93: OVS_ES ACADEMICO | G93: Catalogo principal | H93: USD | I93: N/A | J93: Microsoft®O365EDUE3forFcltyOpn ShrdSvr AllLng MonthlySubscriptions Academic OLV 1License F AdditionalProduct AddOn frmCoreCAL/ECAL/OffProPlus 1MRenewa | K93: Unidad | L93: Und | M93: Producto | N93: N/A | O93: N/A | P93: N/A | Q93: 5FV-00005 | R93: Suscripción mensual con pago anual | S93: 0 | T93: 1 | U93: 1 | V93: =SUMIF(ResumenCotizacion!$C:$C,E93,ResumenCotizacion!$P:$P) -> 0 | W93: =IF(H93="USD",S93*SolCotizacion!$J$18,S93) -> 0 | X93: =ROUND(W93/(1-VLOOKUP("Total porcentaje:",ResumenCotizacion!$F:$H,3,0)),2) -> 0 | Y93: 0
A94: Catalogo principalOVS_ES ACADEMICO5FV-00007 | B94: 5FV-00007OVS_ES ACADEMICO | D94: Catalogo principal | E94: 5FV-00007 | F94: OVS_ES ACADEMICO | G94: Catalogo principal | H94: USD | I94: N/A | J94: Microsoft®O365EDUE3forFcltyOpn ShrdSvr AllLng MonthlySubscriptions Academic OLV 1License LevelE AdditionalProduct AddOn fromCoreCAL/ECAL 1MonthRenewal | K94: Unidad | L94: Und | M94: Producto | N94: N/A | O94: N/A | P94: N/A | Q94: 5FV-00007 | R94: Suscripción mensual con pago anual | S94: 2.3 | T94: 1 | U94: 1 | V94: =SUMIF(ResumenCotizacion!$C:$C,E94,ResumenCotizacion!$P:$P) -> 0 | W94: =IF(H94="USD",S94*SolCotizacion!$J$18,S94) -> 8741.955 | X94: =ROUND(W94/(1-VLOOKUP("Total porcentaje:",ResumenCotizacion!$F:$H,3,0)),2) -> 9068.42 | Y94: 0
A95: Catalogo principalOVS_ES ACADEMICO5FV-00008 | B95: 5FV-00008OVS_ES ACADEMICO | D95: Catalogo principal | E95: 5FV-00008 | F95: OVS_ES ACADEMICO | G95: Catalogo principal | H95: USD | I95: N/A | J95: Microsoft®O365EDUE3forFcltyOpn ShrdSvr AllLng MonthlySubscriptions Academic OLV 1License LevelF AdditionalProduct AddOn fromCoreCAL/ECAL 1MonthRenewal | K95: Unidad | L95: Und | M95: Producto | N95: N/A | O95: N/A | P95: N/A | Q95: 5FV-00008 | R95: Suscripción mensual con pago anual | S95: 2.3 | T95: 1 | U95: 1 | V95: =SUMIF(ResumenCotizacion!$C:$C,E95,ResumenCotizacion!$P:$P) -> 0 | W95: =IF(H95="USD",S95*SolCotizacion!$J$18,S95) -> 8741.955 | X95: =ROUND(W95/(1-VLOOKUP("Total porcentaje:",ResumenCotizacion!$F:$H,3,0)),2) -> 9068.42 | Y95: 0
A96: Catalogo principalOVS_ES ACADEMICO5FV-00009 | B96: 5FV-00009OVS_ES ACADEMICO | D96: Catalogo principal | E96: 5FV-00009 | F96: OVS_ES ACADEMICO | G96: Catalogo principal | H96: USD | I96: N/A | J96: Microsoft®O365EDUE3forFcltyOpn ShrdSvr AllLng MonthlySubscriptions Academic OLV 1License LevelE AdditionalProduct AddOn fromOfficeProPlus 1MonthRenewa | K96: Unidad | L96: Und | M96: Producto | N96: N/A | O96: N/A | P96: N/A | Q96: 5FV-00009 | R96: Suscripción mensual con pago anual | S96: 0 | T96: 1 | U96: 1 | V96: =SUMIF(ResumenCotizacion!$C:$C,E96,ResumenCotizacion!$P:$P) -> 0 | W96: =IF(H96="USD",S96*SolCotizacion!$J$18,S96) -> 0 | X96: =ROUND(W96/(1-VLOOKUP("Total porcentaje:",ResumenCotizacion!$F:$H,3,0)),2) -> 0 | Y96: 0
A97: Catalogo principalOVS_ES ACADEMICO5FV-00010 | B97: 5FV-00010OVS_ES ACADEMICO | D97: Catalogo principal | E97: 5FV-00010 | F97: OVS_ES ACADEMICO | G97: Catalogo principal | H97: USD | I97: N/A | J97: Microsoft®O365EDUE3forFcltyOpn ShrdSvr AllLng MonthlySubscriptions Academic OLV 1License LevelF AdditionalProduct AddOn fromOfficeProPlus 1MonthRenewa | K97: Unidad | L97: Und | M97: Producto | N97: N/A | O97: N/A | P97: N/A | Q97: 5FV-00010 | R97: Suscripción mensual con pago anual | S97: 0 | T97: 1 | U97: 1 | V97: =SUMIF(ResumenCotizacion!$C:$C,E97,ResumenCotizacion!$P:$P) -> 0 | W97: =IF(H97="USD",S97*SolCotizacion!$J$18,S97) -> 0 | X97: =ROUND(W97/(1-VLOOKUP("Total porcentaje:",ResumenCotizacion!$F:$H,3,0)),2) -> 0 | Y97: 0
A98: Catalogo principalOVS_ES ACADEMICO5HU-00035 | B98: 5HU-00035OVS_ES ACADEMICO | D98: Catalogo principal | E98: 5HU-00035 | F98: OVS_ES ACADEMICO | G98: Catalogo principal | H98: USD | I98: N/A | J98: Microsoft®SfBServer AllLng License/SoftwareAssurancePack Academic OLV 1License LevelE AdditionalProduct 1Year | K98: Unidad | L98: Und | M98: Producto | N98: N/A | O98: N/A | P98: N/A | Q98: 5HU-00035 | R98: Suscripción Anual | S98: 422 | T98: 1 | U98: 1 | V98: =SUMIF(ResumenCotizacion!$C:$C,E98,ResumenCotizacion!$P:$P) -> 0 | W98: =IF(H98="USD",S98*SolCotizacion!$J$18,S98) -> 1603958.7 | X98: =ROUND(W98/(1-VLOOKUP("Total porcentaje:",ResumenCotizacion!$F:$H,3,0)),2) -> 1663857.57 | Y98: 0
A99: Catalogo principalOVS_ES ACADEMICO5HU-00036 | B99: 5HU-00036OVS_ES ACADEMICO | D99: Catalogo principal | E99: 5HU-00036 | F99: OVS_ES ACADEMICO | G99: Catalogo principal | H99: USD | I99: N/A | J99: Microsoft®SfBServer AllLng License/SoftwareAssurancePack Academic OLV 1License LevelF AdditionalProduct 1Year | K99: Unidad | L99: Und | M99: Producto | N99: N/A | O99: N/A | P99: N/A | Q99: 5HU-00036 | R99: Suscripción Anual | S99: 422 | T99: 1 | U99: 1 | V99: =SUMIF(ResumenCotizacion!$C:$C,E99,ResumenCotizacion!$P:$P) -> 0 | W99: =IF(H99="USD",S99*SolCotizacion!$J$18,S99) -> 1603958.7 | X99: =ROUND(W99/(1-VLOOKUP("Total porcentaje:",ResumenCotizacion!$F:$H,3,0)),2) -> 1663857.57 | Y99: 0
A100: Catalogo principalOVS_ES ACADEMICO6EM-00001 | B100: 6EM-00001OVS_ES ACADEMICO | D100: Catalogo principal | E100: 6EM-00001 | F100: OVS_ES ACADEMICO | G100: Catalogo principal | H100: USD | I100: N/A | J100: Microsoft®AzureActiveDirectoryPremP2Open ShrdSvr AllLng MonthlySubscriptions-VolumeLicense Academic OLV 1License LevelE AdditionalProduct Faculty 1Mth | K100: Unidad | L100: Und | M100: Producto | N100: N/A | O100: N/A | P100: N/A | Q100: 6EM-00001 | R100: Suscripción mensual con pago anual | S100: 1.1 | T100: 1 | U100: 1 | V100: =SUMIF(ResumenCotizacion!$C:$C,E100,ResumenCotizacion!$P:$P) -> 0 | W100: =IF(H100="USD",S100*SolCotizacion!$J$18,S100) -> 4180.935 | X100: =ROUND(W100/(1-VLOOKUP("Total porcentaje:",ResumenCotizacion!$F:$H,3,0)),2) -> 4337.07 | Y100: 0
A101: Catalogo principalOVS_ES ACADEMICO6EM-00002 | B101: 6EM-00002OVS_ES ACADEMICO | D101: Catalogo principal | E101: 6EM-00002 | F101: OVS_ES ACADEMICO | G101: Catalogo principal | H101: USD | I101: N/A | J101: Microsoft®AzureActiveDirectoryPremP2Open ShrdSvr AllLng MonthlySubscriptions-VolumeLicense Academic OLV 1License LevelF AdditionalProduct Faculty 1Mth | K101: Unidad | L101: Und | M101: Producto | N101: N/A | O101: N/A | P101: N/A | Q101: 6EM-00002 | R101: Suscripción mensual con pago anual | S101: 1.1 | T101: 1 | U101: 1 | V101: =SUMIF(ResumenCotizacion!$C:$C,E101,ResumenCotizacion!$P:$P) -> 0 | W101: =IF(H101="USD",S101*SolCotizacion!$J$18,S101) -> 4180.935 | X101: =ROUND(W101/(1-VLOOKUP("Total porcentaje:",ResumenCotizacion!$F:$H,3,0)),2) -> 4337.07 | Y101: 0
A102: Catalogo principalOVS_ES ACADEMICO6EM-00011 | B102: 6EM-00011OVS_ES ACADEMICO | D102: Catalogo principal | E102: 6EM-00011 | F102: OVS_ES ACADEMICO | G102: Catalogo principal | H102: USD | I102: N/A | J102: Microsoft®AzureActiveDirectoryPremP2Open ShrdSvr AllLng MonthlySubscriptions-VolumeLicense Academic OLV 1License NoLevel Student Student 1Month | K102: Unidad | L102: Und | M102: Producto | N102: N/A | O102: N/A | P102: N/A | Q102: 6EM-00011 | R102: Suscripción mensual con pago anual | S102: 0.9 | T102: 1 | U102: 1 | V102: =SUMIF(ResumenCotizacion!$C:$C,E102,ResumenCotizacion!$P:$P) -> 0 | W102: =IF(H102="USD",S102*SolCotizacion!$J$18,S102) -> 3420.765 | X102: =ROUND(W102/(1-VLOOKUP("Total porcentaje:",ResumenCotizacion!$F:$H,3,0)),2) -> 3548.51 | Y102: 0
A103: Catalogo principalOVS_ES ACADEMICO6MV-00001 | B103: 6MV-00001OVS_ES ACADEMICO | D103: Catalogo principal | E103: 6MV-00001 | F103: OVS_ES ACADEMICO | G103: Catalogo principal | H103: USD | I103: N/A | J103: Microsoft®ExchangeEntCALSrvcsforEdu AllLng MonthlySubscriptions-VolumeLicense Academic OLV 1License LevelE AdditionalProduct PerUsr 1Month | K103: Unidad | L103: Und | M103: Producto | N103: N/A | O103: N/A | P103: N/A | Q103: 6MV-00001 | R103: Suscripción mensual con pago anual | S103: 0 | T103: 1 | U103: 1 | V103: =SUMIF(ResumenCotizacion!$C:$C,E103,ResumenCotizacion!$P:$P) -> 0 | W103: =IF(H103="USD",S103*SolCotizacion!$J$18,S103) -> 0 | X103: =ROUND(W103/(1-VLOOKUP("Total porcentaje:",ResumenCotizacion!$F:$H,3,0)),2) -> 0 | Y103: 0
A104: Catalogo principalOVS_ES ACADEMICO6MV-00002 | B104: 6MV-00002OVS_ES ACADEMICO | D104: Catalogo principal | E104: 6MV-00002 | F104: OVS_ES ACADEMICO | G104: Catalogo principal | H104: USD | I104: N/A | J104: Microsoft®ExchangeEntCALSrvcsforEdu AllLng MonthlySubscriptions-VolumeLicense Academic OLV 1License LevelF AdditionalProduct PerUsr 1Month | K104: Unidad | L104: Und | M104: Producto | N104: N/A | O104: N/A | P104: N/A | Q104: 6MV-00002 | R104: Suscripción mensual con pago anual | S104: 0 | T104: 1 | U104: 1 | V104: =SUMIF(ResumenCotizacion!$C:$C,E104,ResumenCotizacion!$P:$P) -> 0 | W104: =IF(H104="USD",S104*SolCotizacion!$J$18,S104) -> 0 | X104: =ROUND(W104/(1-VLOOKUP("Total porcentaje:",ResumenCotizacion!$F:$H,3,0)),2) -> 0 | Y104: 0
A105: Catalogo principalOVS_ES ACADEMICO6MV-00005 | B105: 6MV-00005OVS_ES ACADEMICO | D105: Catalogo principal | E105: 6MV-00005 | F105: OVS_ES ACADEMICO | G105: Catalogo principal | H105: USD | I105: N/A | J105: Microsoft®ExchangeEntCALSrvcsforEdu AllLng MonthlySubscriptions-VolumeLicense Academic OLV 1License NoLevel Student PerUsr ForStudent 1Month | K105: Unidad | L105: Und | M105: Producto | N105: N/A | O105: N/A | P105: N/A | Q105: 6MV-00005 | R105: Suscripción mensual con pago anual | S105: 0 | T105: 1 | U105: 1 | V105: =SUMIF(ResumenCotizacion!$C:$C,E105,ResumenCotizacion!$P:$P) -> 0 | W105: =IF(H105="USD",S105*SolCotizacion!$J$18,S105) -> 0 | X105: =ROUND(W105/(1-VLOOKUP("Total porcentaje:",ResumenCotizacion!$F:$H,3,0)),2) -> 0 | Y105: 0
A106: Catalogo principalOVS_ES ACADEMICO6QV-00001 | B106: 6QV-00001OVS_ES ACADEMICO | D106: Catalogo principal | E106: 6QV-00001 | F106: OVS_ES ACADEMICO | G106: Catalogo principal | H106: USD | I106: N/A | J106: Microsoft® Enterprise CAL Services Edu All Languages Subscription Open Value Level E 1 Month Academic AP Per User | K106: Unidad | L106: Und | M106: Producto | N106: N/A | O106: N/A | P106: N/A | Q106: 6QV-00001 | R106: Suscripción mensual con pago anual | S106: 0 | T106: 1 | U106: 1 | V106: =SUMIF(ResumenCotizacion!$C:$C,E106,ResumenCotizacion!$P:$P) -> 0 | W106: =IF(H106="USD",S106*SolCotizacion!$J$18,S106) -> 0 | X106: =ROUND(W106/(1-VLOOKUP("Total porcentaje:",ResumenCotizacion!$F:$H,3,0)),2) -> 0 | Y106: 0
A107: Catalogo principalOVS_ES ACADEMICO6QV-00002 | B107: 6QV-00002OVS_ES ACADEMICO | D107: Catalogo principal | E107: 6QV-00002 | F107: OVS_ES ACADEMICO | G107: Catalogo principal | H107: USD | I107: N/A | J107: Microsoft® Enterprise CAL Services Edu All Languages Subscription Open Value Level F 1 Month Academic AP Per User | K107: Unidad | L107: Und | M107: Producto | N107: N/A | O107: N/A | P107: N/A | Q107: 6QV-00002 | R107: Suscripción mensual con pago anual | S107: 0 | T107: 1 | U107: 1 | V107: =SUMIF(ResumenCotizacion!$C:$C,E107,ResumenCotizacion!$P:$P) -> 0 | W107: =IF(H107="USD",S107*SolCotizacion!$J$18,S107) -> 0 | X107: =ROUND(W107/(1-VLOOKUP("Total porcentaje:",ResumenCotizacion!$F:$H,3,0)),2) -> 0 | Y107: 0
A108: Catalogo principalOVS_ES ACADEMICO6QV-00005 | B108: 6QV-00005OVS_ES ACADEMICO | D108: Catalogo principal | E108: 6QV-00005 | F108: OVS_ES ACADEMICO | G108: Catalogo principal | H108: USD | I108: N/A | J108: Microsoft® Enterprise CAL Services Edu All Languages Subscription Open Value No Level 1 Month Academic Student Per User Student | K108: Unidad | L108: Und | M108: Producto | N108: N/A | O108: N/A | P108: N/A | Q108: 6QV-00005 | R108: Suscripción mensual con pago anual | S108: 0 | T108: 1 | U108: 1 | V108: =SUMIF(ResumenCotizacion!$C:$C,E108,ResumenCotizacion!$P:$P) -> 0 | W108: =IF(H108="USD",S108*SolCotizacion!$J$18,S108) -> 0 | X108: =ROUND(W108/(1-VLOOKUP("Total porcentaje:",ResumenCotizacion!$F:$H,3,0)),2) -> 0 | Y108: 0
A109: Catalogo principalOVS_ES ACADEMICO6VC-01516 | B109: 6VC-01516OVS_ES ACADEMICO | D109: Catalogo principal | E109: 6VC-01516 | F109: OVS_ES ACADEMICO | G109: Catalogo principal | H109: USD | I109: N/A | J109: Microsoft®WinRmtDsktpSvcsCAL AllLng License/SoftwareAssurancePack Academic OLV 1License LevelE Enterprise DvcCAL 1Year | K109: Unidad | L109: Und | M109: Producto | N109: N/A | O109: N/A | P109: N/A | Q109: 6VC-01516 | R109: Suscripción Anual | S109: 9 | T109: 1 | U109: 1 | V109: =SUMIF(ResumenCotizacion!$C:$C,E109,ResumenCotizacion!$P:$P) -> 0 | W109: =IF(H109="USD",S109*SolCotizacion!$J$18,S109) -> 34207.65 | X109: =ROUND(W109/(1-VLOOKUP("Total porcentaje:",ResumenCotizacion!$F:$H,3,0)),2) -> 35485.11 | Y109: 0
A110: Catalogo principalOVS_ES ACADEMICO6VC-01517 | B110: 6VC-01517OVS_ES ACADEMICO | D110: Catalogo principal | E110: 6VC-01517 | F110: OVS_ES ACADEMICO | G110: Catalogo principal | H110: USD | I110: N/A | J110: Microsoft®WinRmtDsktpSvcsCAL AllLng License/SoftwareAssurancePack Academic OLV 1License LevelF Enterprise DvcCAL 1Year | K110: Unidad | L110: Und | M110: Producto | N110: N/A | O110: N/A | P110: N/A | Q110: 6VC-01517 | R110: Suscripción Anual | S110: 9 | T110: 1 | U110: 1 | V110: =SUMIF(ResumenCotizacion!$C:$C,E110,ResumenCotizacion!$P:$P) -> 0 | W110: =IF(H110="USD",S110*SolCotizacion!$J$18,S110) -> 34207.65 | X110: =ROUND(W110/(1-VLOOKUP("Total porcentaje:",ResumenCotizacion!$F:$H,3,0)),2) -> 35485.11 | Y110: 0
A111: Catalogo principalOVS_ES ACADEMICO6VC-01518 | B111: 6VC-01518OVS_ES ACADEMICO | D111: Catalogo principal | E111: 6VC-01518 | F111: OVS_ES ACADEMICO | G111: Catalogo principal | H111: USD | I111: N/A | J111: Microsoft®WinRmtDsktpSvcsCAL AllLng License/SoftwareAssurancePack Academic OLV 1License LevelE Enterprise UsrCAL 1Year | K111: Unidad | L111: Und | M111: Producto | N111: N/A | O111: N/A | P111: N/A | Q111: 6VC-01518 | R111: Suscripción Anual | S111: 9 | T111: 1 | U111: 1 | V111: =SUMIF(ResumenCotizacion!$C:$C,E111,ResumenCotizacion!$P:$P) -> 0 | W111: =IF(H111="USD",S111*SolCotizacion!$J$18,S111) -> 34207.65 | X111: =ROUND(W111/(1-VLOOKUP("Total porcentaje:",ResumenCotizacion!$F:$H,3,0)),2) -> 35485.11 | Y111: 0
A112: Catalogo principalOVS_ES ACADEMICO6VC-01519 | B112: 6VC-01519OVS_ES ACADEMICO | D112: Catalogo principal | E112: 6VC-01519 | F112: OVS_ES ACADEMICO | G112: Catalogo principal | H112: USD | I112: N/A | J112: Microsoft®WinRmtDsktpSvcsCAL AllLng License/SoftwareAssurancePack Academic OLV 1License LevelF Enterprise UsrCAL 1Year | K112: Unidad | L112: Und | M112: Producto | N112: N/A | O112: N/A | P112: N/A | Q112: 6VC-01519 | R112: Suscripción Anual | S112: 9 | T112: 1 | U112: 1 | V112: =SUMIF(ResumenCotizacion!$C:$C,E112,ResumenCotizacion!$P:$P) -> 0 | W112: =IF(H112="USD",S112*SolCotizacion!$J$18,S112) -> 34207.65 | X112: =ROUND(W112/(1-VLOOKUP("Total porcentaje:",ResumenCotizacion!$F:$H,3,0)),2) -> 35485.11 | Y112: 0
A113: Catalogo principalOVS_ES ACADEMICO6VC-01520 | B113: 6VC-01520OVS_ES ACADEMICO | D113: Catalogo principal | E113: 6VC-01520 | F113: OVS_ES ACADEMICO | G113: Catalogo principal | H113: USD | I113: N/A | J113: Microsoft®WinRmtDsktpSvcsCAL AllLng License/SoftwareAssurancePack Academic OLV 1License NoLevel Student DvcCAL 1Year | K113: Unidad | L113: Und | M113: Producto | N113: N/A | O113: N/A | P113: N/A | Q113: 6VC-01520 | R113: Suscripción Anual | S113: 4.99 | T113: 1 | U113: 1 | V113: =SUMIF(ResumenCotizacion!$C:$C,E113,ResumenCotizacion!$P:$P) -> 0 | W113: =IF(H113="USD",S113*SolCotizacion!$J$18,S113) -> 18966.2415 | X113: =ROUND(W113/(1-VLOOKUP("Total porcentaje:",ResumenCotizacion!$F:$H,3,0)),2) -> 19674.52 | Y113: 0
A114: Catalogo principalOVS_ES ACADEMICO6VC-01521 | B114: 6VC-01521OVS_ES ACADEMICO | D114: Catalogo principal | E114: 6VC-01521 | F114: OVS_ES ACADEMICO | G114: Catalogo principal | H114: USD | I114: N/A | J114: Microsoft®WinRmtDsktpSvcsCAL AllLng License/SoftwareAssurancePack Academic OLV 1License NoLevel Student UsrCAL 1Year | K114: Unidad | L114: Und | M114: Producto | N114: N/A | O114: N/A | P114: N/A | Q114: 6VC-01521 | R114: Suscripción Anual | S114: 4.99 | T114: 1 | U114: 1 | V114: =SUMIF(ResumenCotizacion!$C:$C,E114,ResumenCotizacion!$P:$P) -> 0 | W114: =IF(H114="USD",S114*SolCotizacion!$J$18,S114) -> 18966.2415 | X114: =ROUND(W114/(1-VLOOKUP("Total porcentaje:",ResumenCotizacion!$F:$H,3,0)),2) -> 19674.52 | Y114: 0
A115: Catalogo principalOVS_ES ACADEMICO6VC-01522 | B115: 6VC-01522OVS_ES ACADEMICO | D115: Catalogo principal | E115: 6VC-01522 | F115: OVS_ES ACADEMICO | G115: Catalogo principal | H115: USD | I115: N/A | J115: Microsoft®WinRmtDsktpSvcsCAL AllLng License/SoftwareAssurancePack Academic OLV 1License LevelE AdditionalProduct DvcCAL 1Year | K115: Unidad | L115: Und | M115: Producto | N115: N/A | O115: N/A | P115: N/A | Q115: 6VC-01522 | R115: Suscripción Anual | S115: 12 | T115: 1 | U115: 1 | V115: =SUMIF(ResumenCotizacion!$C:$C,E115,ResumenCotizacion!$P:$P) -> 0 | W115: =IF(H115="USD",S115*SolCotizacion!$J$18,S115) -> 45610.2 | X115: =ROUND(W115/(1-VLOOKUP("Total porcentaje:",ResumenCotizacion!$F:$H,3,0)),2) -> 47313.49 | Y115: 0
A116: Catalogo principalOVS_ES ACADEMICO6VC-01523 | B116: 6VC-01523OVS_ES ACADEMICO | D116: Catalogo principal | E116: 6VC-01523 | F116: OVS_ES ACADEMICO | G116: Catalogo principal | H116: USD | I116: N/A | J116: Microsoft®WinRmtDsktpSvcsCAL AllLng License/SoftwareAssurancePack Academic OLV 1License LevelF AdditionalProduct DvcCAL 1Year | K116: Unidad | L116: Und | M116: Producto | N116: N/A | O116: N/A | P116: N/A | Q116: 6VC-01523 | R116: Suscripción Anual | S116: 12 | T116: 1 | U116: 1 | V116: =SUMIF(ResumenCotizacion!$C:$C,E116,ResumenCotizacion!$P:$P) -> 0 | W116: =IF(H116="USD",S116*SolCotizacion!$J$18,S116) -> 45610.2 | X116: =ROUND(W116/(1-VLOOKUP("Total porcentaje:",ResumenCotizacion!$F:$H,3,0)),2) -> 47313.49 | Y116: 0
A117: Catalogo principalOVS_ES ACADEMICO6VC-01524 | B117: 6VC-01524OVS_ES ACADEMICO | D117: Catalogo principal | E117: 6VC-01524 | F117: OVS_ES ACADEMICO | G117: Catalogo principal | H117: USD | I117: N/A | J117: Microsoft®WinRmtDsktpSvcsCAL AllLng License/SoftwareAssurancePack Academic OLV 1License LevelE AdditionalProduct UsrCAL 1Year | K117: Unidad | L117: Und | M117: Producto | N117: N/A | O117: N/A | P117: N/A | Q117: 6VC-01524 | R117: Suscripción Anual | S117: 12 | T117: 1 | U117: 1 | V117: =SUMIF(ResumenCotizacion!$C:$C,E117,ResumenCotizacion!$P:$P) -> 0 | W117: =IF(H117="USD",S117*SolCotizacion!$J$18,S117) -> 45610.2 | X117: =ROUND(W117/(1-VLOOKUP("Total porcentaje:",ResumenCotizacion!$F:$H,3,0)),2) -> 47313.49 | Y117: 0
A118: Catalogo principalOVS_ES ACADEMICO6VC-01525 | B118: 6VC-01525OVS_ES ACADEMICO | D118: Catalogo principal | E118: 6VC-01525 | F118: OVS_ES ACADEMICO | G118: Catalogo principal | H118: USD | I118: N/A | J118: Microsoft®WinRmtDsktpSvcsCAL AllLng License/SoftwareAssurancePack Academic OLV 1License LevelF AdditionalProduct UsrCAL 1Year | K118: Unidad | L118: Und | M118: Producto | N118: N/A | O118: N/A | P118: N/A | Q118: 6VC-01525 | R118: Suscripción Anual | S118: 12 | T118: 1 | U118: 1 | V118: =SUMIF(ResumenCotizacion!$C:$C,E118,ResumenCotizacion!$P:$P) -> 0 | W118: =IF(H118="USD",S118*SolCotizacion!$J$18,S118) -> 45610.2 | X118: =ROUND(W118/(1-VLOOKUP("Total porcentaje:",ResumenCotizacion!$F:$H,3,0)),2) -> 47313.49 | Y118: 0
A119: Catalogo principalOVS_ES ACADEMICO6XC-00319 | B119: 6XC-00319OVS_ES ACADEMICO | D119: Catalogo principal | E119: 6XC-00319 | F119: OVS_ES ACADEMICO | G119: Catalogo principal | H119: USD | I119: N/A | J119: Microsoft®WinRmtDsktpSvcsExtConn AllLng License/SoftwareAssurancePack Academic OLV 1License LevelE AdditionalProduct 1Year | K119: Unidad | L119: Und | M119: Producto | N119: N/A | O119: N/A | P119: N/A | Q119: 6XC-00319 | R119: Suscripción Anual | S119: 1531 | T119: 1 | U119: 1 | V119: =SUMIF(ResumenCotizacion!$C:$C,E119,ResumenCotizacion!$P:$P) -> 0 | W119: =IF(H119="USD",S119*SolCotizacion!$J$18,S119) -> 5819101.35 | X119: =ROUND(W119/(1-VLOOKUP("Total porcentaje:",ResumenCotizacion!$F:$H,3,0)),2) -> 6036412.19 | Y119: 0
A120: Catalogo principalOVS_ES ACADEMICO6XC-00320 | B120: 6XC-00320OVS_ES ACADEMICO | D120: Catalogo principal | E120: 6XC-00320 | F120: OVS_ES ACADEMICO | G120: Catalogo principal | H120: USD | I120: N/A | J120: Microsoft®WinRmtDsktpSvcsExtConn AllLng License/SoftwareAssurancePack Academic OLV 1License LevelF AdditionalProduct 1Year | K120: Unidad | L120: Und | M120: Producto | N120: N/A | O120: N/A | P120: N/A | Q120: 6XC-00320 | R120: Suscripción Anual | S120: 1531 | T120: 1 | U120: 1 | V120: =SUMIF(ResumenCotizacion!$C:$C,E120,ResumenCotizacion!$P:$P) -> 0 | W120: =IF(H120="USD",S120*SolCotizacion!$J$18,S120) -> 5819101.35 | X120: =ROUND(W120/(1-VLOOKUP("Total porcentaje:",ResumenCotizacion!$F:$H,3,0)),2) -> 6036412.19 | Y120: 0
A121: Catalogo principalOVS_ES ACADEMICO6YH-00603 | B121: 6YH-00603OVS_ES ACADEMICO | D121: Catalogo principal | E121: 6YH-00603 | F121: OVS_ES ACADEMICO | G121: Catalogo principal | H121: USD | I121: N/A | J121: Microsoft®SkypeforBusiness AllLng License/SoftwareAssurancePack Academic OLV 1License LevelE AdditionalProduct 1Year | K121: Unidad | L121: Und | M121: Producto | N121: N/A | O121: N/A | P121: N/A | Q121: 6YH-00603 | R121: Suscripción Anual | S121: 2.81 | T121: 1 | U121: 1 | V121: =SUMIF(ResumenCotizacion!$C:$C,E121,ResumenCotizacion!$P:$P) -> 0 | W121: =IF(H121="USD",S121*SolCotizacion!$J$18,S121) -> 10680.3885 | X121: =ROUND(W121/(1-VLOOKUP("Total porcentaje:",ResumenCotizacion!$F:$H,3,0)),2) -> 11079.24 | Y121: 0
A122: Catalogo principalOVS_ES ACADEMICO6YH-00604 | B122: 6YH-00604OVS_ES ACADEMICO | D122: Catalogo principal | E122: 6YH-00604 | F122: OVS_ES ACADEMICO | G122: Catalogo principal | H122: USD | I122: N/A | J122: Microsoft®SkypeforBusiness AllLng License/SoftwareAssurancePack Academic OLV 1License LevelF AdditionalProduct 1Year | K122: Unidad | L122: Und | M122: Producto | N122: N/A | O122: N/A | P122: N/A | Q122: 6YH-00604 | R122: Suscripción Anual | S122: 2.81 | T122: 1 | U122: 1 | V122: =SUMIF(ResumenCotizacion!$C:$C,E122,ResumenCotizacion!$P:$P) -> 0 | W122: =IF(H122="USD",S122*SolCotizacion!$J$18,S122) -> 10680.3885 | X122: =ROUND(W122/(1-VLOOKUP("Total porcentaje:",ResumenCotizacion!$F:$H,3,0)),2) -> 11079.24 | Y122: 0
A123: Catalogo principalOVS_ES ACADEMICO6YH-00605 | B123: 6YH-00605OVS_ES ACADEMICO | D123: Catalogo principal | E123: 6YH-00605 | F123: OVS_ES ACADEMICO | G123: Catalogo principal | H123: USD | I123: N/A | J123: Microsoft®SkypeforBusiness AllLng License/SoftwareAssurancePack Academic OLV 1License NoLevel Student 1Year | K123: Unidad | L123: Und | M123: Producto | N123: N/A | O123: N/A | P123: N/A | Q123: 6YH-00605 | R123: Suscripción Anual | S123: 1.72 | T123: 1 | U123: 1 | V123: =SUMIF(ResumenCotizacion!$C:$C,E123,ResumenCotizacion!$P:$P) -> 0 | W123: =IF(H123="USD",S123*SolCotizacion!$J$18,S123) -> 6537.462 | X123: =ROUND(W123/(1-VLOOKUP("Total porcentaje:",ResumenCotizacion!$F:$H,3,0)),2) -> 6781.6 | Y123: 0
A124: Catalogo principalOVS_ES ACADEMICO6ZH-00447 | B124: 6ZH-00447OVS_ES ACADEMICO | D124: Catalogo principal | E124: 6ZH-00447 | F124: OVS_ES ACADEMICO | G124: Catalogo principal | H124: USD | I124: N/A | J124: Microsoft®SfBServerStdCAL AllLng License/SoftwareAssurancePack Academic OLV 1License LevelE Enterprise DvcCAL 1Year | K124: Unidad | L124: Und | M124: Producto | N124: N/A | O124: N/A | P124: N/A | Q124: 6ZH-00447 | R124: Suscripción Anual | S124: 3.74 | T124: 1 | U124: 1 | V124: =SUMIF(ResumenCotizacion!$C:$C,E124,ResumenCotizacion!$P:$P) -> 0 | W124: =IF(H124="USD",S124*SolCotizacion!$J$18,S124) -> 14215.179 | X124: =ROUND(W124/(1-VLOOKUP("Total porcentaje:",ResumenCotizacion!$F:$H,3,0)),2) -> 14746.04 | Y124: 0
A125: Catalogo principalOVS_ES ACADEMICO6ZH-00448 | B125: 6ZH-00448OVS_ES ACADEMICO | D125: Catalogo principal | E125: 6ZH-00448 | F125: OVS_ES ACADEMICO | G125: Catalogo principal | H125: USD | I125: N/A | J125: Microsoft®SfBServerStdCAL AllLng License/SoftwareAssurancePack Academic OLV 1License LevelF Enterprise DvcCAL 1Year | K125: Unidad | L125: Und | M125: Producto | N125: N/A | O125: N/A | P125: N/A | Q125: 6ZH-00448 | R125: Suscripción Anual | S125: 3.74 | T125: 1 | U125: 1 | V125: =SUMIF(ResumenCotizacion!$C:$C,E125,ResumenCotizacion!$P:$P) -> 0 | W125: =IF(H125="USD",S125*SolCotizacion!$J$18,S125) -> 14215.179 | X125: =ROUND(W125/(1-VLOOKUP("Total porcentaje:",ResumenCotizacion!$F:$H,3,0)),2) -> 14746.04 | Y125: 0
A126: Catalogo principalOVS_ES ACADEMICO6ZH-00449 | B126: 6ZH-00449OVS_ES ACADEMICO | D126: Catalogo principal | E126: 6ZH-00449 | F126: OVS_ES ACADEMICO | G126: Catalogo principal | H126: USD | I126: N/A | J126: Microsoft®SfBServerStdCAL AllLng License/SoftwareAssurancePack Academic OLV 1License LevelE Enterprise UsrCAL 1Year | K126: Unidad | L126: Und | M126: Producto | N126: N/A | O126: N/A | P126: N/A | Q126: 6ZH-00449 | R126: Suscripción Anual | S126: 3.74 | T126: 1 | U126: 1 | V126: =SUMIF(ResumenCotizacion!$C:$C,E126,ResumenCotizacion!$P:$P) -> 0 | W126: =IF(H126="USD",S126*SolCotizacion!$J$18,S126) -> 14215.179 | X126: =ROUND(W126/(1-VLOOKUP("Total porcentaje:",ResumenCotizacion!$F:$H,3,0)),2) -> 14746.04 | Y126: 0
A127: Catalogo principalOVS_ES ACADEMICO6ZH-00450 | B127: 6ZH-00450OVS_ES ACADEMICO | D127: Catalogo principal | E127: 6ZH-00450 | F127: OVS_ES ACADEMICO | G127: Catalogo principal | H127: USD | I127: N/A | J127: Microsoft®SfBServerStdCAL AllLng License/SoftwareAssurancePack Academic OLV 1License LevelF Enterprise UsrCAL 1Year | K127: Unidad | L127: Und | M127: Producto | N127: N/A | O127: N/A | P127: N/A | Q127: 6ZH-00450 | R127: Suscripción Anual | S127: 3.74 | T127: 1 | U127: 1 | V127: =SUMIF(ResumenCotizacion!$C:$C,E127,ResumenCotizacion!$P:$P) -> 0 | W127: =IF(H127="USD",S127*SolCotizacion!$J$18,S127) -> 14215.179 | X127: =ROUND(W127/(1-VLOOKUP("Total porcentaje:",ResumenCotizacion!$F:$H,3,0)),2) -> 14746.04 | Y127: 0
A128: Catalogo principalOVS_ES ACADEMICO6ZH-00451 | B128: 6ZH-00451OVS_ES ACADEMICO | D128: Catalogo principal | E128: 6ZH-00451 | F128: OVS_ES ACADEMICO | G128: Catalogo principal | H128: USD | I128: N/A | J128: Microsoft®SfBServerStdCAL AllLng License/SoftwareAssurancePack Academic OLV 1License NoLevel Student DvcCAL 1Year | K128: Unidad | L128: Und | M128: Producto | N128: N/A | O128: N/A | P128: N/A | Q128: 6ZH-00451 | R128: Suscripción Anual | S128: 2.34 | T128: 1 | U128: 1 | V128: =SUMIF(ResumenCotizacion!$C:$C,E128,ResumenCotizacion!$P:$P) -> 0 | W128: =IF(H128="USD",S128*SolCotizacion!$J$18,S128) -> 8893.989 | X128: =ROUND(W128/(1-VLOOKUP("Total porcentaje:",ResumenCotizacion!$F:$H,3,0)),2) -> 9226.13 | Y128: 0
A129: Catalogo principalOVS_ES ACADEMICO6ZH-00452 | B129: 6ZH-00452OVS_ES ACADEMICO | D129: Catalogo principal | E129: 6ZH-00452 | F129: OVS_ES ACADEMICO | G129: Catalogo principal | H129: USD | I129: N/A | J129: Microsoft®SfBServerStdCAL AllLng License/SoftwareAssurancePack Academic OLV 1License NoLevel Student UsrCAL 1Year | K129: Unidad | L129: Und | M129: Producto | N129: N/A | O129: N/A | P129: N/A | Q129: 6ZH-00452 | R129: Suscripción Anual | S129: 2.34 | T129: 1 | U129: 1 | V129: =SUMIF(ResumenCotizacion!$C:$C,E129,ResumenCotizacion!$P:$P) -> 0 | W129: =IF(H129="USD",S129*SolCotizacion!$J$18,S129) -> 8893.989 | X129: =ROUND(W129/(1-VLOOKUP("Total porcentaje:",ResumenCotizacion!$F:$H,3,0)),2) -> 9226.13 | Y129: 0
A130: =D130&F130&E130 -> Catalogo principalOVS_ES ACADEMICO76A-00917 | B130: =E130&F130 -> 76A-00917OVS_ES ACADEMICO | D130: Catalogo principal | E130: 76A-00917 | F130: OVS_ES ACADEMICO | G130: Catalogo principal | H130: USD | I130: N/A | J130: Microsoft®EnterpriseCAL AllLng License/SoftwareAssurancePack Academic OLV 1License LevelE Enterprise DvcCAL w/Services 1Year | K130: Unidad | L130: Und | M130: Producto | N130: N/A | O130: N/A | P130: N/A | Q130: 76A-00917 | R130: Suscripción Anual | S130: 30 | T130: 1 | U130: 1 | V130: =SUMIF(ResumenCotizacion!$C:$C,E130,ResumenCotizacion!$P:$P) -> 0 | W130: =IF(H130="USD",S130*SolCotizacion!$J$18,S130) -> 114025.5 | X130: =ROUND(W130/(1-VLOOKUP("Total porcentaje:",ResumenCotizacion!$F:$H,3,0)),2) -> 118283.71 | Y130: 0
A131: Catalogo principalOVS_ES ACADEMICO76A-00918 | B131: 76A-00918OVS_ES ACADEMICO | D131: Catalogo principal | E131: 76A-00918 | F131: OVS_ES ACADEMICO | G131: Catalogo principal | H131: USD | I131: N/A | J131: Microsoft®EnterpriseCAL AllLng License/SoftwareAssurancePack Academic OLV 1License LevelF Enterprise DvcCAL w/Services 1Year | K131: Unidad | L131: Und | M131: Producto | N131: N/A | O131: N/A | P131: N/A | Q131: 76A-00918 | R131: Suscripción Anual | S131: 28 | T131: 1 | U131: 1 | V131: =SUMIF(ResumenCotizacion!$C:$C,E131,ResumenCotizacion!$P:$P) -> 0 | W131: =IF(H131="USD",S131*SolCotizacion!$J$18,S131) -> 106423.8 | X131: =ROUND(W131/(1-VLOOKUP("Total porcentaje:",ResumenCotizacion!$F:$H,3,0)),2) -> 110398.13 | Y131: =V131*X131 -> 0
A132: Catalogo principalOVS_ES ACADEMICO76A-00919 | B132: 76A-00919OVS_ES ACADEMICO | D132: Catalogo principal | E132: 76A-00919 | F132: OVS_ES ACADEMICO | G132: Catalogo principal | H132: USD | I132: N/A | J132: Microsoft®EnterpriseCAL AllLng License/SoftwareAssurancePack Academic OLV 1License LevelE Enterprise UsrCAL w/Services 1Year | K132: Unidad | L132: Und | M132: Producto | N132: N/A | O132: N/A | P132: N/A | Q132: 76A-00919 | R132: Suscripción Anual | S132: 30 | T132: 1 | U132: 1 | V132: =SUMIF(ResumenCotizacion!$C:$C,E132,ResumenCotizacion!$P:$P) -> 0 | W132: =IF(H132="USD",S132*SolCotizacion!$J$18,S132) -> 114025.5 | X132: =ROUND(W132/(1-VLOOKUP("Total porcentaje:",ResumenCotizacion!$F:$H,3,0)),2) -> 118283.71 | Y132: 0
A133: Catalogo principalOVS_ES ACADEMICO76A-00920 | B133: 76A-00920OVS_ES ACADEMICO | D133: Catalogo principal | E133: 76A-00920 | F133: OVS_ES ACADEMICO | G133: Catalogo principal | H133: USD | I133: N/A | J133: Microsoft®EnterpriseCAL AllLng License/SoftwareAssurancePack Academic OLV 1License LevelF Enterprise UsrCAL w/Services 1Year | K133: Unidad | L133: Und | M133: Producto | N133: N/A | O133: N/A | P133: N/A | Q133: 76A-00920 | R133: Suscripción Anual | S133: 28 | T133: 1 | U133: 1 | V133: =SUMIF(ResumenCotizacion!$C:$C,E133,ResumenCotizacion!$P:$P) -> 0 | W133: =IF(H133="USD",S133*SolCotizacion!$J$18,S133) -> 106423.8 | X133: =ROUND(W133/(1-VLOOKUP("Total porcentaje:",ResumenCotizacion!$F:$H,3,0)),2) -> 110398.13 | Y133: 0
A134: Catalogo principalOVS_ES ACADEMICO76A-00921 | B134: 76A-00921OVS_ES ACADEMICO | D134: Catalogo principal | E134: 76A-00921 | F134: OVS_ES ACADEMICO | G134: Catalogo principal | H134: USD | I134: N/A | J134: Microsoft®EnterpriseCAL AllLng SAStepUp Academic OLV 1License LevelE CoreClientAccessLicense Enterprise DvcCAL w/Services 1Year | K134: Unidad | L134: Und | M134: Producto | N134: N/A | O134: N/A | P134: N/A | Q134: 76A-00921 | R134: Suscripción Anual | S134: 14 | T134: 1 | U134: 1 | V134: =SUMIF(ResumenCotizacion!$C:$C,E134,ResumenCotizacion!$P:$P) -> 0 | W134: =IF(H134="USD",S134*SolCotizacion!$J$18,S134) -> 53211.9 | X134: =ROUND(W134/(1-VLOOKUP("Total porcentaje:",ResumenCotizacion!$F:$H,3,0)),2) -> 55199.07 | Y134: 0
A135: Catalogo principalOVS_ES ACADEMICO76A-00922 | B135: 76A-00922OVS_ES ACADEMICO | D135: Catalogo principal | E135: 76A-00922 | F135: OVS_ES ACADEMICO | G135: Catalogo principal | H135: USD | I135: N/A | J135: Microsoft®EnterpriseCAL AllLng SAStepUp Academic OLV 1License LevelF CoreClientAccessLicense Enterprise DvcCAL w/Services 1Year | K135: Unidad | L135: Und | M135: Producto | N135: N/A | O135: N/A | P135: N/A | Q135: 76A-00922 | R135: Suscripción Anual | S135: 14 | T135: 1 | U135: 1 | V135: =SUMIF(ResumenCotizacion!$C:$C,E135,ResumenCotizacion!$P:$P) -> 0 | W135: =IF(H135="USD",S135*SolCotizacion!$J$18,S135) -> 53211.9 | X135: =ROUND(W135/(1-VLOOKUP("Total porcentaje:",ResumenCotizacion!$F:$H,3,0)),2) -> 55199.07 | Y135: 0
A136: Catalogo principalOVS_ES ACADEMICO76A-00923 | B136: 76A-00923OVS_ES ACADEMICO | D136: Catalogo principal | E136: 76A-00923 | F136: OVS_ES ACADEMICO | G136: Catalogo principal | H136: USD | I136: N/A | J136: Microsoft®EnterpriseCAL AllLng SAStepUp Academic OLV 1License LevelE CoreClientAccessLicense Enterprise UsrCAL w/Services 1Year | K136: Unidad | L136: Und | M136: Producto | N136: N/A | O136: N/A | P136: N/A | Q136: 76A-00923 | R136: Suscripción Anual | S136: 14 | T136: 1 | U136: 1 | V136: =SUMIF(ResumenCotizacion!$C:$C,E136,ResumenCotizacion!$P:$P) -> 0 | W136: =IF(H136="USD",S136*SolCotizacion!$J$18,S136) -> 53211.9 | X136: =ROUND(W136/(1-VLOOKUP("Total porcentaje:",ResumenCotizacion!$F:$H,3,0)),2) -> 55199.07 | Y136: 0
A137: Catalogo principalOVS_ES ACADEMICO76A-00924 | B137: 76A-00924OVS_ES ACADEMICO | D137: Catalogo principal | E137: 76A-00924 | F137: OVS_ES ACADEMICO | G137: Catalogo principal | H137: USD | I137: N/A | J137: Microsoft®EnterpriseCAL AllLng SAStepUp Academic OLV 1License LevelF CoreClientAccessLicense Enterprise UsrCAL w/Services 1Year | K137: Unidad | L137: Und | M137: Producto | N137: N/A | O137: N/A | P137: N/A | Q137: 76A-00924 | R137: Suscripción Anual | S137: 14 | T137: 1 | U137: 1 | V137: =SUMIF(ResumenCotizacion!$C:$C,E137,ResumenCotizacion!$P:$P) -> 0 | W137: =IF(H137="USD",S137*SolCotizacion!$J$18,S137) -> 53211.9 | X137: =ROUND(W137/(1-VLOOKUP("Total porcentaje:",ResumenCotizacion!$F:$H,3,0)),2) -> 55199.07 | Y137: 0
A138: Catalogo principalOVS_ES ACADEMICO76A-00925 | B138: 76A-00925OVS_ES ACADEMICO | D138: Catalogo principal | E138: 76A-00925 | F138: OVS_ES ACADEMICO | G138: Catalogo principal | H138: USD | I138: N/A | J138: Microsoft®EnterpriseCAL AllLng License/SoftwareAssurancePack Academic OLV 1License NoLevel Student DvcCAL w/Services 1Year | K138: Unidad | L138: Und | M138: Producto | N138: N/A | O138: N/A | P138: N/A | Q138: 76A-00925 | R138: Suscripción Anual | S138: 17 | T138: 1 | U138: 1 | V138: =SUMIF(ResumenCotizacion!$C:$C,E138,ResumenCotizacion!$P:$P) -> 0 | W138: =IF(H138="USD",S138*SolCotizacion!$J$18,S138) -> 64614.45 | X138: =ROUND(W138/(1-VLOOKUP("Total porcentaje:",ResumenCotizacion!$F:$H,3,0)),2) -> 67027.44 | Y138: 0
A139: Catalogo principalOVS_ES ACADEMICO76A-00926 | B139: 76A-00926OVS_ES ACADEMICO | D139: Catalogo principal | E139: 76A-00926 | F139: OVS_ES ACADEMICO | G139: Catalogo principal | H139: USD | I139: N/A | J139: Microsoft®EnterpriseCAL AllLng License/SoftwareAssurancePack Academic OLV 1License NoLevel Student UsrCAL w/Services 1Year | K139: Unidad | L139: Und | M139: Producto | N139: N/A | O139: N/A | P139: N/A | Q139: 76A-00926 | R139: Suscripción Anual | S139: 17 | T139: 1 | U139: 1 | V139: =SUMIF(ResumenCotizacion!$C:$C,E139,ResumenCotizacion!$P:$P) -> 0 | W139: =IF(H139="USD",S139*SolCotizacion!$J$18,S139) -> 64614.45 | X139: =ROUND(W139/(1-VLOOKUP("Total porcentaje:",ResumenCotizacion!$F:$H,3,0)),2) -> 67027.44 | Y139: 0
A140: Catalogo principalOVS_ES ACADEMICO76A-00927 | B140: 76A-00927OVS_ES ACADEMICO | D140: Catalogo principal | E140: 76A-00927 | F140: OVS_ES ACADEMICO | G140: Catalogo principal | H140: USD | I140: N/A | J140: Microsoft®EnterpriseCAL AllLng SAStepUp Academic OLV 1License NoLevel CoreClientAccessLicense Student DvcCAL w/Services 1Year | K140: Unidad | L140: Und | M140: Producto | N140: N/A | O140: N/A | P140: N/A | Q140: 76A-00927 | R140: Suscripción Anual | S140: 15 | T140: 1 | U140: 1 | V140: =SUMIF(ResumenCotizacion!$C:$C,E140,ResumenCotizacion!$P:$P) -> 0 | W140: =IF(H140="USD",S140*SolCotizacion!$J$18,S140) -> 57012.75 | X140: =ROUND(W140/(1-VLOOKUP("Total porcentaje:",ResumenCotizacion!$F:$H,3,0)),2) -> 59141.86 | Y140: 0
A141: Catalogo principalOVS_ES ACADEMICO76A-00928 | B141: 76A-00928OVS_ES ACADEMICO | D141: Catalogo principal | E141: 76A-00928 | F141: OVS_ES ACADEMICO | G141: Catalogo principal | H141: USD | I141: N/A | J141: Microsoft®EnterpriseCAL AllLng SAStepUp Academic OLV 1License NoLevel CoreClientAccessLicense Student UsrCAL w/Services 1Year | K141: Unidad | L141: Und | M141: Producto | N141: N/A | O141: N/A | P141: N/A | Q141: 76A-00928 | R141: Suscripción Anual | S141: 15 | T141: 1 | U141: 1 | V141: =SUMIF(ResumenCotizacion!$C:$C,E141,ResumenCotizacion!$P:$P) -> 0 | W141: =IF(H141="USD",S141*SolCotizacion!$J$18,S141) -> 57012.75 | X141: =ROUND(W141/(1-VLOOKUP("Total porcentaje:",ResumenCotizacion!$F:$H,3,0)),2) -> 59141.86 | Y141: 0
A142: Catalogo principalOVS_ES ACADEMICO76A-00937 | B142: 76A-00937OVS_ES ACADEMICO | D142: Catalogo principal | E142: 76A-00937 | F142: OVS_ES ACADEMICO | G142: Catalogo principal | H142: USD | I142: N/A | J142: Microsoft®EnterpriseCAL AllLng SAStepUp Academic OLV 1License LevelF CoreClientAccessLicense Platform DvcCAL w/Services 1Year | K142: Unidad | L142: Und | M142: Producto | N142: N/A | O142: N/A | P142: N/A | Q142: 76A-00937 | R142: Suscripción Anual | S142: 11 | T142: 1 | U142: 1 | V142: =SUMIF(ResumenCotizacion!$C:$C,E142,ResumenCotizacion!$P:$P) -> 0 | W142: =IF(H142="USD",S142*SolCotizacion!$J$18,S142) -> 41809.35 | X142: =ROUND(W142/(1-VLOOKUP("Total porcentaje:",ResumenCotizacion!$F:$H,3,0)),2) -> 43370.7 | Y142: 0
A143: Catalogo principalOVS_ES ACADEMICO76A-00938 | B143: 76A-00938OVS_ES ACADEMICO | D143: Catalogo principal | E143: 76A-00938 | F143: OVS_ES ACADEMICO | G143: Catalogo principal | H143: USD | I143: N/A | J143: Microsoft®EnterpriseCAL AllLng SAStepUp Academic OLV 1License LevelE CoreClientAccessLicense Platform UsrCAL w/Services 1Year | K143: Unidad | L143: Und | M143: Producto | N143: N/A | O143: N/A | P143: N/A | Q143: 76A-00938 | R143: Suscripción Anual | S143: 12 | T143: 1 | U143: 1 | V143: =SUMIF(ResumenCotizacion!$C:$C,E143,ResumenCotizacion!$P:$P) -> 0 | W143: =IF(H143="USD",S143*SolCotizacion!$J$18,S143) -> 45610.2 | X143: =ROUND(W143/(1-VLOOKUP("Total porcentaje:",ResumenCotizacion!$F:$H,3,0)),2) -> 47313.49 | Y143: 0
A144: Catalogo principalOVS_ES ACADEMICO76A-00939 | B144: 76A-00939OVS_ES ACADEMICO | D144: Catalogo principal | E144: 76A-00939 | F144: OVS_ES ACADEMICO | G144: Catalogo principal | H144: USD | I144: N/A | J144: Microsoft®EnterpriseCAL AllLng SAStepUp Academic OLV 1License LevelF CoreClientAccessLicense Platform UsrCAL w/Services 1Year | K144: Unidad | L144: Und | M144: Producto | N144: N/A | O144: N/A | P144: N/A | Q144: 76A-00939 | R144: Suscripción Anual | S144: 11 | T144: 1 | U144: 1 | V144: =SUMIF(ResumenCotizacion!$C:$C,E144,ResumenCotizacion!$P:$P) -> 0 | W144: =IF(H144="USD",S144*SolCotizacion!$J$18,S144) -> 41809.35 | X144: =ROUND(W144/(1-VLOOKUP("Total porcentaje:",ResumenCotizacion!$F:$H,3,0)),2) -> 43370.7 | Y144: 0
A145: Catalogo principalOVS_ES ACADEMICO76A-00946 | B145: 76A-00946OVS_ES ACADEMICO | D145: Catalogo principal | E145: 76A-00946 | F145: OVS_ES ACADEMICO | G145: Catalogo principal | H145: USD | I145: N/A | J145: Microsoft®EnterpriseCAL AllLng License/SoftwareAssurancePack Academic OLV 1License NoLevel PlatformStudent DvcCAL w/Services 1Year | K145: Unidad | L145: Und | M145: Producto | N145: N/A | O145: N/A | P145: N/A | Q145: 76A-00946 | R145: Suscripción Anual | S145: 16 | T145: 1 | U145: 1 | V145: =SUMIF(ResumenCotizacion!$C:$C,E145,ResumenCotizacion!$P:$P) -> 0 | W145: =IF(H145="USD",S145*SolCotizacion!$J$18,S145) -> 60813.6 | X145: =ROUND(W145/(1-VLOOKUP("Total porcentaje:",ResumenCotizacion!$F:$H,3,0)),2) -> 63084.65 | Y145: 0
A146: Catalogo principalOVS_ES ACADEMICO76A-00947 | B146: 76A-00947OVS_ES ACADEMICO | D146: Catalogo principal | E146: 76A-00947 | F146: OVS_ES ACADEMICO | G146: Catalogo principal | H146: USD | I146: N/A | J146: Microsoft®EnterpriseCAL AllLng License/SoftwareAssurancePack Academic OLV 1License NoLevel PlatformStudent UsrCAL w/Services 1Year | K146: Unidad | L146: Und | M146: Producto | N146: N/A | O146: N/A | P146: N/A | Q146: 76A-00947 | R146: Suscripción Anual | S146: 16 | T146: 1 | U146: 1 | V146: =SUMIF(ResumenCotizacion!$C:$C,E146,ResumenCotizacion!$P:$P) -> 0 | W146: =IF(H146="USD",S146*SolCotizacion!$J$18,S146) -> 60813.6 | X146: =ROUND(W146/(1-VLOOKUP("Total porcentaje:",ResumenCotizacion!$F:$H,3,0)),2) -> 63084.65 | Y146: 0
A147: Catalogo principalOVS_ES ACADEMICO76A-00948 | B147: 76A-00948OVS_ES ACADEMICO | D147: Catalogo principal | E147: 76A-00948 | F147: OVS_ES ACADEMICO | G147: Catalogo principal | H147: USD | I147: N/A | J147: Microsoft®EnterpriseCAL AllLng SAStepUp Academic OLV 1License NoLevel CoreClientAccessLicense PlatformStudent DvcCAL w/Services 1Year | K147: Unidad | L147: Und | M147: Producto | N147: N/A | O147: N/A | P147: N/A | Q147: 76A-00948 | R147: Suscripción Anual | S147: 13 | T147: 1 | U147: 1 | V147: =SUMIF(ResumenCotizacion!$C:$C,E147,ResumenCotizacion!$P:$P) -> 0 | W147: =IF(H147="USD",S147*SolCotizacion!$J$18,S147) -> 49411.05 | X147: =ROUND(W147/(1-VLOOKUP("Total porcentaje:",ResumenCotizacion!$F:$H,3,0)),2) -> 51256.28 | Y147: 0
A148: Catalogo principalOVS_ES ACADEMICO76A-00949 | B148: 76A-00949OVS_ES ACADEMICO | D148: Catalogo principal | E148: 76A-00949 | F148: OVS_ES ACADEMICO | G148: Catalogo principal | H148: USD | I148: N/A | J148: Microsoft®EnterpriseCAL AllLng SAStepUp Academic OLV 1License NoLevel CoreClientAccessLicense PlatformStudent UsrCAL w/Services 1Year | K148: Unidad | L148: Und | M148: Producto | N148: N/A | O148: N/A | P148: N/A | Q148: 76A-00949 | R148: Suscripción Anual | S148: 13 | T148: 1 | U148: 1 | V148: =SUMIF(ResumenCotizacion!$C:$C,E148,ResumenCotizacion!$P:$P) -> 0 | W148: =IF(H148="USD",S148*SolCotizacion!$J$18,S148) -> 49411.05 | X148: =ROUND(W148/(1-VLOOKUP("Total porcentaje:",ResumenCotizacion!$F:$H,3,0)),2) -> 51256.28 | Y148: 0
A149: Catalogo principalOVS_ES ACADEMICO76A-01004 | B149: 76A-01004OVS_ES ACADEMICO | D149: Catalogo principal | E149: 76A-01004 | F149: OVS_ES ACADEMICO | G149: Catalogo principal | H149: USD | I149: N/A | J149: Microsoft®EnterpriseCAL AllLng License/SoftwareAssurancePack Academic OLV 1License LevelE Platform DvcCAL w/Services 1Year | K149: Unidad | L149: Und | M149: Producto | N149: N/A | O149: N/A | P149: N/A | Q149: 76A-01004 | R149: Suscripción Anual | S149: 27 | T149: 1 | U149: 1 | V149: =SUMIF(ResumenCotizacion!$C:$C,E149,ResumenCotizacion!$P:$P) -> 0 | W149: =IF(H149="USD",S149*SolCotizacion!$J$18,S149) -> 102622.95 | X149: =ROUND(W149/(1-VLOOKUP("Total porcentaje:",ResumenCotizacion!$F:$H,3,0)),2) -> 106455.34 | Y149: 0
A150: Catalogo principalOVS_ES ACADEMICO76A-01005 | B150: 76A-01005OVS_ES ACADEMICO | D150: Catalogo principal | E150: 76A-01005 | F150: OVS_ES ACADEMICO | G150: Catalogo principal | H150: USD | I150: N/A | J150: Microsoft®EnterpriseCAL AllLng License/SoftwareAssurancePack Academic OLV 1License LevelF Platform DvcCAL w/Services 1Year | K150: Unidad | L150: Und | M150: Producto | N150: N/A | O150: N/A | P150: N/A | Q150: 76A-01005 | R150: Suscripción Anual | S150: 26 | T150: 1 | U150: 1 | V150: =SUMIF(ResumenCotizacion!$C:$C,E150,ResumenCotizacion!$P:$P) -> 0 | W150: =IF(H150="USD",S150*SolCotizacion!$J$18,S150) -> 98822.1 | X150: =ROUND(W150/(1-VLOOKUP("Total porcentaje:",ResumenCotizacion!$F:$H,3,0)),2) -> 102512.55 | Y150: 0
A151: Catalogo principalOVS_ES ACADEMICO76A-01006 | B151: 76A-01006OVS_ES ACADEMICO | D151: Catalogo principal | E151: 76A-01006 | F151: OVS_ES ACADEMICO | G151: Catalogo principal | H151: USD | I151: N/A | J151: Microsoft®EnterpriseCAL AllLng License/SoftwareAssurancePack Academic OLV 1License LevelE Platform UsrCAL w/Services 1Year | K151: Unidad | L151: Und | M151: Producto | N151: N/A | O151: N/A | P151: N/A | Q151: 76A-01006 | R151: Suscripción Anual | S151: 27 | T151: 1 | U151: 1 | V151: =SUMIF(ResumenCotizacion!$C:$C,E151,ResumenCotizacion!$P:$P) -> 0 | W151: =IF(H151="USD",S151*SolCotizacion!$J$18,S151) -> 102622.95 | X151: =ROUND(W151/(1-VLOOKUP("Total porcentaje:",ResumenCotizacion!$F:$H,3,0)),2) -> 106455.34 | Y151: 0
A152: Catalogo principalOVS_ES ACADEMICO76A-01007 | B152: 76A-01007OVS_ES ACADEMICO | D152: Catalogo principal | E152: 76A-01007 | F152: OVS_ES ACADEMICO | G152: Catalogo principal | H152: USD | I152: N/A | J152: Microsoft®EnterpriseCAL AllLng License/SoftwareAssurancePack Academic OLV 1License LevelF Platform UsrCAL w/Services 1Year | K152: Unidad | L152: Und | M152: Producto | N152: N/A | O152: N/A | P152: N/A | Q152: 76A-01007 | R152: Suscripción Anual | S152: 26 | T152: 1 | U152: 1 | V152: =SUMIF(ResumenCotizacion!$C:$C,E152,ResumenCotizacion!$P:$P) -> 0 | W152: =IF(H152="USD",S152*SolCotizacion!$J$18,S152) -> 98822.1 | X152: =ROUND(W152/(1-VLOOKUP("Total porcentaje:",ResumenCotizacion!$F:$H,3,0)),2) -> 102512.55 | Y152: 0
A153: Catalogo principalOVS_ES ACADEMICO76A-01008 | B153: 76A-01008OVS_ES ACADEMICO | D153: Catalogo principal | E153: 76A-01008 | F153: OVS_ES ACADEMICO | G153: Catalogo principal | H153: USD | I153: N/A | J153: Microsoft®EnterpriseCAL AllLng SAStepUp Academic OLV 1License LevelE CoreClientAccessLicense Platform DvcCAL w/Services 1Year | K153: Unidad | L153: Und | M153: Producto | N153: N/A | O153: N/A | P153: N/A | Q153: 76A-01008 | R153: Suscripción Anual | S153: 12 | T153: 1 | U153: 1 | V153: =SUMIF(ResumenCotizacion!$C:$C,E153,ResumenCotizacion!$P:$P) -> 0 | W153: =IF(H153="USD",S153*SolCotizacion!$J$18,S153) -> 45610.2 | X153: =ROUND(W153/(1-VLOOKUP("Total porcentaje:",ResumenCotizacion!$F:$H,3,0)),2) -> 47313.49 | Y153: 0
A154: Catalogo principalOVS_ES ACADEMICO76M-01415 | B154: 76M-01415OVS_ES ACADEMICO | D154: Catalogo principal | E154: 76M-01415 | F154: OVS_ES ACADEMICO | G154: Catalogo principal | H154: USD | I154: N/A | J154: Microsoft® SharePoint Standard CAL All Languages License & Software Assurance Open Value Level E 1 Year Academic Enterprise Device CAL | K154: Unidad | L154: Und | M154: Producto | N154: N/A | O154: N/A | P154: N/A | Q154: 76M-01415 | R154: Suscripción Anual | S154: 8 | T154: 1 | U154: 1 | V154: =SUMIF(ResumenCotizacion!$C:$C,E154,ResumenCotizacion!$P:$P) -> 0 | W154: =IF(H154="USD",S154*SolCotizacion!$J$18,S154) -> 30406.8 | X154: =ROUND(W154/(1-VLOOKUP("Total porcentaje:",ResumenCotizacion!$F:$H,3,0)),2) -> 31542.32 | Y154: 0
A155: Catalogo principalOVS_ES ACADEMICO76M-01416 | B155: 76M-01416OVS_ES ACADEMICO | D155: Catalogo principal | E155: 76M-01416 | F155: OVS_ES ACADEMICO | G155: Catalogo principal | H155: USD | I155: N/A | J155: Microsoft® SharePoint Standard CAL All Languages License & Software Assurance Open Value Level F 1 Year Academic Enterprise Device CAL | K155: Unidad | L155: Und | M155: Producto | N155: N/A | O155: N/A | P155: N/A | Q155: 76M-01416 | R155: Suscripción Anual | S155: 8 | T155: 1 | U155: 1 | V155: =SUMIF(ResumenCotizacion!$C:$C,E155,ResumenCotizacion!$P:$P) -> 0 | W155: =IF(H155="USD",S155*SolCotizacion!$J$18,S155) -> 30406.8 | X155: =ROUND(W155/(1-VLOOKUP("Total porcentaje:",ResumenCotizacion!$F:$H,3,0)),2) -> 31542.32 | Y155: 0
A156: Catalogo principalOVS_ES ACADEMICO76M-01417 | B156: 76M-01417OVS_ES ACADEMICO | D156: Catalogo principal | E156: 76M-01417 | F156: OVS_ES ACADEMICO | G156: Catalogo principal | H156: USD | I156: N/A | J156: Microsoft® SharePoint Standard CAL All Languages License & Software Assurance Open Value Level E 1 Year Academic Enterprise User CAL | K156: Unidad | L156: Und | M156: Producto | N156: N/A | O156: N/A | P156: N/A | Q156: 76M-01417 | R156: Suscripción Anual | S156: 8 | T156: 1 | U156: 1 | V156: =SUMIF(ResumenCotizacion!$C:$C,E156,ResumenCotizacion!$P:$P) -> 0 | W156: =IF(H156="USD",S156*SolCotizacion!$J$18,S156) -> 30406.8 | X156: =ROUND(W156/(1-VLOOKUP("Total porcentaje:",ResumenCotizacion!$F:$H,3,0)),2) -> 31542.32 | Y156: 0
A157: Catalogo principalOVS_ES ACADEMICO76M-01418 | B157: 76M-01418OVS_ES ACADEMICO | D157: Catalogo principal | E157: 76M-01418 | F157: OVS_ES ACADEMICO | G157: Catalogo principal | H157: USD | I157: N/A | J157: Microsoft® SharePoint Standard CAL All Languages License & Software Assurance Open Value Level F 1 Year Academic Enterprise User CAL | K157: Unidad | L157: Und | M157: Producto | N157: N/A | O157: N/A | P157: N/A | Q157: 76M-01418 | R157: Suscripción Anual | S157: 8 | T157: 1 | U157: 1 | V157: =SUMIF(ResumenCotizacion!$C:$C,E157,ResumenCotizacion!$P:$P) -> 0 | W157: =IF(H157="USD",S157*SolCotizacion!$J$18,S157) -> 30406.8 | X157: =ROUND(W157/(1-VLOOKUP("Total porcentaje:",ResumenCotizacion!$F:$H,3,0)),2) -> 31542.32 | Y157: 0
A158: Catalogo principalOVS_ES ACADEMICO76M-01419 | B158: 76M-01419OVS_ES ACADEMICO | D158: Catalogo principal | E158: 76M-01419 | F158: OVS_ES ACADEMICO | G158: Catalogo principal | H158: USD | I158: N/A | J158: Microsoft® SharePoint Standard CAL All Languages License & Software Assurance Open Value No Level 1 Year Academic Student Device CAL | K158: Unidad | L158: Und | M158: Producto | N158: N/A | O158: N/A | P158: N/A | Q158: 76M-01419 | R158: Suscripción Anual | S158: 0.94 | T158: 1 | U158: 1 | V158: =SUMIF(ResumenCotizacion!$C:$C,E158,ResumenCotizacion!$P:$P) -> 0 | W158: =IF(H158="USD",S158*SolCotizacion!$J$18,S158) -> 3572.799 | X158: =ROUND(W158/(1-VLOOKUP("Total porcentaje:",ResumenCotizacion!$F:$H,3,0)),2) -> 3706.22 | Y158: 0
A159: Catalogo principalOVS_ES ACADEMICO76M-01420 | B159: 76M-01420OVS_ES ACADEMICO | D159: Catalogo principal | E159: 76M-01420 | F159: OVS_ES ACADEMICO | G159: Catalogo principal | H159: USD | I159: N/A | J159: Microsoft® SharePoint Standard CAL All Languages License & Software Assurance Open Value No Level 1 Year Academic Student User CAL | K159: Unidad | L159: Und | M159: Producto | N159: N/A | O159: N/A | P159: N/A | Q159: 76M-01420 | R159: Suscripción Anual | S159: 0.94 | T159: 1 | U159: 1 | V159: =SUMIF(ResumenCotizacion!$C:$C,E159,ResumenCotizacion!$P:$P) -> 0 | W159: =IF(H159="USD",S159*SolCotizacion!$J$18,S159) -> 3572.799 | X159: =ROUND(W159/(1-VLOOKUP("Total porcentaje:",ResumenCotizacion!$F:$H,3,0)),2) -> 3706.22 | Y159: 0
A160: Catalogo principalOVS_ES ACADEMICO76N-03594 | B160: 76N-03594OVS_ES ACADEMICO | D160: Catalogo principal | E160: 76N-03594 | F160: OVS_ES ACADEMICO | G160: Catalogo principal | H160: USD | I160: N/A | J160: Microsoft® SharePoint Enterprise CAL All Languages License & Software Assurance Open Value Level E 1 Year Academic Enterprise Device CAL | K160: Unidad | L160: Und | M160: Producto | N160: N/A | O160: N/A | P160: N/A | Q160: 76N-03594 | R160: Suscripción Anual | S160: 10 | T160: 1 | U160: 1 | V160: =SUMIF(ResumenCotizacion!$C:$C,E160,ResumenCotizacion!$P:$P) -> 0 | W160: =IF(H160="USD",S160*SolCotizacion!$J$18,S160) -> 38008.5 | X160: =ROUND(W160/(1-VLOOKUP("Total porcentaje:",ResumenCotizacion!$F:$H,3,0)),2) -> 39427.9 | Y160: 0
A161: Catalogo principalOVS_ES ACADEMICO76N-03595 | B161: 76N-03595OVS_ES ACADEMICO | D161: Catalogo principal | E161: 76N-03595 | F161: OVS_ES ACADEMICO | G161: Catalogo principal | H161: USD | I161: N/A | J161: Microsoft® SharePoint Enterprise CAL All Languages License & Software Assurance Open Value Level F 1 Year Academic Enterprise Device CAL | K161: Unidad | L161: Und | M161: Producto | N161: N/A | O161: N/A | P161: N/A | Q161: 76N-03595 | R161: Suscripción Anual | S161: 10 | T161: 1 | U161: 1 | V161: =SUMIF(ResumenCotizacion!$C:$C,E161,ResumenCotizacion!$P:$P) -> 0 | W161: =IF(H161="USD",S161*SolCotizacion!$J$18,S161) -> 38008.5 | X161: =ROUND(W161/(1-VLOOKUP("Total porcentaje:",ResumenCotizacion!$F:$H,3,0)),2) -> 39427.9 | Y161: 0
A162: Catalogo principalOVS_ES ACADEMICO76N-03596 | B162: 76N-03596OVS_ES ACADEMICO | D162: Catalogo principal | E162: 76N-03596 | F162: OVS_ES ACADEMICO | G162: Catalogo principal | H162: USD | I162: N/A | J162: Microsoft® SharePoint Enterprise CAL All Languages License & Software Assurance Open Value Level E 1 Year Academic Enterprise User CAL | K162: Unidad | L162: Und | M162: Producto | N162: N/A | O162: N/A | P162: N/A | Q162: 76N-03596 | R162: Suscripción Anual | S162: 10 | T162: 1 | U162: 1 | V162: =SUMIF(ResumenCotizacion!$C:$C,E162,ResumenCotizacion!$P:$P) -> 0 | W162: =IF(H162="USD",S162*SolCotizacion!$J$18,S162) -> 38008.5 | X162: =ROUND(W162/(1-VLOOKUP("Total porcentaje:",ResumenCotizacion!$F:$H,3,0)),2) -> 39427.9 | Y162: 0
A163: Catalogo principalOVS_ES ACADEMICO76N-03597 | B163: 76N-03597OVS_ES ACADEMICO | D163: Catalogo principal | E163: 76N-03597 | F163: OVS_ES ACADEMICO | G163: Catalogo principal | H163: USD | I163: N/A | J163: Microsoft® SharePoint Enterprise CAL All Languages License & Software Assurance Open Value Level F 1 Year Academic Enterprise User CAL | K163: Unidad | L163: Und | M163: Producto | N163: N/A | O163: N/A | P163: N/A | Q163: 76N-03597 | R163: Suscripción Anual | S163: 10 | T163: 1 | U163: 1 | V163: =SUMIF(ResumenCotizacion!$C:$C,E163,ResumenCotizacion!$P:$P) -> 0 | W163: =IF(H163="USD",S163*SolCotizacion!$J$18,S163) -> 38008.5 | X163: =ROUND(W163/(1-VLOOKUP("Total porcentaje:",ResumenCotizacion!$F:$H,3,0)),2) -> 39427.9 | Y163: 0
A164: Catalogo principalOVS_ES ACADEMICO76N-03598 | B164: 76N-03598OVS_ES ACADEMICO | D164: Catalogo principal | E164: 76N-03598 | F164: OVS_ES ACADEMICO | G164: Catalogo principal | H164: USD | I164: N/A | J164: Microsoft® SharePoint Enterprise CAL All Languages License & Software Assurance Open Value No Level 1 Year Academic Student Device CAL | K164: Unidad | L164: Und | M164: Producto | N164: N/A | O164: N/A | P164: N/A | Q164: 76N-03598 | R164: Suscripción Anual | S164: 7 | T164: 1 | U164: 1 | V164: =SUMIF(ResumenCotizacion!$C:$C,E164,ResumenCotizacion!$P:$P) -> 0 | W164: =IF(H164="USD",S164*SolCotizacion!$J$18,S164) -> 26605.95 | X164: =ROUND(W164/(1-VLOOKUP("Total porcentaje:",ResumenCotizacion!$F:$H,3,0)),2) -> 27599.53 | Y164: 0
A165: Catalogo principalOVS_ES ACADEMICO76N-03599 | B165: 76N-03599OVS_ES ACADEMICO | D165: Catalogo principal | E165: 76N-03599 | F165: OVS_ES ACADEMICO | G165: Catalogo principal | H165: USD | I165: N/A | J165: Microsoft® SharePoint Enterprise CAL All Languages License & Software Assurance Open Value No Level 1 Year Academic Student User CAL | K165: Unidad | L165: Und | M165: Producto | N165: N/A | O165: N/A | P165: N/A | Q165: 76N-03599 | R165: Suscripción Anual | S165: 7 | T165: 1 | U165: 1 | V165: =SUMIF(ResumenCotizacion!$C:$C,E165,ResumenCotizacion!$P:$P) -> 0 | W165: =IF(H165="USD",S165*SolCotizacion!$J$18,S165) -> 26605.95 | X165: =ROUND(W165/(1-VLOOKUP("Total porcentaje:",ResumenCotizacion!$F:$H,3,0)),2) -> 27599.53 | Y165: 0
A166: Catalogo principalOVS_ES ACADEMICO76P-01359 | B166: 76P-01359OVS_ES ACADEMICO | D166: Catalogo principal | E166: 76P-01359 | F166: OVS_ES ACADEMICO | G166: Catalogo principal | H166: USD | I166: N/A | J166: Microsoft® SharePoint Server All Languages License & Software Assurance Open Value Level E 1 Year Academic Additional Product | K166: Unidad | L166: Und | M166: Producto | N166: N/A | O166: N/A | P166: N/A | Q166: 76P-01359 | R166: Suscripción Anual | S166: 629 | T166: 1 | U166: 1 | V166: =SUMIF(ResumenCotizacion!$C:$C,E166,ResumenCotizacion!$P:$P) -> 0 | W166: =IF(H166="USD",S166*SolCotizacion!$J$18,S166) -> 2390734.65 | X166: =ROUND(W166/(1-VLOOKUP("Total porcentaje:",ResumenCotizacion!$F:$H,3,0)),2) -> 2480015.2 | Y166: 0
A167: Catalogo principalOVS_ES ACADEMICO76P-01360 | B167: 76P-01360OVS_ES ACADEMICO | D167: Catalogo principal | E167: 76P-01360 | F167: OVS_ES ACADEMICO | G167: Catalogo principal | H167: USD | I167: N/A | J167: Microsoft® SharePoint Server All Languages License & Software Assurance Open Value Level F 1 Year Academic Additional Product | K167: Unidad | L167: Und | M167: Producto | N167: N/A | O167: N/A | P167: N/A | Q167: 76P-01360 | R167: Suscripción Anual | S167: 629 | T167: 1 | U167: 1 | V167: =SUMIF(ResumenCotizacion!$C:$C,E167,ResumenCotizacion!$P:$P) -> 0 | W167: =IF(H167="USD",S167*SolCotizacion!$J$18,S167) -> 2390734.65 | X167: =ROUND(W167/(1-VLOOKUP("Total porcentaje:",ResumenCotizacion!$F:$H,3,0)),2) -> 2480015.2 | Y167: 0
A168: Catalogo principalOVS_ES ACADEMICO77D-00161 | B168: 77D-00161OVS_ES ACADEMICO | D168: Catalogo principal | E168: 77D-00161 | F168: OVS_ES ACADEMICO | G168: Catalogo principal | H168: USD | I168: N/A | J168: Microsoft®VisualStudioProSubMSDN AllLng License/SoftwareAssurancePack Academic OLV 1License LevelE AdditionalProduct 1Year | K168: Unidad | L168: Und | M168: Producto | N168: N/A | O168: N/A | P168: N/A | Q168: 77D-00161 | R168: Suscripción Anual | S168: 69 | T168: 1 | U168: 1 | V168: =SUMIF(ResumenCotizacion!$C:$C,E168,ResumenCotizacion!$P:$P) -> 0 | W168: =IF(H168="USD",S168*SolCotizacion!$J$18,S168) -> 262258.65 | X168: =ROUND(W168/(1-VLOOKUP("Total porcentaje:",ResumenCotizacion!$F:$H,3,0)),2) -> 272052.54 | Y168: 0
A169: Catalogo principalOVS_ES ACADEMICO77D-00162 | B169: 77D-00162OVS_ES ACADEMICO | D169: Catalogo principal | E169: 77D-00162 | F169: OVS_ES ACADEMICO | G169: Catalogo principal | H169: USD | I169: N/A | J169: Microsoft®VisualStudioProSubMSDN AllLng License/SoftwareAssurancePack Academic OLV 1License LevelF AdditionalProduct 1Year | K169: Unidad | L169: Und | M169: Producto | N169: N/A | O169: N/A | P169: N/A | Q169: 77D-00162 | R169: Suscripción Anual | S169: 69 | T169: 1 | U169: 1 | V169: =SUMIF(ResumenCotizacion!$C:$C,E169,ResumenCotizacion!$P:$P) -> 0 | W169: =IF(H169="USD",S169*SolCotizacion!$J$18,S169) -> 262258.65 | X169: =ROUND(W169/(1-VLOOKUP("Total porcentaje:",ResumenCotizacion!$F:$H,3,0)),2) -> 272052.54 | Y169: 0
A170: Catalogo principalOVS_ES ACADEMICO7AH-00437 | B170: 7AH-00437OVS_ES ACADEMICO | D170: Catalogo principal | E170: 7AH-00437 | F170: OVS_ES ACADEMICO | G170: Catalogo principal | H170: USD | I170: N/A | J170: Microsoft®SfBServerEntCAL AllLng License/SoftwareAssurancePack Academic OLV 1License LevelE Enterprise DvcCAL 1Year | K170: Unidad | L170: Und | M170: Producto | N170: N/A | O170: N/A | P170: N/A | Q170: 7AH-00437 | R170: Suscripción Anual | S170: 13 | T170: 1 | U170: 1 | V170: =SUMIF(ResumenCotizacion!$C:$C,E170,ResumenCotizacion!$P:$P) -> 0 | W170: =IF(H170="USD",S170*SolCotizacion!$J$18,S170) -> 49411.05 | X170: =ROUND(W170/(1-VLOOKUP("Total porcentaje:",ResumenCotizacion!$F:$H,3,0)),2) -> 51256.28 | Y170: 0
A171: Catalogo principalOVS_ES ACADEMICO7AH-00438 | B171: 7AH-00438OVS_ES ACADEMICO | D171: Catalogo principal | E171: 7AH-00438 | F171: OVS_ES ACADEMICO | G171: Catalogo principal | H171: USD | I171: N/A | J171: Microsoft®SfBServerEntCAL AllLng License/SoftwareAssurancePack Academic OLV 1License LevelF Enterprise DvcCAL 1Year | K171: Unidad | L171: Und | M171: Producto | N171: N/A | O171: N/A | P171: N/A | Q171: 7AH-00438 | R171: Suscripción Anual | S171: 13 | T171: 1 | U171: 1 | V171: =SUMIF(ResumenCotizacion!$C:$C,E171,ResumenCotizacion!$P:$P) -> 0 | W171: =IF(H171="USD",S171*SolCotizacion!$J$18,S171) -> 49411.05 | X171: =ROUND(W171/(1-VLOOKUP("Total porcentaje:",ResumenCotizacion!$F:$H,3,0)),2) -> 51256.28 | Y171: 0
A172: Catalogo principalOVS_ES ACADEMICO7AH-00439 | B172: 7AH-00439OVS_ES ACADEMICO | D172: Catalogo principal | E172: 7AH-00439 | F172: OVS_ES ACADEMICO | G172: Catalogo principal | H172: USD | I172: N/A | J172: Microsoft®SfBServerEntCAL AllLng License/SoftwareAssurancePack Academic OLV 1License LevelE Enterprise UsrCAL 1Year | K172: Unidad | L172: Und | M172: Producto | N172: N/A | O172: N/A | P172: N/A | Q172: 7AH-00439 | R172: Suscripción Anual | S172: 13 | T172: 1 | U172: 1 | V172: =SUMIF(ResumenCotizacion!$C:$C,E172,ResumenCotizacion!$P:$P) -> 0 | W172: =IF(H172="USD",S172*SolCotizacion!$J$18,S172) -> 49411.05 | X172: =ROUND(W172/(1-VLOOKUP("Total porcentaje:",ResumenCotizacion!$F:$H,3,0)),2) -> 51256.28 | Y172: 0
A173: Catalogo principalOVS_ES ACADEMICO7AH-00440 | B173: 7AH-00440OVS_ES ACADEMICO | D173: Catalogo principal | E173: 7AH-00440 | F173: OVS_ES ACADEMICO | G173: Catalogo principal | H173: USD | I173: N/A | J173: Microsoft®SfBServerEntCAL AllLng License/SoftwareAssurancePack Academic OLV 1License LevelF Enterprise UsrCAL 1Year | K173: Unidad | L173: Und | M173: Producto | N173: N/A | O173: N/A | P173: N/A | Q173: 7AH-00440 | R173: Suscripción Anual | S173: 13 | T173: 1 | U173: 1 | V173: =SUMIF(ResumenCotizacion!$C:$C,E173,ResumenCotizacion!$P:$P) -> 0 | W173: =IF(H173="USD",S173*SolCotizacion!$J$18,S173) -> 49411.05 | X173: =ROUND(W173/(1-VLOOKUP("Total porcentaje:",ResumenCotizacion!$F:$H,3,0)),2) -> 51256.28 | Y173: 0
A174: Catalogo principalOVS_ES ACADEMICO7AH-00441 | B174: 7AH-00441OVS_ES ACADEMICO | D174: Catalogo principal | E174: 7AH-00441 | F174: OVS_ES ACADEMICO | G174: Catalogo principal | H174: USD | I174: N/A | J174: Microsoft®SfBServerEntCAL AllLng License/SoftwareAssurancePack Academic OLV 1License NoLevel Student DvcCAL 1Year | K174: Unidad | L174: Und | M174: Producto | N174: N/A | O174: N/A | P174: N/A | Q174: 7AH-00441 | R174: Suscripción Anual | S174: 9 | T174: 1 | U174: 1 | V174: =SUMIF(ResumenCotizacion!$C:$C,E174,ResumenCotizacion!$P:$P) -> 0 | W174: =IF(H174="USD",S174*SolCotizacion!$J$18,S174) -> 34207.65 | X174: =ROUND(W174/(1-VLOOKUP("Total porcentaje:",ResumenCotizacion!$F:$H,3,0)),2) -> 35485.11 | Y174: 0
A175: Catalogo principalOVS_ES ACADEMICO7AH-00442 | B175: 7AH-00442OVS_ES ACADEMICO | D175: Catalogo principal | E175: 7AH-00442 | F175: OVS_ES ACADEMICO | G175: Catalogo principal | H175: USD | I175: N/A | J175: Microsoft®SfBServerEntCAL AllLng License/SoftwareAssurancePack Academic OLV 1License NoLevel Student UsrCAL 1Year | K175: Unidad | L175: Und | M175: Producto | N175: N/A | O175: N/A | P175: N/A | Q175: 7AH-00442 | R175: Suscripción Anual | S175: 9 | T175: 1 | U175: 1 | V175: =SUMIF(ResumenCotizacion!$C:$C,E175,ResumenCotizacion!$P:$P) -> 0 | W175: =IF(H175="USD",S175*SolCotizacion!$J$18,S175) -> 34207.65 | X175: =ROUND(W175/(1-VLOOKUP("Total porcentaje:",ResumenCotizacion!$F:$H,3,0)),2) -> 35485.11 | Y175: 0
A176: Catalogo principalOVS_ES ACADEMICO7JD-00001 | B176: 7JD-00001OVS_ES ACADEMICO | D176: Catalogo principal | E176: 7JD-00001 | F176: OVS_ES ACADEMICO | G176: Catalogo principal | H176: USD | I176: N/A | J176: Microsoft®ProjOnlineEssentialsOpenFac ShrdSvr AllLng MonthlySubscriptions-VolumeLicense Academic OLV 1License LevelE AdditionalProduct 1Month | K176: Unidad | L176: Und | M176: Producto | N176: N/A | O176: N/A | P176: N/A | Q176: 7JD-00001 | R176: Suscripción mensual con pago anual | S176: 0 | T176: 1 | U176: 1 | V176: =SUMIF(ResumenCotizacion!$C:$C,E176,ResumenCotizacion!$P:$P) -> 0 | W176: =IF(H176="USD",S176*SolCotizacion!$J$18,S176) -> 0 | X176: =ROUND(W176/(1-VLOOKUP("Total porcentaje:",ResumenCotizacion!$F:$H,3,0)),2) -> 0 | Y176: 0
A177: Catalogo principalOVS_ES ACADEMICO7JD-00002 | B177: 7JD-00002OVS_ES ACADEMICO | D177: Catalogo principal | E177: 7JD-00002 | F177: OVS_ES ACADEMICO | G177: Catalogo principal | H177: USD | I177: N/A | J177: Microsoft®ProjOnlineEssentialsOpenFac ShrdSvr AllLng MonthlySubscriptions-VolumeLicense Academic OLV 1License LevelF AdditionalProduct 1Month | K177: Unidad | L177: Und | M177: Producto | N177: N/A | O177: N/A | P177: N/A | Q177: 7JD-00002 | R177: Suscripción mensual con pago anual | S177: 0 | T177: 1 | U177: 1 | V177: =SUMIF(ResumenCotizacion!$C:$C,E177,ResumenCotizacion!$P:$P) -> 0 | W177: =IF(H177="USD",S177*SolCotizacion!$J$18,S177) -> 0 | X177: =ROUND(W177/(1-VLOOKUP("Total porcentaje:",ResumenCotizacion!$F:$H,3,0)),2) -> 0 | Y177: 0
A178: Catalogo principalOVS_ES ACADEMICO7JQ-00038 | B178: 7JQ-00038OVS_ES ACADEMICO | D178: Catalogo principal | E178: 7JQ-00038 | F178: OVS_ES ACADEMICO | G178: Catalogo principal | H178: USD | I178: N/A | J178: Microsoft®SQLSvrEnterpriseCore AllLng License/SoftwareAssurancePack Academic OLV 2Licenses LevelE AdditionalProduct CoreLic 1Year | K178: Unidad | L178: Und | M178: Producto | N178: N/A | O178: N/A | P178: N/A | Q178: 7JQ-00038 | R178: Suscripción Anual | S178: 1446 | T178: 1 | U178: 1 | V178: =SUMIF(ResumenCotizacion!$C:$C,E178,ResumenCotizacion!$P:$P) -> 0 | W178: =IF(H178="USD",S178*SolCotizacion!$J$18,S178) -> 5496029.1 | X178: =ROUND(W178/(1-VLOOKUP("Total porcentaje:",ResumenCotizacion!$F:$H,3,0)),2) -> 5701275 | Y178: 0
A179: Catalogo principalOVS_ES ACADEMICO7JQ-00039 | B179: 7JQ-00039OVS_ES ACADEMICO | D179: Catalogo principal | E179: 7JQ-00039 | F179: OVS_ES ACADEMICO | G179: Catalogo principal | H179: USD | I179: N/A | J179: Microsoft®SQLSvrEnterpriseCore AllLng License/SoftwareAssurancePack Academic OLV 2Licenses LevelF AdditionalProduct CoreLic 1Year | K179: Unidad | L179: Und | M179: Producto | N179: N/A | O179: N/A | P179: N/A | Q179: 7JQ-00039 | R179: Suscripción Anual | S179: 1446 | T179: 1 | U179: 1 | V179: =SUMIF(ResumenCotizacion!$C:$C,E179,ResumenCotizacion!$P:$P) -> 0 | W179: =IF(H179="USD",S179*SolCotizacion!$J$18,S179) -> 5496029.1 | X179: =ROUND(W179/(1-VLOOKUP("Total porcentaje:",ResumenCotizacion!$F:$H,3,0)),2) -> 5701275 | Y179: 0
A180: Catalogo principalOVS_ES ACADEMICO7JQ-00383 | B180: 7JQ-00383OVS_ES ACADEMICO | D180: Catalogo principal | E180: 7JQ-00383 | F180: OVS_ES ACADEMICO | G180: Catalogo principal | H180: USD | I180: N/A | J180: Microsoft®SQLSvrEnterpriseCore AllLng SAStepUp Academic OLV 2Licenses LevelE SQLSvrStandardCore AdditionalProduct CoreLic 1Year | K180: Unidad | L180: Und | M180: Producto | N180: N/A | O180: N/A | P180: N/A | Q180: 7JQ-00383 | R180: Suscripción Anual | S180: 1069 | T180: 1 | U180: 1 | V180: =SUMIF(ResumenCotizacion!$C:$C,E180,ResumenCotizacion!$P:$P) -> 0 | W180: =IF(H180="USD",S180*SolCotizacion!$J$18,S180) -> 4063108.65 | X180: =ROUND(W180/(1-VLOOKUP("Total porcentaje:",ResumenCotizacion!$F:$H,3,0)),2) -> 4214843 | Y180: 0
A181: Catalogo principalOVS_ES ACADEMICO7JQ-00384 | B181: 7JQ-00384OVS_ES ACADEMICO | D181: Catalogo principal | E181: 7JQ-00384 | F181: OVS_ES ACADEMICO | G181: Catalogo principal | H181: USD | I181: N/A | J181: Microsoft®SQLSvrEnterpriseCore AllLng SAStepUp Academic OLV 2Licenses LevelF SQLSvrStandardCore AdditionalProduct CoreLic 1Year | K181: Unidad | L181: Und | M181: Producto | N181: N/A | O181: N/A | P181: N/A | Q181: 7JQ-00384 | R181: Suscripción Anual | S181: 1069 | T181: 1 | U181: 1 | V181: =SUMIF(ResumenCotizacion!$C:$C,E181,ResumenCotizacion!$P:$P) -> 0 | W181: =IF(H181="USD",S181*SolCotizacion!$J$18,S181) -> 4063108.65 | X181: =ROUND(W181/(1-VLOOKUP("Total porcentaje:",ResumenCotizacion!$F:$H,3,0)),2) -> 4214843 | Y181: 0
A182: Catalogo principalOVS_ES ACADEMICO7JS-00001 | B182: 7JS-00001OVS_ES ACADEMICO | D182: Catalogo principal | E182: 7JS-00001 | F182: OVS_ES ACADEMICO | G182: Catalogo principal | H182: USD | I182: N/A | J182: Microsoft®ProjOnlineEssentialsOpenStu ShrdSvr AllLng MonthlySubscriptions-VolumeLicense Academic OLV 1License NoLevel Student 1Month | K182: Unidad | L182: Und | M182: Producto | N182: N/A | O182: N/A | P182: N/A | Q182: 7JS-00001 | R182: Suscripción mensual con pago anual | S182: 0 | T182: 1 | U182: 1 | V182: =SUMIF(ResumenCotizacion!$C:$C,E182,ResumenCotizacion!$P:$P) -> 0 | W182: =IF(H182="USD",S182*SolCotizacion!$J$18,S182) -> 0 | X182: =ROUND(W182/(1-VLOOKUP("Total porcentaje:",ResumenCotizacion!$F:$H,3,0)),2) -> 0 | Y182: 0
A183: Catalogo principalOVS_ES ACADEMICO7LA-00001 | B183: 7LA-00001OVS_ES ACADEMICO | D183: Catalogo principal | E183: 7LA-00001 | F183: OVS_ES ACADEMICO | G183: Catalogo principal | H183: USD | I183: N/A | J183: Microsoft®ProjectPlan3OpenFac ShrdSvr AllLng MonthlySubscriptions-VolumeLicense Academic OLV 1License LevelE AdditionalProduct 1Month | K183: Unidad | L183: Und | M183: Producto | N183: N/A | O183: N/A | P183: N/A | Q183: 7LA-00001 | R183: Suscripción mensual con pago anual | S183: 5.7 | T183: 1 | U183: 1 | V183: =SUMIF(ResumenCotizacion!$C:$C,E183,ResumenCotizacion!$P:$P) -> 0 | W183: =IF(H183="USD",S183*SolCotizacion!$J$18,S183) -> 21664.845 | X183: =ROUND(W183/(1-VLOOKUP("Total porcentaje:",ResumenCotizacion!$F:$H,3,0)),2) -> 22473.91 | Y183: 0
A184: Catalogo principalOVS_ES ACADEMICO7LA-00002 | B184: 7LA-00002OVS_ES ACADEMICO | D184: Catalogo principal | E184: 7LA-00002 | F184: OVS_ES ACADEMICO | G184: Catalogo principal | H184: USD | I184: N/A | J184: Microsoft®ProjectPlan3OpenFac ShrdSvr AllLng MonthlySubscriptions-VolumeLicense Academic OLV 1License LevelF AdditionalProduct 1Month | K184: Unidad | L184: Und | M184: Producto | N184: N/A | O184: N/A | P184: N/A | Q184: 7LA-00002 | R184: Suscripción mensual con pago anual | S184: 5.7 | T184: 1 | U184: 1 | V184: =SUMIF(ResumenCotizacion!$C:$C,E184,ResumenCotizacion!$P:$P) -> 0 | W184: =IF(H184="USD",S184*SolCotizacion!$J$18,S184) -> 21664.845 | X184: =ROUND(W184/(1-VLOOKUP("Total porcentaje:",ResumenCotizacion!$F:$H,3,0)),2) -> 22473.91 | Y184: 0
A185: Catalogo principalOVS_ES ACADEMICO7LG-00001 | B185: 7LG-00001OVS_ES ACADEMICO | D185: Catalogo principal | E185: 7LG-00001 | F185: OVS_ES ACADEMICO | G185: Catalogo principal | H185: USD | I185: N/A | J185: Microsoft®ProjectPlan3OpenStud ShrdSvr AllLng MonthlySubscriptions-VolumeLicense Academic OLV 1License NoLevel Student 1Month | K185: Unidad | L185: Und | M185: Producto | N185: N/A | O185: N/A | P185: N/A | Q185: 7LG-00001 | R185: Suscripción mensual con pago anual | S185: 4.3 | T185: 1 | U185: 1 | V185: =SUMIF(ResumenCotizacion!$C:$C,E185,ResumenCotizacion!$P:$P) -> 0 | W185: =IF(H185="USD",S185*SolCotizacion!$J$18,S185) -> 16343.655 | X185: =ROUND(W185/(1-VLOOKUP("Total porcentaje:",ResumenCotizacion!$F:$H,3,0)),2) -> 16954 | Y185: 0
A186: Catalogo principalOVS_ES ACADEMICO7NQ-00050 | B186: 7NQ-00050OVS_ES ACADEMICO | D186: Catalogo principal | E186: 7NQ-00050 | F186: OVS_ES ACADEMICO | G186: Catalogo principal | H186: USD | I186: N/A | J186: Microsoft®SQLSvrStandardCore AllLng License/SoftwareAssurancePack Academic OLV 2Licenses LevelE AdditionalProduct CoreLic 1Year | K186: Unidad | L186: Und | M186: Producto | N186: N/A | O186: N/A | P186: N/A | Q186: 7NQ-00050 | R186: Suscripción Anual | S186: 377 | T186: 1 | U186: 1 | V186: =SUMIF(ResumenCotizacion!$C:$C,E186,ResumenCotizacion!$P:$P) -> 0 | W186: =IF(H186="USD",S186*SolCotizacion!$J$18,S186) -> 1432920.45 | X186: =ROUND(W186/(1-VLOOKUP("Total porcentaje:",ResumenCotizacion!$F:$H,3,0)),2) -> 1486432 | Y186: 0
A187: Catalogo principalOVS_ES ACADEMICO7NQ-00051 | B187: 7NQ-00051OVS_ES ACADEMICO | D187: Catalogo principal | E187: 7NQ-00051 | F187: OVS_ES ACADEMICO | G187: Catalogo principal | H187: USD | I187: N/A | J187: Microsoft®SQLSvrStandardCore AllLng License/SoftwareAssurancePack Academic OLV 2Licenses LevelF AdditionalProduct CoreLic 1Year | K187: Unidad | L187: Und | M187: Producto | N187: N/A | O187: N/A | P187: N/A | Q187: 7NQ-00051 | R187: Suscripción Anual | S187: 377 | T187: 1 | U187: 1 | V187: =SUMIF(ResumenCotizacion!$C:$C,E187,ResumenCotizacion!$P:$P) -> 0 | W187: =IF(H187="USD",S187*SolCotizacion!$J$18,S187) -> 1432920.45 | X187: =ROUND(W187/(1-VLOOKUP("Total porcentaje:",ResumenCotizacion!$F:$H,3,0)),2) -> 1486432 | Y187: 0
A188: Catalogo principalOVS_ES ACADEMICO7RJ-00001 | B188: 7RJ-00001OVS_ES ACADEMICO | D188: Catalogo principal | E188: 7RJ-00001 | F188: OVS_ES ACADEMICO | G188: Catalogo principal | H188: USD | I188: N/A | J188: Microsoft®ProjectPlan5OpenFac ShrdSvr AllLng MonthlySubscriptions-VolumeLicense Academic OLV 1License LevelE AdditionalProduct 1Month | K188: Unidad | L188: Und | M188: Producto | N188: N/A | O188: N/A | P188: N/A | Q188: 7RJ-00001 | R188: Suscripción mensual con pago anual | S188: 10.3 | T188: 1 | U188: 1 | V188: =SUMIF(ResumenCotizacion!$C:$C,E188,ResumenCotizacion!$P:$P) -> 0 | W188: =IF(H188="USD",S188*SolCotizacion!$J$18,S188) -> 39148.755 | X188: =ROUND(W188/(1-VLOOKUP("Total porcentaje:",ResumenCotizacion!$F:$H,3,0)),2) -> 40610.74 | Y188: 0
A189: Catalogo principalOVS_ES ACADEMICO7RJ-00002 | B189: 7RJ-00002OVS_ES ACADEMICO | D189: Catalogo principal | E189: 7RJ-00002 | F189: OVS_ES ACADEMICO | G189: Catalogo principal | H189: USD | I189: N/A | J189: Microsoft®ProjectPlan5OpenFac ShrdSvr AllLng MonthlySubscriptions-VolumeLicense Academic OLV 1License LevelF AdditionalProduct 1Month | K189: Unidad | L189: Und | M189: Producto | N189: N/A | O189: N/A | P189: N/A | Q189: 7RJ-00002 | R189: Suscripción mensual con pago anual | S189: 10.3 | T189: 1 | U189: 1 | V189: =SUMIF(ResumenCotizacion!$C:$C,E189,ResumenCotizacion!$P:$P) -> 0 | W189: =IF(H189="USD",S189*SolCotizacion!$J$18,S189) -> 39148.755 | X189: =ROUND(W189/(1-VLOOKUP("Total porcentaje:",ResumenCotizacion!$F:$H,3,0)),2) -> 40610.74 | Y189: 0
A190: Catalogo principalOVS_ES ACADEMICO7RS-00001 | B190: 7RS-00001OVS_ES ACADEMICO | D190: Catalogo principal | E190: 7RS-00001 | F190: OVS_ES ACADEMICO | G190: Catalogo principal | H190: USD | I190: N/A | J190: Microsoft®ProjectPlan5OpenStud ShrdSvr AllLng MonthlySubscriptions-VolumeLicense Academic OLV 1License NoLevel Student 1Month | K190: Unidad | L190: Und | M190: Producto | N190: N/A | O190: N/A | P190: N/A | Q190: 7RS-00001 | R190: Suscripción mensual con pago anual | S190: 8 | T190: 1 | U190: 1 | V190: =SUMIF(ResumenCotizacion!$C:$C,E190,ResumenCotizacion!$P:$P) -> 0 | W190: =IF(H190="USD",S190*SolCotizacion!$J$18,S190) -> 30406.8 | X190: =ROUND(W190/(1-VLOOKUP("Total porcentaje:",ResumenCotizacion!$F:$H,3,0)),2) -> 31542.32 | Y190: 0
A191: Catalogo principalOVS_ES ACADEMICO7U6-00008 | B191: 7U6-00008OVS_ES ACADEMICO | D191: Catalogo principal | E191: 7U6-00008 | F191: OVS_ES ACADEMICO | G191: Catalogo principal | H191: USD | I191: N/A | J191: Microsoft® Intune Open CAO All Languages Subscription Open Value Level E 1 Month Academic Additional Product Faculty Renewal Only | K191: Unidad | L191: Und | M191: Producto | N191: N/A | O191: N/A | P191: N/A | Q191: 7U6-00008 | R191: Suscripción mensual con pago anual | S191: 0.48 | T191: 1 | U191: 1 | V191: =SUMIF(ResumenCotizacion!$C:$C,E191,ResumenCotizacion!$P:$P) -> 0 | W191: =IF(H191="USD",S191*SolCotizacion!$J$18,S191) -> 1824.408 | X191: =ROUND(W191/(1-VLOOKUP("Total porcentaje:",ResumenCotizacion!$F:$H,3,0)),2) -> 1892.54 | Y191: 0
A192: Catalogo principalOVS_ES ACADEMICO7U6-00009 | B192: 7U6-00009OVS_ES ACADEMICO | D192: Catalogo principal | E192: 7U6-00009 | F192: OVS_ES ACADEMICO | G192: Catalogo principal | H192: USD | I192: N/A | J192: Microsoft® Intune Open CAO All Languages Subscription Open Value Level F 1 Month Academic Additional Product Faculty Renewal Only | K192: Unidad | L192: Und | M192: Producto | N192: N/A | O192: N/A | P192: N/A | Q192: 7U6-00009 | R192: Suscripción mensual con pago anual | S192: 0.48 | T192: 1 | U192: 1 | V192: =SUMIF(ResumenCotizacion!$C:$C,E192,ResumenCotizacion!$P:$P) -> 0 | W192: =IF(H192="USD",S192*SolCotizacion!$J$18,S192) -> 1824.408 | X192: =ROUND(W192/(1-VLOOKUP("Total porcentaje:",ResumenCotizacion!$F:$H,3,0)),2) -> 1892.54 | Y192: 0
A193: Catalogo principalOVS_ES ACADEMICO7U6-00011 | B193: 7U6-00011OVS_ES ACADEMICO | D193: Catalogo principal | E193: 7U6-00011 | F193: OVS_ES ACADEMICO | G193: Catalogo principal | H193: USD | I193: N/A | J193: Microsoft® Intune Open CAO All Languages Subscription Open Value No Level 1 Month Academic Student Renewal Only | K193: Unidad | L193: Und | M193: Producto | N193: N/A | O193: N/A | P193: N/A | Q193: 7U6-00011 | R193: Suscripción mensual con pago anual | S193: 0.48 | T193: 1 | U193: 1 | V193: =SUMIF(ResumenCotizacion!$C:$C,E193,ResumenCotizacion!$P:$P) -> 0 | W193: =IF(H193="USD",S193*SolCotizacion!$J$18,S193) -> 1824.408 | X193: =ROUND(W193/(1-VLOOKUP("Total porcentaje:",ResumenCotizacion!$F:$H,3,0)),2) -> 1892.54 | Y193: 0
A194: =D194&F194&E194 -> Catalogo principalOVS_ES ACADEMICO7VC-00171 | B194: =E194&F194 -> 7VC-00171OVS_ES ACADEMICO | D194: Catalogo principal | E194: 7VC-00171 | F194: OVS_ES ACADEMICO | G194: Catalogo principal | H194: USD | I194: N/A | J194: Microsoft® Forefront Identity Manager All Language License & Software Assurance Open Value Level E 1 Year Academic AP Live Edition | K194: Unidad | L194: Und | M194: Producto | N194: N/A | O194: N/A | P194: N/A | Q194: 7VC-00171 | R194: Suscripción Anual | S194: 212 | T194: 1 | U194: 1 | V194: =SUMIF(ResumenCotizacion!$C:$C,E194,ResumenCotizacion!$P:$P) -> 0 | W194: =IF(H194="USD",S194*SolCotizacion!$J$18,S194) -> 805780.2 | X194: =ROUND(W194/(1-VLOOKUP("Total porcentaje:",ResumenCotizacion!$F:$H,3,0)),2) -> 835871.58 | Y194: 0
A195: Catalogo principalOVS_ES ACADEMICO7VC-00172 | B195: 7VC-00172OVS_ES ACADEMICO | D195: Catalogo principal | E195: 7VC-00172 | F195: OVS_ES ACADEMICO | G195: Catalogo principal | H195: USD | I195: N/A | J195: Microsoft® Forefront Identity Manager All Language License & Software Assurance Open Value Level F 1 Year Academic AP Live Edition | K195: Unidad | L195: Und | M195: Producto | N195: N/A | O195: N/A | P195: N/A | Q195: 7VC-00172 | R195: Suscripción Anual | S195: 212 | T195: 1 | U195: 1 | V195: =SUMIF(ResumenCotizacion!$C:$C,E195,ResumenCotizacion!$P:$P) -> 0 | W195: =IF(H195="USD",S195*SolCotizacion!$J$18,S195) -> 805780.2 | X195: =ROUND(W195/(1-VLOOKUP("Total porcentaje:",ResumenCotizacion!$F:$H,3,0)),2) -> 835871.58 | Y195: =V195*X195 -> 0
A196: Catalogo principalOVS_ES ACADEMICO9EA-00310 | B196: 9EA-00310OVS_ES ACADEMICO | D196: Catalogo principal | E196: 9EA-00310 | F196: OVS_ES ACADEMICO | G196: Catalogo principal | H196: USD | I196: N/A | J196: Microsoft®WindowsServerDCCore AllLng License/SoftwareAssurancePack Academic OLV 16Licenses LevelE AdditionalProduct CoreLic 1Year | K196: Unidad | L196: Und | M196: Producto | N196: N/A | O196: N/A | P196: N/A | Q196: 9EA-00310 | R196: Suscripción Anual | S196: 389 | T196: 1 | U196: 1 | V196: =SUMIF(ResumenCotizacion!$C:$C,E196,ResumenCotizacion!$P:$P) -> 0 | W196: =IF(H196="USD",S196*SolCotizacion!$J$18,S196) -> 1478530.65 | X196: =ROUND(W196/(1-VLOOKUP("Total porcentaje:",ResumenCotizacion!$F:$H,3,0)),2) -> 1533745.49 | Y196: 0
A197: Catalogo principalOVS_ES ACADEMICO9EA-00311 | B197: 9EA-00311OVS_ES ACADEMICO | D197: Catalogo principal | E197: 9EA-00311 | F197: OVS_ES ACADEMICO | G197: Catalogo principal | H197: USD | I197: N/A | J197: Microsoft®WindowsServerDCCore AllLng License/SoftwareAssurancePack Academic OLV 16Licenses LevelF AdditionalProduct CoreLic 1Year | K197: Unidad | L197: Und | M197: Producto | N197: N/A | O197: N/A | P197: N/A | Q197: 9EA-00311 | R197: Suscripción Anual | S197: 389 | T197: 1 | U197: 1 | V197: =SUMIF(ResumenCotizacion!$C:$C,E197,ResumenCotizacion!$P:$P) -> 0 | W197: =IF(H197="USD",S197*SolCotizacion!$J$18,S197) -> 1478530.65 | X197: =ROUND(W197/(1-VLOOKUP("Total porcentaje:",ResumenCotizacion!$F:$H,3,0)),2) -> 1533745.49 | Y197: 0
A198: Catalogo principalOVS_ES ACADEMICO9EA-00312 | B198: 9EA-00312OVS_ES ACADEMICO | D198: Catalogo principal | E198: 9EA-00312 | F198: OVS_ES ACADEMICO | G198: Catalogo principal | H198: USD | I198: N/A | J198: Microsoft®WindowsServerDCCore AllLng SAStepUp Academic OLV 16Licenses LevelE WindowsServerStandardCore AdditionalProduct CoreLic 1Year | K198: Unidad | L198: Und | M198: Producto | N198: N/A | O198: N/A | P198: N/A | Q198: 9EA-00312 | R198: Suscripción Anual | S198: 321 | T198: 1 | U198: 1 | V198: =SUMIF(ResumenCotizacion!$C:$C,E198,ResumenCotizacion!$P:$P) -> 0 | W198: =IF(H198="USD",S198*SolCotizacion!$J$18,S198) -> 1220072.85 | X198: =ROUND(W198/(1-VLOOKUP("Total porcentaje:",ResumenCotizacion!$F:$H,3,0)),2) -> 1265635.74 | Y198: 0
A199: Catalogo principalOVS_ES ACADEMICO9EA-00313 | B199: 9EA-00313OVS_ES ACADEMICO | D199: Catalogo principal | E199: 9EA-00313 | F199: OVS_ES ACADEMICO | G199: Catalogo principal | H199: USD | I199: N/A | J199: Microsoft®WindowsServerDCCore AllLng SAStepUp Academic OLV 16Licenses LevelF WindowsServerStandardCore AdditionalProduct CoreLic 1Year | K199: Unidad | L199: Und | M199: Producto | N199: N/A | O199: N/A | P199: N/A | Q199: 9EA-00313 | R199: Suscripción Anual | S199: 321 | T199: 1 | U199: 1 | V199: =SUMIF(ResumenCotizacion!$C:$C,E199,ResumenCotizacion!$P:$P) -> 0 | W199: =IF(H199="USD",S199*SolCotizacion!$J$18,S199) -> 1220072.85 | X199: =ROUND(W199/(1-VLOOKUP("Total porcentaje:",ResumenCotizacion!$F:$H,3,0)),2) -> 1265635.74 | Y199: 0
A200: Catalogo principalOVS_ES ACADEMICO9EA-00314 | B200: 9EA-00314OVS_ES ACADEMICO | D200: Catalogo principal | E200: 9EA-00314 | F200: OVS_ES ACADEMICO | G200: Catalogo principal | H200: USD | I200: N/A | J200: Microsoft®WindowsServerDCCore AllLng License/SoftwareAssurancePack Academic OLV 2Licenses LevelE AdditionalProduct CoreLic 1Year | K200: Unidad | L200: Und | M200: Producto | N200: N/A | O200: N/A | P200: N/A | Q200: 9EA-00314 | R200: Suscripción Anual | S200: 49 | T200: 1 | U200: 1 | V200: =SUMIF(ResumenCotizacion!$C:$C,E200,ResumenCotizacion!$P:$P) -> 0 | W200: =IF(H200="USD",S200*SolCotizacion!$J$18,S200) -> 186241.65 | X200: =ROUND(W200/(1-VLOOKUP("Total porcentaje:",ResumenCotizacion!$F:$H,3,0)),2) -> 193196.73 | Y200: 0
... 3122 more rows

Sheet tempListas (hidden)
A1: categoria
A2: OVS_ES ACADEMICO
A3: CSP GOBIERNO
A4: CSP ACADEMICO
A5: OPEN VALUE GOBIERNO
A6: OPEN VALUE ENTIDADES NO CUALIFICADAS
A7: CSP ENTIDADES NO CUALIFICADAS

Sheet ProveeSoloCatPrinci (hidden)
A1: Proveedores solo catalogo principal
A2: Colombia Telecomunicaciones S.A. ESP.
